Service Area,Service Division,Expense Type,Expense Code,Detailed Expense Type,Payment Date,Transaction Number,Amount Exc VAT,Supplier Name
Regeneration Economy and Growth,Culture Sport and Tourism,Supplies and Services,338047,Services,01/11/2023,4197828-168,"3,269.00",REDACTED - PAYMENT TO INDIVIDUAL
Children and Young Peoples Services,Head of Childrens Social Care,Transport,230005,Contract Hire,01/11/2023,4197663-16843,"1,054.70",1AB TAXIS LTD.
Children and Young Peoples Services,Head of Education and Skills,Transport,230008,Contract Hire,01/11/2023,4197664-0923/SA,"2,916.00",AABAT TAXIS.
Children and Young Peoples Services,Head of Education and Skills,Transport,230006,Contract Hire,01/11/2023,4197664-0923/SG,"1,666.00",AABAT TAXIS.
Neighbourhoods and Climate Change,Highways,Supplies and Services,304221,Equipment and Materials,01/11/2023,4197671-35192529,"1,724.36",AGGREGATE INDUSTRIES UK LTD.
Children and Young Peoples Services,Head of Early Help Inclusion & Vulnerable Children.,Supplies and Services,308011,Furniture,01/11/2023,4197674-179498,"4,870.00",ALBANY OFFICE EQUIPMENT (WHOLESALE) LTD.
Adult and Health Services,Head of Adults,Supplies and Services,304259,Equipment and Materials,01/11/2023,4197674-179650,"3,390.00",ALBANY OFFICE EQUIPMENT (WHOLESALE) LTD.
Children and Young Peoples Services,Head of Childrens Social Care,Supplies and Services,338044,Services,01/11/2023,4197675-INV633428,900.00,ALPHA BIOLABORATORIES LTD.
Regeneration Economy and Growth,Transport and Contracted Services,Third Party Payments,430106,Rendered by Private Contractors,01/11/2023,4197684-121143,"24,051.18",ARRIVA NORTHUMBRIA LTD.
Regeneration Economy and Growth,Transport and Contracted Services,Third Party Payments,430106,Rendered by Private Contractors,01/11/2023,4197684-121144,"67,437.21",ARRIVA NORTHUMBRIA LTD.
Regeneration Economy and Growth,Transport and Contracted Services,Third Party Payments,430106,Rendered by Private Contractors,01/11/2023,4197684-121156,"68,853.78",ARRIVA NORTHUMBRIA LTD.
Children and Young Peoples Services,Head of Childrens Social Care,Supplies and Services,352001,Conference Expenses,01/11/2023,4197686-2023-822,950.00,ASPIRE PSYCHOLOGICAL SERVICES LTD.
Children and Young Peoples Services,Head of Childrens Social Care,Supplies and Services,352001,Conference Expenses,01/11/2023,4197686-2023-823,"2,400.00",ASPIRE PSYCHOLOGICAL SERVICES LTD.
Children and Young Peoples Services,Head of Childrens Social Care,Supplies and Services,352001,Conference Expenses,01/11/2023,4197686-2023-824,"3,800.00",ASPIRE PSYCHOLOGICAL SERVICES LTD.
Children and Young Peoples Services,Head of Education and Skills,Transport,230008,Contract Hire,01/11/2023,4197687-990,"2,970.00",AT TAXIS LTD.
Children and Young Peoples Services,Head of Education and Skills,Transport,230006,Contract Hire,01/11/2023,4197689-DCC-12SEPT23,"3,643.56",ATLAS TAXIS MANAGEMENT LTD.
Adult and Health Services,Head of Adults,Transport,230005,Contract Hire,01/11/2023,4197689-DCC-18SEPT23,"1,957.18",ATLAS TAXIS MANAGEMENT LTD.
Neighbourhoods and Climate Change,Environmental Services,Transport,210057,Repair and Maintenance of Vehicles,01/11/2023,4197690-35253842,540.00,BELL TRUCK SALES LTD T/A BELL TRUCK & VAN.
Neighbourhoods and Climate Change,Environmental Services,Stock A926,926004,Stock,01/11/2023,4197690-45077332,"1,377.12",BELL TRUCK SALES LTD T/A BELL TRUCK & VAN.
Children and Young Peoples Services,Head of Education and Skills,Transport,230006,Contract Hire,01/11/2023,4197698-A1,"2,717.82",BOBS TAXIS.
Neighbourhoods and Climate Change,Highways,Supplies and Services,384899,Miscellaneous Expenses,01/11/2023,4197701-RES-10-2023-738,"1,833.00",BRANDON & BYSHOTTLES PARISH COUNCIL.
Regeneration Economy and Growth,Culture Sport and Tourism,Premises,145023,Cleaning and Domestic Supplies,01/11/2023,4197702-22SI2294563,"2,290.80",BRENNTAG UK LTD.
Children and Young Peoples Services,Head of Childrens Social Care,Third Party Payments,440047,Other third party payments E440,01/11/2023,4197710-26207,"7,432.32",CASTLE VIEW GROUP TRAINING.
Regeneration Economy and Growth,Transport and Contracted Services,Supplies and Services,384199,Miscellaneous Expenses,01/11/2023,4197712-INV-1404,"6,750.00",CHALLENGE FOR CHANGE LTD T/A LOVE TO RIDE.
Children and Young Peoples Services,Head of Education and Skills,Transport,230006,Contract Hire,01/11/2023,4197714-2308,"1,690.20",CHEVRON TAXIS LTD.
Children and Young Peoples Services,Head of Education and Skills,Transport,230007,Contract Hire,01/11/2023,4197714-2384,"1,020.00",CHEVRON TAXIS LTD.
Children and Young Peoples Services,Head of Education and Skills,Transport,230006,Contract Hire,01/11/2023,4197714-2387,"2,296.00",CHEVRON TAXIS LTD.
Regeneration Economy and Growth,Corporate Property and Land,Third Party Payments,430100,Rendered by Private Contractors,01/11/2023,4197716-CC145514,504.50,CITY CLEAN NORTHERN LTD.
Regeneration Economy and Growth,Business Durham,Supplies and Services,336005,Advertising E336,01/11/2023,4197717-0104255309,"1,000.00",CLEAR CHANNEL UK LTD.
Children and Young Peoples Services,Head of Early Help Inclusion & Vulnerable Children.,Supplies and Services,342051,Computers and Communications,01/11/2023,4197718-INV-17323,"10,000.00",CLEARCARE SOLUTIONS LTD.
Neighbourhoods and Climate Change,Highways,Third Party Payments,430100,Rendered by Private Contractors,01/11/2023,4197722-2000003,"14,166.78",COLAS LTD.
Regeneration Economy and Growth,Business Durham,Premises,120021,Energy Costs,01/11/2023,4197727-17908233,555.02,CORONA ENERGY RETAIL 2 LTD.
Neighbourhoods and Climate Change,Partnerships & Community Engagement Div.,Supplies and Services,308011,Furniture,01/11/2023,4197728-PEA0070,"2,847.00",COUNTY DURHAM FURNITURE HELP SCHEME (CDFHS).
Regeneration Economy and Growth,Planning & Housing,Supplies and Services,308011,Furniture,01/11/2023,4197728-REG0101,"1,580.00",COUNTY DURHAM FURNITURE HELP SCHEME (CDFHS).
Neighbourhoods and Climate Change,Highways,Supplies and Services,384899,Miscellaneous Expenses,01/11/2023,4197729-RES-10-2023-737,"2,200.00",COXHOE PARISH COUNCIL.
Children and Young Peoples Services,Head of Education and Skills,Transport,230008,Contract Hire,01/11/2023,4197731-116584,"1,693.44",CROFT BUSINESS SERVICES LTD T/A CROFT TRAVEL.
Children and Young Peoples Services,Head of Childrens Social Care,Transport,230005,Contract Hire,01/11/2023,4197731-116722,529.76,CROFT BUSINESS SERVICES LTD T/A CROFT TRAVEL.
Children and Young Peoples Services,Head of Childrens Social Care,Transport,230005,Contract Hire,01/11/2023,4197731-116723,927.08,CROFT BUSINESS SERVICES LTD T/A CROFT TRAVEL.
Neighbourhoods and Climate Change,Environmental Services,Third Party Payments,430115,Rendered by Private Contractors,01/11/2023,4197733-105035,"1,529.98",D&F ASSOCIATES LTD.
Neighbourhoods and Climate Change,Environmental Services,Stock A926,926004,Stock,01/11/2023,4197741-96448151,739.20,DENNIS EAGLE LTD T/A TERBERG MATEC (UK) LTD.
Resources BK0010,Legal & Democratic Services,Supplies and Services,338042,Services,01/11/2023,4197742-375331/INVRR209,"1,400.00",DERE STREET BARRISTERS.
Resources BK0010,Legal & Democratic Services,Supplies and Services,338042,Services,01/11/2023,4197742-383230/INVJS89,"4,400.00",DERE STREET BARRISTERS.
Resources BK0010,Legal & Democratic Services,Supplies and Services,338042,Services,01/11/2023,4197742-387160/INVGHE372,625.00,DERE STREET BARRISTERS.
Resources BK0010,Legal & Democratic Services,Supplies and Services,338042,Services,01/11/2023,4197742-387302/INVAD0222,725.00,DERE STREET BARRISTERS.
Resources BK0010,Legal & Democratic Services,Supplies and Services,338042,Services,01/11/2023,4197742-390240/INVEI122,625.00,DERE STREET BARRISTERS.
Resources BK0010,Legal & Democratic Services,Supplies and Services,338042,Services,01/11/2023,4197742-390580/INVAD0224,625.00,DERE STREET BARRISTERS.
Resources BK0010,Legal & Democratic Services,Supplies and Services,338042,Services,01/11/2023,4197742-391794/INVLC90,550.00,DERE STREET BARRISTERS.
Chief Executives Office,Communications Management,Supplies and Services,332029,Printing Stationery and Gen Off Exps,01/11/2023,4197743-47740,"3,000.00",DESIGN X PRESS LTD.
Resources BK0010,Legal & Democratic Services,Supplies and Services,338043,Services,01/11/2023,4197753-157-0418030,"40,122.57",DWF LLP.
Resources BK0010,Legal & Democratic Services,Supplies and Services,338043,Services,01/11/2023,4197753-157-0445249,"9,216.36",DWF LLP.
Neighbourhoods and Climate Change,Environmental Services,Transport,210057,Repair and Maintenance of Vehicles,01/11/2023,4197754-S213299,536.31,ECON ENGINEERING LTD.
Dedicated Schools Grant BG0015,Dedicated Schools Grant CG0050,Central Support and Other Recharges,615208,Support Services,01/11/2023,4197755-RES-10-2023-694,"6,068.25",EDEN LEARNING TRUST T/A FERRYHILL BUSINESS & ENTERPRISE COLLEGE.
Dedicated Schools Grant BG0015,Dedicated Schools Grant CG0050,Central Support and Other Recharges,615208,Support Services,01/11/2023,4197756-RES-10-2023-695,722.41,EDEN LEARNING TRUST T/A WOODHAM ACADEMY.
Regeneration Economy and Growth,Corporate Property and Land,Supplies and Services,304221,Equipment and Materials,01/11/2023,4197757-059-326416,552.46,EDMUNDSON ELECTRICAL LTD.
Neighbourhoods and Climate Change,Highways,Supplies and Services,304221,Equipment and Materials,01/11/2023,4197768-0000023315,"4,065.52",EXTERIOR LIGHTING SOLUTIONS (UK) LTD.
Neighbourhoods and Climate Change,Highways,Supplies and Services,384899,Miscellaneous Expenses,01/11/2023,4197771-RES-10-2023-736,"3,936.55",FERRYHILL TOWN COUNCIL.
Regeneration Economy and Growth,Transport and Contracted Services,Third Party Payments,430106,Rendered by Private Contractors,01/11/2023,4197772-PPT4123-OCT23,"2,261.00",FERRYHILL VILLAGE TRAVEL.
Adult and Health Services,Head of Adults,Transport,230005,Contract Hire,01/11/2023,4197776-103645,"1,431.00",G & P JOHNSON LTD T/A NIGHTINGALE COACHES.
Neighbourhoods and Climate Change,Highways,Supplies and Services,384899,Miscellaneous Expenses,01/11/2023,4197778-RES-10-2023-739,"2,670.00",GAINFORD & LANGTON PARISH COUNCIL.
Regeneration Economy and Growth,Corporate Property and Land,Supplies and Services,304221,Equipment and Materials,01/11/2023,4197779-847008,"1,229.25",GARTEC LTD.
Neighbourhoods and Climate Change,Environmental Services,Stock A926,926004,Stock,01/11/2023,4197780-IN270446,"6,146.16",GB LUBRICANTS LTD.
Neighbourhoods and Climate Change,Environmental Services,Stock A926,926004,Stock,01/11/2023,4197780-IN270486,"1,473.95",GB LUBRICANTS LTD.
Regeneration Economy and Growth,Corporate Property and Land,Employees,080025,Agency Staff,01/11/2023,4197781-2476041,"176,117.71",GEOMETRIC RESULTS INTERNATIONAL.
Neighbourhoods and Climate Change,Highways,Supplies and Services,304221,Equipment and Materials,01/11/2023,4197785-000201,540.00,GRAEME HOPPER LTD.
Neighbourhoods and Climate Change,Highways,Third Party Payments,430100,Rendered by Private Contractors,01/11/2023,4197785-000202,"1,810.00",GRAEME HOPPER LTD.
Adult and Health Services,Head of Adults,Premises,145023,Cleaning and Domestic Supplies,01/11/2023,4197788-06/242411,647.07,GREENHAM TRADING LTD.
Neighbourhoods and Climate Change,Environmental Services,Stock A926,926004,Stock,01/11/2023,4197789-283390,888.49,GREENLAY T/A THOMAS SHERRIFF & CO LTD.
Neighbourhoods and Climate Change,Highways,Third Party Payments,430100,Rendered by Private Contractors,01/11/2023,4197798-3576,"8,880.00",HIGHWAY CONSTRUCTION SERVICES LTD.
Neighbourhoods and Climate Change,Highways,Third Party Payments,430100,Rendered by Private Contractors,01/11/2023,4197798-3577,"4,800.00",HIGHWAY CONSTRUCTION SERVICES LTD.
Children and Young Peoples Services,Head of Education and Skills,Transport,230007,Contract Hire,01/11/2023,4197800-23887,"4,180.00",HODGSONS COACH OPERATORS LTD.
Neighbourhoods and Climate Change,Environmental Services,Third Party Payments,430100,Rendered by Private Contractors,01/11/2023,4197801-94867,"1,290.33",HOGARTH COACHWORKS LTD.
Adult and Health Services,Public Health CC0450,Third Party Payments,460803,Contract Payments,01/11/2023,4197806-SI-HK-001462,"330,683.00",HUMANKIND CHARITY.
Regeneration Economy and Growth,Culture Sport and Tourism,Premises,120021,Energy Costs,01/11/2023,4197807-18189,"3,364.47",IMPALA ESTATES LTD.
Children and Young Peoples Services,Head of Childrens Social Care,Third Party Payments,425028,Rendered by Voluntary Organisations,01/11/2023,4197809-2324/IC/001,"35,840.00",INTEGRATING CHILDREN.
Neighbourhoods and Climate Change,Highways,Third Party Payments,430100,Rendered by Private Contractors,01/11/2023,4197812-28485,"1,062.80",JACK COUPE & SONS LTD T/A COUPE LINE.
Regeneration Economy and Growth,Culture Sport and Tourism,Supplies and Services,384302,Miscellaneous Expenses,01/11/2023,4197813-4100861874,"5,000.00",JACK DRUM ARTS LTD.
Children and Young Peoples Services,Head of Education and Skills,Transport,230003,Contract Hire,01/11/2023,4197817-41140,"3,705.00",JIM HUGHES COACHES LTD.
Children and Young Peoples Services,Head of Education and Skills,Transport,230003,Contract Hire,01/11/2023,4197817-41144-41130,"5,397.58",JIM HUGHES COACHES LTD.
Children and Young Peoples Services,Head of Education and Skills,Transport,230003,Contract Hire,01/11/2023,4197817-41146,"4,419.00",JIM HUGHES COACHES LTD.
Children and Young Peoples Services,Head of Education and Skills,Transport,230031,Contract Hire,01/11/2023,4197817-41149-41150,"1,585.00",JIM HUGHES COACHES LTD.
Children and Young Peoples Services,Head of Education and Skills,Transport,230007,Contract Hire,01/11/2023,4197817-41151,"6,260.50",JIM HUGHES COACHES LTD.
Children and Young Peoples Services,Head of Education and Skills,Transport,230007,Contract Hire,01/11/2023,4197817-41162,"11,698.20",JIM HUGHES COACHES LTD.
Neighbourhoods and Climate Change,Highways,Supplies and Services,304358,Equipment and Materials,01/11/2023,4197819-32681,"2,592.50",JOHN R BUTTERFIELD LTD.
Neighbourhoods and Climate Change,Highways,Supplies and Services,304358,Equipment and Materials,01/11/2023,4197819-32682,"1,702.50",JOHN R BUTTERFIELD LTD.
Neighbourhoods and Climate Change,Highways,Supplies and Services,304358,Equipment and Materials,01/11/2023,4197820-0000084369,894.00,JOHN WADE (HAULAGE) LTD.
Neighbourhoods and Climate Change,Highways,Supplies and Services,304358,Equipment and Materials,01/11/2023,4197826-4713,925.00,KEVIN SNOWDON GROUNDWORKS LTD.
Neighbourhoods and Climate Change,Highways,Supplies and Services,304358,Equipment and Materials,01/11/2023,4197826-4714,925.00,KEVIN SNOWDON GROUNDWORKS LTD.
Neighbourhoods and Climate Change,Highways,Supplies and Services,304358,Equipment and Materials,01/11/2023,4197826-4715,752.25,KEVIN SNOWDON GROUNDWORKS LTD.
Neighbourhoods and Climate Change,Highways,Supplies and Services,304358,Equipment and Materials,01/11/2023,4197826-4716,943.50,KEVIN SNOWDON GROUNDWORKS LTD.
Neighbourhoods and Climate Change,Highways,Supplies and Services,304358,Equipment and Materials,01/11/2023,4197826-4717,"1,145.50",KEVIN SNOWDON GROUNDWORKS LTD.
Neighbourhoods and Climate Change,Highways,Supplies and Services,304358,Equipment and Materials,01/11/2023,4197826-4718,"1,145.50",KEVIN SNOWDON GROUNDWORKS LTD.
Neighbourhoods and Climate Change,Highways,Supplies and Services,304358,Equipment and Materials,01/11/2023,4197826-4719,"1,145.50",KEVIN SNOWDON GROUNDWORKS LTD.
Neighbourhoods and Climate Change,Highways,Supplies and Services,304358,Equipment and Materials,01/11/2023,4197826-4720,"1,209.25",KEVIN SNOWDON GROUNDWORKS LTD.
Neighbourhoods and Climate Change,Highways,Supplies and Services,304358,Equipment and Materials,01/11/2023,4197826-4722,943.50,KEVIN SNOWDON GROUNDWORKS LTD.
Neighbourhoods and Climate Change,Highways,Supplies and Services,304358,Equipment and Materials,01/11/2023,4197826-4723,943.50,KEVIN SNOWDON GROUNDWORKS LTD.
Children and Young Peoples Services,Head of Education and Skills,Transport,230007,Contract Hire,01/11/2023,4197829-4127,910.00,L&D TAXIS NE LTD.
Children and Young Peoples Services,Head of Childrens Social Care,Supplies and Services,338044,Services,01/11/2023,4197835-293846,"1,103.00",LEXTOX.
Children and Young Peoples Services,Head of Childrens Social Care,Supplies and Services,338044,Services,01/11/2023,4197835-299293,832.00,LEXTOX.
Children and Young Peoples Services,Head of Childrens Social Care,Supplies and Services,338044,Services,01/11/2023,4197835-304053,536.00,LEXTOX.
Children and Young Peoples Services,Head of Childrens Social Care,Supplies and Services,338044,Services,01/11/2023,4197835-304475,536.00,LEXTOX.
Children and Young Peoples Services,Head of Childrens Social Care,Transport,230005,Contract Hire,01/11/2023,4197838-5510,560.00,LOCAL TRANSPORT LTD.
Children and Young Peoples Services,Head of Childrens Social Care,Transport,230005,Contract Hire,01/11/2023,4197838-5511,"1,178.00",LOCAL TRANSPORT LTD.
Children and Young Peoples Services,Head of Childrens Social Care,Third Party Payments,440047,Other third party payments E440,01/11/2023,4197846-8311,"2,396.32",MAJOR RECRUITMENT LTD.*
Neighbourhoods and Climate Change,Highways,Third Party Payments,430101,Rendered by Private Contractors,01/11/2023,4197847-6444,"3,680.00",MAKEPEACE MOTORS.
Regeneration Economy and Growth,Culture Sport and Tourism,Supplies and Services,304337,Equipment and Materials,01/11/2023,4197848-4236145332,"1,603.35",MARES SPA.
Regeneration Economy and Growth,Culture Sport and Tourism,Supplies and Services,304337,Equipment and Materials,01/11/2023,4197848-4236145339,"1,350.09",MARES SPA.
Regeneration Economy and Growth,Culture Sport and Tourism,Supplies and Services,304337,Equipment and Materials,01/11/2023,4197848-4236145375,786.16,MARES SPA.
Neighbourhoods and Climate Change,Highways,Supplies and Services,304221,Equipment and Materials,01/11/2023,4197849-Z001725977,"7,008.52",MARSHALLS MONO LTD.
Neighbourhoods and Climate Change,Environmental Services,Third Party Payments,430100,Rendered by Private Contractors,01/11/2023,4197854-9983281472,"1,780.58",MITCHELL POWERSYSTEMS.
Regeneration Economy and Growth,Culture Sport and Tourism,Supplies and Services,304259,Equipment and Materials,01/11/2023,4197855-INVOICE-0176,700.00,MOUNTAIN ACTIVITY CO.
Regeneration Economy and Growth,Corporate Property and Land,Third Party Payments,430100,Rendered by Private Contractors,01/11/2023,4197871-46477,"1,548.00",NE & C WINDOWS & DOORS LTD.
Regeneration Economy and Growth,Corporate Property and Land,Third Party Payments,430100,Rendered by Private Contractors,01/11/2023,4197871-46479,"1,169.00",NE & C WINDOWS & DOORS LTD.
Regeneration Economy and Growth,Corporate Property and Land,Third Party Payments,430100,Rendered by Private Contractors,01/11/2023,4197871-46480,"9,852.00",NE & C WINDOWS & DOORS LTD.
Regeneration Economy and Growth,Corporate Property and Land,Third Party Payments,430100,Rendered by Private Contractors,01/11/2023,4197871-46481,"7,772.00",NE & C WINDOWS & DOORS LTD.
Neighbourhoods and Climate Change,Environmental Services,Stock A926,926004,Stock,01/11/2023,4197872-INVHE81864,"1,199.01",NE TRUCK SPARES LTD (NETS).
Dedicated Schools Grant BG0015,Dedicated Schools Grant CG0050,Central Support and Other Recharges,615208,Support Services,01/11/2023,4197873-RES-10-2023-693,"20,227.49",NEW COLLEGE DURHAM ACADEMIES TRUST.
Neighbourhoods and Climate Change,Environmental Services,Third Party Payments,430100,Rendered by Private Contractors,01/11/2023,4197876-1446129,990.62,NORTH EAST TRUCK & VAN LTD.
Neighbourhoods and Climate Change,Environmental Services,Third Party Payments,430100,Rendered by Private Contractors,01/11/2023,4197876-1446130,502.80,NORTH EAST TRUCK & VAN LTD.
Regeneration Economy and Growth,Planning & Housing,Premises,135005,Water Services,01/11/2023,4197878-472091020027788398,"5,063.13",NORTHUMBRIAN WATER LTD.
Resources BK0010,HR & Employee Services,Supplies and Services,384199,Miscellaneous Expenses,01/11/2023,4197880-INV-1222,"7,883.00",OM CHANGE & TRANSFORMATION LTD.
Adult and Health Services,Head of Adults,Supplies and Services,304516,Equipment and Materials,01/11/2023,4197884-0000200660,"2,637.43",ONLINE ERGONOMICS LTD.
Adult and Health Services,Head of Adults,Supplies and Services,304516,Equipment and Materials,01/11/2023,4197884-0000200661,"1,576.33",ONLINE ERGONOMICS LTD.
Regeneration Economy and Growth,Corporate Property and Land,Third Party Payments,430100,Rendered by Private Contractors,01/11/2023,4197885-12320-30,"1,140.08",OPUS BUILDING SERVICES LTD.
Regeneration Economy and Growth,Corporate Property and Land,Third Party Payments,430100,Rendered by Private Contractors,01/11/2023,4197885-12320-31,"1,127.53",OPUS BUILDING SERVICES LTD.
Regeneration Economy and Growth,Corporate Property and Land,Third Party Payments,430100,Rendered by Private Contractors,01/11/2023,4197885-12320-32,"1,121.62",OPUS BUILDING SERVICES LTD.
Regeneration Economy and Growth,Corporate Property and Land,Third Party Payments,430100,Rendered by Private Contractors,01/11/2023,4197885-12320-33,"1,020.13",OPUS BUILDING SERVICES LTD.
Regeneration Economy and Growth,Corporate Property and Land,Third Party Payments,430100,Rendered by Private Contractors,01/11/2023,4197885-12320-34,"1,165.50",OPUS BUILDING SERVICES LTD.
Regeneration Economy and Growth,Corporate Property and Land,Third Party Payments,430100,Rendered by Private Contractors,01/11/2023,4197885-12320-35,"1,138.50",OPUS BUILDING SERVICES LTD.
Regeneration Economy and Growth,Corporate Property and Land,Third Party Payments,430100,Rendered by Private Contractors,01/11/2023,4197885-12320-36,"1,132.04",OPUS BUILDING SERVICES LTD.
Regeneration Economy and Growth,Corporate Property and Land,Third Party Payments,430100,Rendered by Private Contractors,01/11/2023,4197885-12320-37,"1,174.50",OPUS BUILDING SERVICES LTD.
Regeneration Economy and Growth,Corporate Property and Land,Third Party Payments,430100,Rendered by Private Contractors,01/11/2023,4197885-12320-38,"1,138.50",OPUS BUILDING SERVICES LTD.
Regeneration Economy and Growth,Corporate Property and Land,Third Party Payments,430100,Rendered by Private Contractors,01/11/2023,4197885-12320-39,"1,121.62",OPUS BUILDING SERVICES LTD.
Regeneration Economy and Growth,Corporate Property and Land,Third Party Payments,430100,Rendered by Private Contractors,01/11/2023,4197885-12320-40,"1,140.08",OPUS BUILDING SERVICES LTD.
Regeneration Economy and Growth,Corporate Property and Land,Third Party Payments,430100,Rendered by Private Contractors,01/11/2023,4197885-12320-41,"1,135.45",OPUS BUILDING SERVICES LTD.
Regeneration Economy and Growth,Corporate Property and Land,Third Party Payments,430100,Rendered by Private Contractors,01/11/2023,4197885-12320-42,"1,132.04",OPUS BUILDING SERVICES LTD.
Regeneration Economy and Growth,Corporate Property and Land,Third Party Payments,430100,Rendered by Private Contractors,01/11/2023,4197885-12320-43,"1,130.17",OPUS BUILDING SERVICES LTD.
Regeneration Economy and Growth,Corporate Property and Land,Third Party Payments,430100,Rendered by Private Contractors,01/11/2023,4197885-12320-44,"1,140.08",OPUS BUILDING SERVICES LTD.
Adult and Health Services,Head of Adults,Supplies and Services,338089,Services,01/11/2023,4197893-INV-0034,825.00,PEER HUB COMMUNITY INTEREST COMPANY.
Adult and Health Services,Head of Adults,Supplies and Services,338089,Services,01/11/2023,4197893-INV-0035,"1,265.00",PEER HUB COMMUNITY INTEREST COMPANY.
Neighbourhoods and Climate Change,Highways,Third Party Payments,430100,Rendered by Private Contractors,01/11/2023,4197899-6603,"7,169.27",PINKNEY BUILDING CONTRACTORS LTD.
Neighbourhoods and Climate Change,Highways,Third Party Payments,430100,Rendered by Private Contractors,01/11/2023,4197899-6604,"3,042.00",PINKNEY BUILDING CONTRACTORS LTD.
Neighbourhoods and Climate Change,Highways,Third Party Payments,430100,Rendered by Private Contractors,01/11/2023,4197899-6605,"7,360.62",PINKNEY BUILDING CONTRACTORS LTD.
Neighbourhoods and Climate Change,Highways,Third Party Payments,430100,Rendered by Private Contractors,01/11/2023,4197899-6606,"4,056.00",PINKNEY BUILDING CONTRACTORS LTD.
Neighbourhoods and Climate Change,Highways,Third Party Payments,430100,Rendered by Private Contractors,01/11/2023,4197899-6608,"7,360.62",PINKNEY BUILDING CONTRACTORS LTD.
Neighbourhoods and Climate Change,Highways,Third Party Payments,430100,Rendered by Private Contractors,01/11/2023,4197899-6609,"3,439.38",PINKNEY BUILDING CONTRACTORS LTD.
Regeneration Economy and Growth,Transport and Contracted Services,Third Party Payments,430108,Rendered by Private Contractors,01/11/2023,4197902-179156,"2,790.00",PREMIER TRAFFIC MANAGEMENT LTD.
Neighbourhoods and Climate Change,Highways,Third Party Payments,430100,Rendered by Private Contractors,01/11/2023,4197902-179841,"9,028.50",PREMIER TRAFFIC MANAGEMENT LTD.
Neighbourhoods and Climate Change,Highways,Third Party Payments,430100,Rendered by Private Contractors,01/11/2023,4197916-10000/230950,"75,701.92",RAINTON CONSTRUCTION LTD.
Neighbourhoods and Climate Change,Highways,Third Party Payments,430100,Rendered by Private Contractors,01/11/2023,4197916-10000/230951,"250,222.18",RAINTON CONSTRUCTION LTD.
Neighbourhoods and Climate Change,Highways,Third Party Payments,430100,Rendered by Private Contractors,01/11/2023,4197916-10000/230952,"161,028.11",RAINTON CONSTRUCTION LTD.
Neighbourhoods and Climate Change,Highways,Third Party Payments,430100,Rendered by Private Contractors,01/11/2023,4197916-10000/230953,"25,526.74",RAINTON CONSTRUCTION LTD.
Children and Young Peoples Services,Head of Education and Skills,Transport,230007,Contract Hire,01/11/2023,4197918-1-4004,"1,560.28",RAYNERS COACHES.
Children and Young Peoples Services,Head of Education and Skills,Transport,230006,Contract Hire,01/11/2023,4197919-RDS093,"1,147.08",RDS TAXI.
Neighbourhoods and Climate Change,Environmental Services,Third Party Payments,430100,Rendered by Private Contractors,01/11/2023,4197926-402451,723.37,RICKERBY LTD.
Neighbourhoods and Climate Change,Environmental Services,Third Party Payments,430100,Rendered by Private Contractors,01/11/2023,4197926-402452,"1,057.50",RICKERBY LTD.
Children and Young Peoples Services,Head of Education and Skills,Transport,230008,Contract Hire,01/11/2023,4197932-W182-SEP23,"1,859.04",ROGERS TAXIS.
Regeneration Economy and Growth,Culture Sport and Tourism,Supplies and Services,304259,Equipment and Materials,01/11/2023,4197936-17253,"1,234.20",SAFE SECURE LOCKER SERVICES LTD.
Regeneration Economy and Growth,Corporate Property and Land,Third Party Payments,430100,Rendered by Private Contractors,01/11/2023,4197937-7657,"12,000.00",SAFE STRIP UK LTD.
Neighbourhoods and Climate Change,Environmental Services,Transport,210057,Repair and Maintenance of Vehicles,01/11/2023,4197941-2024.1000000778,"1,691.81",SCARAB SWEEPERS LTD.
Neighbourhoods and Climate Change,Environmental Services,Stock A926,926004,Stock,01/11/2023,4197945-43018282,716.33,SHERWOODS MOTOR GROUP LTD T/A SHERWOODS ISUZU.
Children and Young Peoples Services,Head of Education and Skills,Transport,230006,Contract Hire,01/11/2023,4197954-CLM00506,"1,947.54",SPENNYMOOR TAXIS.
Neighbourhoods and Climate Change,Highways,Supplies and Services,384899,Miscellaneous Expenses,01/11/2023,4197955-RES-10-2023-735,"1,800.00",SPENNYMOOR TOWN COUNCIL.
Regeneration Economy and Growth,Corporate Property and Land,Supplies and Services,304221,Equipment and Materials,01/11/2023,4197957-8792,"7,340.00",ST ASTIER LTD.
Regeneration Economy and Growth,Business Durham,Premises,108099,Service Repairs and Maintenance,01/11/2023,4197957-8803,"5,122.00",ST ASTIER LTD.
Regeneration Economy and Growth,Corporate Property and Land,Third Party Payments,430100,Rendered by Private Contractors,01/11/2023,4197958-8788,"1,360.00",ST ASTIER LTD.
Children and Young Peoples Services,Head of Education and Skills,Transport,230008,Contract Hire,01/11/2023,4197963-09106,"3,695.40",STANLEY TRAVEL (NORTH EAST) LTD.
Children and Young Peoples Services,Head of Education and Skills,Transport,230031,Contract Hire,01/11/2023,4197963-63467,"3,260.00",STANLEY TRAVEL (NORTH EAST) LTD.
Children and Young Peoples Services,Head of Childrens Social Care,Transport,230005,Contract Hire,01/11/2023,4197969-AUG37/STL23,504.00,STL CABS LTD.
Children and Young Peoples Services,Head of Childrens Social Care,Transport,230005,Contract Hire,01/11/2023,4197969-AUG39/STL23,552.00,STL CABS LTD.
Children and Young Peoples Services,Head of Childrens Social Care,Transport,230005,Contract Hire,01/11/2023,4197969-AUG41/STL23,534.00,STL CABS LTD.
Children and Young Peoples Services,Head of Childrens Social Care,Transport,230005,Contract Hire,01/11/2023,4197969-AUG59/STL23,580.00,STL CABS LTD.
Children and Young Peoples Services,Head of Childrens Social Care,Transport,230005,Contract Hire,01/11/2023,4197969-SEP38/STL23,601.00,STL CABS LTD.
Children and Young Peoples Services,Head of Childrens Social Care,Transport,230005,Contract Hire,01/11/2023,4197969-SEP54/STL23,772.00,STL CABS LTD.
Children and Young Peoples Services,Head of Childrens Social Care,Transport,230005,Contract Hire,01/11/2023,4197969-SEP61/STL23,504.00,STL CABS LTD.
Children and Young Peoples Services,Head of Childrens Social Care,Transport,230005,Contract Hire,01/11/2023,4197969-SEP68/STL2023,534.00,STL CABS LTD.
Regeneration Economy and Growth,Corporate Property and Land,Supplies and Services,304221,Equipment and Materials,01/11/2023,4197976-1075164,517.03,T CROSSLING & CO LTD.
Regeneration Economy and Growth,Corporate Property and Land,Supplies and Services,304221,Equipment and Materials,01/11/2023,4197976-1077499,860.90,T CROSSLING & CO LTD.
Regeneration Economy and Growth,Corporate Property and Land,Supplies and Services,304221,Equipment and Materials,01/11/2023,4197976-1079147,818.80,T CROSSLING & CO LTD.
Regeneration Economy and Growth,Corporate Property and Land,Supplies and Services,304221,Equipment and Materials,01/11/2023,4197976-1079153,831.09,T CROSSLING & CO LTD.
Regeneration Economy and Growth,Corporate Property and Land,Supplies and Services,304221,Equipment and Materials,01/11/2023,4197976-1081217,"1,562.85",T CROSSLING & CO LTD.
Regeneration Economy and Growth,Business Durham,Supplies and Services,344033,Telephones,01/11/2023,4197983-005447750,676.15,THE PHONE CO-OP.
Children and Young Peoples Services,Head of Early Help Inclusion & Vulnerable Children.,Supplies and Services,352001,Conference Expenses,01/11/2023,4197985-INV-4333,"1,353.75",THE WORK PLACE (AYCLIFFE) LTD.
Regeneration Economy and Growth,Corporate Property and Land,Supplies and Services,328041,Clothing uniforms and laundry E328,01/11/2023,4197986-NSIN00102153,"2,005.00",THOMAS OWEN & SONS (NEWCASTLE) LTD.
Neighbourhoods and Climate Change,Highways,Stock A926,926900,Stock in hand-Inventory system,01/11/2023,4197986-NSIN00102154,"1,671.58",THOMAS OWEN & SONS (NEWCASTLE) LTD.
Neighbourhoods and Climate Change,Highways,Stock A926,926900,Stock in hand-Inventory system,01/11/2023,4197986-NSIN00102155,981.52,THOMAS OWEN & SONS (NEWCASTLE) LTD.
Neighbourhoods and Climate Change,Environmental Services,Supplies and Services,338078,Services,01/11/2023,4197997-INV-60953,"1,758.20",VISTECH SERVICES LTD.
Resources BK0010,Digital Services,Supplies and Services,344015,Telephones,01/11/2023,4197998-SK68384,"1,156.00",VODAFONE CORPORATE LTD.
Resources BK0010,Digital Services,Supplies and Services,344015,Telephones,01/11/2023,4197998-SK68385,867.00,VODAFONE CORPORATE LTD.
Resources BK0010,Digital Services,Supplies and Services,344015,Telephones,01/11/2023,4197998-SK79286,"2,094.00",VODAFONE CORPORATE LTD.
Regeneration Economy and Growth,Culture Sport and Tourism,Supplies and Services,344014,Telephones,01/11/2023,4197998-SK81642,547.00,VODAFONE CORPORATE LTD.
Resources BK0010,Digital Services,Supplies and Services,344015,Telephones,01/11/2023,4197998-SK84029,"2,072.00",VODAFONE CORPORATE LTD.
Resources BK0010,Digital Services,Supplies and Services,344015,Telephones,01/11/2023,4197998-SK84031,"1,295.00",VODAFONE CORPORATE LTD.
Neighbourhoods and Climate Change,Highways,Supplies and Services,304358,Equipment and Materials,01/11/2023,4198000-52413,"5,570.00",W MARLEY AGRICULTURAL CONTRACTORS LTD.
Neighbourhoods and Climate Change,Highways,Supplies and Services,304358,Equipment and Materials,01/11/2023,4198000-52414,764.50,W MARLEY AGRICULTURAL CONTRACTORS LTD.
Children and Young Peoples Services,Head of Education and Skills,Transport,230006,Contract Hire,01/11/2023,4198005-0923,"2,375.82",WEST AUCKLAND TOWN TRAVEL (WATT).
Neighbourhoods and Climate Change,Highways,Stock A926,926900,Stock in hand-Inventory system,01/11/2023,4198013-1033156,760.08,YOUR NRG LTD.
Neighbourhoods and Climate Change,Environmental Services,Transport,215005,Running Costs of Vehicles,01/11/2023,4198013-1035299,"15,040.15",YOUR NRG LTD.
Neighbourhoods and Climate Change,Environmental Services,Transport,215005,Running Costs of Vehicles,01/11/2023,4198013-1037391,"1,583.50",YOUR NRG LTD.
Neighbourhoods and Climate Change,Highways,Supplies and Services,304221,Equipment and Materials,01/11/2023,4198014-145544166,"1,482.00",ZG LIGHTING (UK) LTD.
Neighbourhoods and Climate Change,Highways,Fees,901001,Internal fees,01/11/2023,4197769-23041183,"36,818.36",ATKINSREALIS PPS LTD.
Regeneration Economy and Growth,Corporate Property and Land,Supplies and Services,336005,Advertising E336,01/11/2023,4197981-3265/WEBNONMEMS,660.00,THE CENTRAL ASSOCIATION OF AGRICULTURAL VALUERS.
Children and Young Peoples Services,Head of Education and Skills,Transport,230008,Contract Hire,01/11/2023,4197678-E105SEP23,"2,385.00",REDACTED - PAYMENT TO INDIVIDUAL
Children and Young Peoples Services,Head of Education and Skills,Transport,230006,Contract Hire,01/11/2023,4197680-01450,"2,484.00",REDACTED - PAYMENT TO INDIVIDUAL
Children and Young Peoples Services,Head of Education and Skills,Transport,230008,Contract Hire,01/11/2023,4197680-01460,"1,628.00",REDACTED - PAYMENT TO INDIVIDUAL
Neighbourhoods and Climate Change,Community Protection,Third Party Payments,430100,Rendered by Private Contractors,01/11/2023,4197738-1052,"2,950.00",REDACTED - PAYMENT TO INDIVIDUAL
Adult and Health Services,Head of Adults,Supplies and Services,338066,Services,01/11/2023,4197747-ES/EM/RW909291/433580/525787,526.80,REDACTED - PAYMENT TO INDIVIDUAL
Resources BK0010,Legal & Democratic Services,Supplies and Services,338105,Services,01/11/2023,4197749-0092023CHIPJ-JL,789.00,REDACTED - PAYMENT TO INDIVIDUAL
Regeneration Economy and Growth,Culture Sport and Tourism,Supplies and Services,338047,Services,01/11/2023,4197764-CINDERELLAINSTALMENT1,"2,200.00",REDACTED - PAYMENT TO INDIVIDUAL
Regeneration Economy and Growth,Corporate Property and Land,Supplies and Services,304221,Equipment and Materials,01/11/2023,4197786-544957,"1,047.80",REDACTED - PAYMENT TO INDIVIDUAL
Neighbourhoods and Climate Change,Environmental Services,Supplies and Services,338066,Services,01/11/2023,4197834-INV-8085,"2,891.00",REDACTED - PAYMENT TO INDIVIDUAL
Children and Young Peoples Services,Head of Education and Skills,Transport,230006,Contract Hire,01/11/2023,4197857-231-F864,"3,776.76",REDACTED - PAYMENT TO INDIVIDUAL
Adult and Health Services,Head of Adults,Transport,230005,Contract Hire,01/11/2023,4197858-THORSEPT302023,"1,427.98",REDACTED - PAYMENT TO INDIVIDUAL
Children and Young Peoples Services,Head of Education and Skills,Transport,230008,Contract Hire,01/11/2023,4197860-A172-SEP23,675.00,REDACTED - PAYMENT TO INDIVIDUAL
Children and Young Peoples Services,Head of Education and Skills,Transport,230006,Contract Hire,01/11/2023,4197862-DCC/045/23,"3,364.58",REDACTED - PAYMENT TO INDIVIDUAL
Children and Young Peoples Services,Head of Childrens Social Care,Transport,235073,Public Transport,01/11/2023,4197862-PIG_177983,"1,225.50",REDACTED - PAYMENT TO INDIVIDUAL
Children and Young Peoples Services,Head of Education and Skills,Transport,230008,Contract Hire,01/11/2023,4197863-537,"2,430.00",REDACTED - PAYMENT TO INDIVIDUAL
Children and Young Peoples Services,Head of Education and Skills,Transport,230010,Contract Hire,01/11/2023,4198001-0923046,"3,102.50",REDACTED - PAYMENT TO INDIVIDUAL
Neighbourhoods and Climate Change,Highways,Supplies and Services,352001,Conference Expenses,01/11/2023,4197906-PSS/DURHAMC3/TR/47989,702.00,PROJECT SKILLS SOLUTIONS LTD.
Regeneration Economy and Growth,Planning & Housing,Premises,120009,Energy Costs,01/11/2023,319266-RES-10-2023-643,500.00,REDACTED - PAYMENT TO INDIVIDUAL
Regeneration Economy and Growth,Culture Sport and Tourism,Supplies and Services,338047,Services,01/11/2023,4197934-1,"2,200.00",REDACTED - PAYMENT TO INDIVIDUAL
Regeneration Economy and Growth,Planning & Housing,Supplies and Services,364501,Grants to Voluntary Organisations,01/11/2023,4197935-4100862118,"1,036.19",REDACTED - PAYMENT TO INDIVIDUAL
Children and Young Peoples Services,Head of Education and Skills,Transport,230006,Contract Hire,01/11/2023,4197968-E195SEPT,"1,800.00",REDACTED - PAYMENT TO INDIVIDUAL
Neighbourhoods and Climate Change,Highways,Third Party Payments,460224,Contract Payments,02/11/2023,4198182-INV-2082,"4,495.00",MICROPLOT LTD.
Neighbourhoods and Climate Change,Highways,Supplies and Services,304221,Equipment and Materials,02/11/2023,4198020-39198156,"1,722.61",AGGREGATE INDUSTRIES UK LTD.
Regeneration Economy and Growth,Culture Sport and Tourism,Supplies and Services,312013,Newspapers books and periodicals E312,02/11/2023,4198028-6951545,611.38,ASKEWS & HOLTS LIBRARY SERVICES LTD.
Regeneration Economy and Growth,Culture Sport and Tourism,Supplies and Services,312013,Newspapers books and periodicals E312,02/11/2023,4198028-6955121,894.76,ASKEWS & HOLTS LIBRARY SERVICES LTD.
Neighbourhoods and Climate Change,Highways,Construction work A908,908105,Construction work,02/11/2023,4198031-400178071,"392,225.08",BAM NUTTALL LTD.
Resources BK0010,Legal & Democratic Services,Supplies and Services,338043,Services,02/11/2023,4198038-10250433,624.00,BEVAN BRITTAN LLP.
Regeneration Economy and Growth,Corporate Property and Land,Supplies and Services,304221,Equipment and Materials,02/11/2023,4198039-194411,"1,631.15",BIDDLE AIR SYSTEMS LTD.
Regeneration Economy and Growth,Culture Sport and Tourism,Supplies and Services,324117,Provisions E324,02/11/2023,4198040-23906975,"1,148.87",BIDFOOD.
Regeneration Economy and Growth,Culture Sport and Tourism,Supplies and Services,324117,Provisions E324,02/11/2023,4198040-24128068,917.89,BIDFOOD.
Regeneration Economy and Growth,Culture Sport and Tourism,Supplies and Services,342051,Computers and Communications,02/11/2023,4198045-INV-13719,984.46,BRAMBLE HUB LTD.
Regeneration Economy and Growth,Planning & Housing,Supplies and Services,384199,Miscellaneous Expenses,02/11/2023,4198050-19491,720.00,BROWN & ILLINGWORTH LTD.
Regeneration Economy and Growth,Culture Sport and Tourism,Premises,120037,Energy Costs,02/11/2023,4198052-90571387,"1,399.20",CALOR GAS LTD.
Regeneration Economy and Growth,Corporate Property and Land,Third Party Payments,430100,Rendered by Private Contractors,02/11/2023,4198055-820,"6,297.37",CEILINGS DIRECT LTD.
Neighbourhoods and Climate Change,Highways,Supplies and Services,304358,Equipment and Materials,02/11/2023,4198057-117384,"10,516.25",CG ROBINSON & SONS LTD.
Regeneration Economy and Growth,Business Durham,Supplies and Services,336005,Advertising E336,02/11/2023,4198065-0104256393,"1,120.00",CLEAR CHANNEL UK LTD.
Children and Young Peoples Services,Head of Education and Skills,Third Party Payments,440999,Other third party payments E440,02/11/2023,4198069-CTA/DCC/MULTIPLY/R012,"9,600.00",COMMUNICATORS TRAINING ASSOCIATES LTD.
Resources BK0010,Digital Services,Vehicles Equipment Furniture and Fittings,912701,Computer equipment,02/11/2023,4198080-7402954246,"28,252.88",DELL COMPUTER CORPORATION LTD.
Neighbourhoods and Climate Change,Environmental Services,Transport,210057,Repair and Maintenance of Vehicles,02/11/2023,4198082-96446905,"1,414.84",DENNIS EAGLE LTD T/A TERBERG MATEC (UK) LTD.
Resources BK0010,Legal & Democratic Services,Supplies and Services,338042,Services,02/11/2023,4198084-359090/INVSRG300,"1,960.42",DERE STREET BARRISTERS.
Resources BK0010,Legal & Democratic Services,Supplies and Services,338042,Services,02/11/2023,4198084-383253/INVSRG299,"1,918.75",DERE STREET BARRISTERS.
Resources BK0010,Legal & Democratic Services,Supplies and Services,338042,Services,02/11/2023,4198084-392198/INVSRG297,583.33,DERE STREET BARRISTERS.
Children and Young Peoples Services,Head of Early Help Inclusion & Vulnerable Children.,Supplies and Services,304293,Equipment and Materials,02/11/2023,4198092-10011684,780.90,DURHAM & DARLINGTON FIRE & RESCUE.
Neighbourhoods and Climate Change,Partnerships & Community Engagement Div.,Supplies and Services,384086,Miscellaneous Expenses,02/11/2023,4198095-VOUCHER23NB-DCTY021,"4,595.00",DURHAM CITY GYMNASTICS CLUB CIC.
Resources BK0010,Legal & Democratic Services,Supplies and Services,338043,Services,02/11/2023,4198097-157-0448648,"55,727.59",DWF LLP.
Neighbourhoods and Climate Change,Partnerships & Community Engagement Div.,Cap Exp on Grants & Other Financial Assistance (REFCUS),918004,Contributions to other bodies 918004,02/11/2023,4198105-VOUCHER22NB-TEES017,"1,408.00",ETHERLEY PARISH COUNCIL.
Neighbourhoods and Climate Change,Partnerships & Community Engagement Div.,Cap Exp on Grants & Other Financial Assistance (REFCUS),918004,Contributions to other bodies 918004,02/11/2023,4198111-VOUCHER23AB-GAMP004,"14,250.00",FIVE ACRES COMMUNITY GARDEN LTD.
Neighbourhoods and Climate Change,Environmental Services,Third Party Payments,430100,Rendered by Private Contractors,02/11/2023,4198114-120422,"4,929.95",FR SHARROCK LTD.
Neighbourhoods and Climate Change,Highways,Supplies and Services,304358,Equipment and Materials,02/11/2023,4198123-81879,980.00,GEORGE VARDY HAULAGE.
Children and Young Peoples Services,Head of Early Help Inclusion & Vulnerable Children.,Premises,145023,Cleaning and Domestic Supplies,02/11/2023,4198127-06/242719,602.20,GREENHAM TRADING LTD.
Regeneration Economy and Growth,Culture Sport and Tourism,Premises,145023,Cleaning and Domestic Supplies,02/11/2023,4198127-06/242728,"1,451.01",GREENHAM TRADING LTD.
Regeneration Economy and Growth,Culture Sport and Tourism,Fees,901002,Consultants fees 901002,02/11/2023,4198131-3757,"44,739.58",HISTORIC PROPERTY RESTORATION LTD.
Dedicated Schools Grant BG0015,DSG High Needs Block,Supplies and Services,304259,Equipment and Materials,02/11/2023,4198135-RES-11-2023-003,"14,583.40",HOPE WOOD ACADEMY.
Adult and Health Services,Public Health CC0450,Third Party Payments,460803,Contract Payments,02/11/2023,4198139-SI-HK-001519,"374,752.00",HUMANKIND CHARITY.
Adult and Health Services,Commissioning inc Supporting People,Third Party Payments,440999,Other third party payments E440,02/11/2023,4198143-919,"11,000.00",INVESTING IN CHILDREN CIC.
Neighbourhoods and Climate Change,Highways,Third Party Payments,430127,Rendered by Private Contractors,02/11/2023,4198145-1327/2023,917.50,J & JG GILL & SONS LTD.
Neighbourhoods and Climate Change,Highways,Supplies and Services,304358,Equipment and Materials,02/11/2023,4198146-5307003,"1,390.00",JA GILSON (AGRICULTURAL CONTRACTORS) LTD.
Neighbourhoods and Climate Change,Highways,Third Party Payments,430100,Rendered by Private Contractors,02/11/2023,4198147-28467,948.23,JACK COUPE & SONS LTD T/A COUPE LINE.
Regeneration Economy and Growth,Corporate Property and Land,Supplies and Services,304221,Equipment and Materials,02/11/2023,4198155-0120/00040661,"2,390.50",JT DOVE LTD.
Regeneration Economy and Growth,Corporate Property and Land,Supplies and Services,304221,Equipment and Materials,02/11/2023,4198155-0213/01040969,"1,204.44",JT DOVE LTD.
Regeneration Economy and Growth,Corporate Property and Land,Supplies and Services,304221,Equipment and Materials,02/11/2023,4198155-0303/01043820,"1,639.23",JT DOVE LTD.
Regeneration Economy and Growth,Transport and Contracted Services,Supplies and Services,328041,Clothing uniforms and laundry E328,02/11/2023,4198159-104416,"1,000.00",KING SCIENTIFIC.
Neighbourhoods and Climate Change,Highways,Supplies and Services,304358,Equipment and Materials,02/11/2023,4198175-MS4617,"1,980.00",M SPENCE SURFACING LTD.
Adult and Health Services,Head of Adults,Third Party Payments,474101,Purchase of Care,02/11/2023,4198178-BLOCKBEDS-NOV23,"27,515.31",MALHOTRA CARE HOMES LTD.
Adult and Health Services,Head of Adults,Third Party Payments,474101,Purchase of Care,02/11/2023,4198178-BLOCKBEDS-RNCC-NOV23,"7,532.91",MALHOTRA CARE HOMES LTD.
Adult and Health Services,Head of Adults,Third Party Payments,474101,Purchase of Care,02/11/2023,4198180-I-23-6458428,"5,205.18",MEMORY LANE CARE HOMES LTD.
Adult and Health Services,Head of Adults,Third Party Payments,474101,Purchase of Care,02/11/2023,4198180-I-23-8095820,"17,936.21",MEMORY LANE CARE HOMES LTD.
Adult and Health Services,Head of Adults,Third Party Payments,474101,Purchase of Care,02/11/2023,4198180-I-23-9094690,"4,520.57",MEMORY LANE CARE HOMES LTD.
Adult and Health Services,Head of Adults,Third Party Payments,474101,Purchase of Care,02/11/2023,4198180-I-23-9340388,629.66,MEMORY LANE CARE HOMES LTD.
Regeneration Economy and Growth,Corporate Property and Land,Third Party Payments,430100,Rendered by Private Contractors,02/11/2023,4198181-ELMHC-7943,599.00,MER FLEET SERVICES LTD.
Adult and Health Services,Commissioning inc Supporting People,Supplies and Services,338099,Services,02/11/2023,4198189-INV-0769,"109,200.00",MY DEMENTIA IMPROVEMENT NETWORK LTD.
Regeneration Economy and Growth,Planning & Housing,Premises,135005,Water Services,02/11/2023,4198201-915548240,619.00,NORTHUMBRIAN WATER LTD.
Children and Young Peoples Services,Head of Early Help Inclusion & Vulnerable Children.,Third Party Payments,410037,Rendered by Other Local Authorities,02/11/2023,4198205-INV-9177,"1,895.88",NUDGE EDUCATION LTD.
Regeneration Economy and Growth,Corporate Property and Land,Supplies and Services,304221,Equipment and Materials,02/11/2023,4198210-3659,"1,964.00",PARAMOUNT CEILINGS & PARTITIONS LTD.
Regeneration Economy and Growth,Transport and Contracted Services,Construction work A908,908105,Construction work,02/11/2023,4198212-231004-288,"9,300.00",PARKTHATBIKE LTD.
Neighbourhoods and Climate Change,Partnerships & Community Engagement Div.,Supplies and Services,384086,Miscellaneous Expenses,02/11/2023,4198222-VOUCHER23NB-EDUR038,"3,650.00",PETERLEE TOWN COUNCIL.
Neighbourhoods and Climate Change,Partnerships & Community Engagement Div.,Supplies and Services,384086,Miscellaneous Expenses,02/11/2023,4198222-VOUCHER23NB-EDUR039,"1,500.00",PETERLEE TOWN COUNCIL.
Regeneration Economy and Growth,Corporate Property and Land,Supplies and Services,304221,Equipment and Materials,02/11/2023,4198224-468796,785.81,PEW ELECTRICAL DISTRIBUTORS LTD.
Children and Young Peoples Services,Head of Education and Skills,Supplies and Services,384199,Miscellaneous Expenses,02/11/2023,4198225-23/24-02,742.00,PGI SMITH SOLUTIONS LTD.
Children and Young Peoples Services,Head of Education and Skills,Transport,230007,Contract Hire,02/11/2023,4198226-57489,"1,184.00",PHOENIX TAXIS T/A PRATT`S TAXIS.
Neighbourhoods and Climate Change,Partnerships & Community Engagement Div.,Cap Exp on Grants & Other Financial Assistance (REFCUS),918004,Contributions to other bodies 918004,02/11/2023,4198229-VOUCHER20NB-GAMP031,"34,676.00",PIONEERING CARE PARTNERSHIP.
Neighbourhoods and Climate Change,Highways,Supplies and Services,384899,Miscellaneous Expenses,02/11/2023,4198230-RES-10-2023-740,682.50,PITTINGTON PARISH COUNCIL.
Adult and Health Services,Head of Adults,Third Party Payments,479102,Purchase of Care,02/11/2023,4198232-INV-0211,"7,561.08",POSITIVE CARE & SUPPORT LTD.
Resources BK0010,Digital Services,Supplies and Services,342033,Computers and Communications,02/11/2023,4198239-OP/I742211,588.14,PROBRAND LTD.
Adult and Health Services,Public Health CC0450,Premises,145009,Cleaning and Domestic Supplies,02/11/2023,4198243-INV-6646,"1,498.38",QUALITY CLEANING SERVICES (NORTHERN) LTD.
Regeneration Economy and Growth,Planning & Housing,Supplies and Services,384999,Miscellaneous Expenses,02/11/2023,4198246-TR89474,"1,500.00",READY TO RENT MANAGEMENT LLP.
Neighbourhoods and Climate Change,Environmental Services,Transport,210057,Repair and Maintenance of Vehicles,02/11/2023,4198249-712919,585.50,RICKERBY LTD.
Neighbourhoods and Climate Change,Highways,Supplies and Services,304358,Equipment and Materials,02/11/2023,4198254-3819,"1,125.20",S & R LANDSCAPES.
Neighbourhoods and Climate Change,Highways,Supplies and Services,304358,Equipment and Materials,02/11/2023,4198254-3827,"1,349.20",S & R LANDSCAPES.
Neighbourhoods and Climate Change,Highways,Supplies and Services,304358,Equipment and Materials,02/11/2023,4198254-3828,"3,570.00",S & R LANDSCAPES.
Neighbourhoods and Climate Change,Highways,Supplies and Services,304358,Equipment and Materials,02/11/2023,4198254-3830,"1,224.50",S & R LANDSCAPES.
Neighbourhoods and Climate Change,Highways,Supplies and Services,304358,Equipment and Materials,02/11/2023,4198254-3832,"1,288.20",S & R LANDSCAPES.
Neighbourhoods and Climate Change,Highways,Supplies and Services,304358,Equipment and Materials,02/11/2023,4198254-3833,"1,204.80",S & R LANDSCAPES.
Neighbourhoods and Climate Change,Highways,Supplies and Services,304358,Equipment and Materials,02/11/2023,4198254-3836,"1,470.50",S & R LANDSCAPES.
Neighbourhoods and Climate Change,Highways,Supplies and Services,304358,Equipment and Materials,02/11/2023,4198254-3837,"1,349.20",S & R LANDSCAPES.
Neighbourhoods and Climate Change,Highways,Supplies and Services,304358,Equipment and Materials,02/11/2023,4198254-3838,"1,349.20",S & R LANDSCAPES.
Neighbourhoods and Climate Change,Highways,Supplies and Services,304358,Equipment and Materials,02/11/2023,4198254-3844,"1,264.50",S & R LANDSCAPES.
Neighbourhoods and Climate Change,Highways,Supplies and Services,304358,Equipment and Materials,02/11/2023,4198254-3851,"1,487.00",S & R LANDSCAPES.
Neighbourhoods and Climate Change,Highways,Supplies and Services,304358,Equipment and Materials,02/11/2023,4198254-3853,"1,080.00",S & R LANDSCAPES.
Neighbourhoods and Climate Change,Highways,Supplies and Services,304358,Equipment and Materials,02/11/2023,4198254-3854,"1,349.20",S & R LANDSCAPES.
Neighbourhoods and Climate Change,Highways,Supplies and Services,304358,Equipment and Materials,02/11/2023,4198254-3855,"1,612.60",S & R LANDSCAPES.
Neighbourhoods and Climate Change,Highways,Supplies and Services,304358,Equipment and Materials,02/11/2023,4198254-3856,"1,053.00",S & R LANDSCAPES.
Neighbourhoods and Climate Change,Highways,Supplies and Services,304358,Equipment and Materials,02/11/2023,4198254-3857,851.00,S & R LANDSCAPES.
Neighbourhoods and Climate Change,Highways,Supplies and Services,304358,Equipment and Materials,02/11/2023,4198254-3858,"1,662.60",S & R LANDSCAPES.
Neighbourhoods and Climate Change,Highways,Supplies and Services,304358,Equipment and Materials,02/11/2023,4198254-3859,"1,349.20",S & R LANDSCAPES.
Neighbourhoods and Climate Change,Highways,Supplies and Services,304358,Equipment and Materials,02/11/2023,4198254-3860,"1,533.50",S & R LANDSCAPES.
Neighbourhoods and Climate Change,Highways,Supplies and Services,304358,Equipment and Materials,02/11/2023,4198254-3861,"1,314.00",S & R LANDSCAPES.
Neighbourhoods and Climate Change,Highways,Supplies and Services,304358,Equipment and Materials,02/11/2023,4198254-3862,"1,273.50",S & R LANDSCAPES.
Neighbourhoods and Climate Change,Partnerships & Community Engagement Div.,Cap Exp on Grants & Other Financial Assistance (REFCUS),918004,Contributions to other bodies 918004,02/11/2023,4198255-VOUCHER23NB-CHES018,"4,000.00",SACRISTON COMMUNITY ASSOCIATION.
Neighbourhoods and Climate Change,Environmental Services,Transport,210057,Repair and Maintenance of Vehicles,02/11/2023,4198257-2024.1000000825,654.94,SCARAB SWEEPERS LTD.
Chief Executives Office,Communications Management,Supplies and Services,332029,Printing Stationery and Gen Off Exps,02/11/2023,4198265-27097,555.00,SIMPLY STRIPES (THE SIGNMAKERS) LTD.
Resources BK0010,Digital Services,Supplies and Services,342051,Computers and Communications,02/11/2023,4198266-INVUK1042581,"4,738.16",SOFTCAT PLC.
Resources BK0010,Digital Services,Supplies and Services,304303,Equipment and Materials,02/11/2023,4198269-146817,778.94,SWITCHSHOP LTD.
Regeneration Economy and Growth,Corporate Property and Land,Supplies and Services,304221,Equipment and Materials,02/11/2023,4198270-3735,"1,021.00",T MANNERS & SONS LTD.
Regeneration Economy and Growth,Corporate Property and Land,Supplies and Services,384199,Miscellaneous Expenses,02/11/2023,4198279-00111603,"1,954.05",THOMAS TELFORD LTD.
Regeneration Economy and Growth,Corporate Property and Land,Supplies and Services,304221,Equipment and Materials,02/11/2023,4198281-40334,"2,539.00",TOTAL PUMP SOLUTIONS LTD.
Resources BK0010,Digital Services,Supplies and Services,304303,Equipment and Materials,02/11/2023,4198283-144609,576.10,TP ELECTRICAL SUPPLIES & FIXINGS LTD.
Neighbourhoods and Climate Change,Environmental Services,Transport,230720,Contract Hire,02/11/2023,4198284-MI/0045696/01,"10,884.28",TP LEASING LTD.*
Neighbourhoods and Climate Change,Environmental Services,Transport,230720,Contract Hire,02/11/2023,4198284-MI/0045697/01,"6,508.13",TP LEASING LTD.*
Regeneration Economy and Growth,Corporate Property and Land,Supplies and Services,304221,Equipment and Materials,02/11/2023,4198285-11177508,922.71,TRADECHOICE DISTRIBUTION LTD.
Regeneration Economy and Growth,Corporate Property and Land,Supplies and Services,304221,Equipment and Materials,02/11/2023,4198286-11182635,779.50,TRADECHOICE DISTRIBUTION LTD.
Resources BK0010,Legal & Democratic Services,Supplies and Services,338042,Services,02/11/2023,4198287-303886/INVEM86,"1,280.00",TRINITY CHAMBERS.
Resources BK0010,Legal & Democratic Services,Supplies and Services,338042,Services,02/11/2023,4198287-307466/INVJCT214,750.00,TRINITY CHAMBERS.
Resources BK0010,Legal & Democratic Services,Supplies and Services,338042,Services,02/11/2023,4198287-309212/INVTS822,720.00,TRINITY CHAMBERS.
Regeneration Economy and Growth,Planning & Housing,Supplies and Services,304245,Equipment and Materials,02/11/2023,4198288-CD970035383,625.00,TUNSTALL HEALTHCARE (UK) LTD.
Regeneration Economy and Growth,Corporate Property and Land,Supplies and Services,304221,Equipment and Materials,02/11/2023,4198290-5061149,"1,905.75",UK HEALTH SECURITY AGENCY (UKHSA).
Resources BK0010,Digital Services,Supplies and Services,344015,Telephones,02/11/2023,4198294-SK86782,539.10,VODAFONE CORPORATE LTD.
Resources BK0010,Digital Services,Supplies and Services,344015,Telephones,02/11/2023,4198294-SK86784,"1,813.00",VODAFONE CORPORATE LTD.
Resources BK0010,Digital Services,Supplies and Services,344015,Telephones,02/11/2023,4198294-SK89465,"1,813.00",VODAFONE CORPORATE LTD.
Dedicated Schools Grant BG0015,DSG Schools Block,Supplies and Services,304403,Equipment and Materials,02/11/2023,4198300-SI-2860648,512.01,YORKSHIRE PURCHASING ORGANISATION.
Neighbourhoods and Climate Change,Partnerships & Community Engagement Div.,Cap Exp on Grants & Other Financial Assistance (REFCUS),918004,Contributions to other bodies 918004,02/11/2023,4198059-VOUCHER23MTVF-3TWN003,"15,000.00",CHARITY SHOP 4 U.
Regeneration Economy and Growth,Culture Sport and Tourism,Supplies and Services,338047,Services,02/11/2023,4198149-REIVERBISHOPAUCKLAND,"1,224.00",REDACTED - PAYMENT TO INDIVIDUAL
Regeneration Economy and Growth,Corporate Property and Land,Cap Exp on Grants & Other Financial Assistance (REFCUS),918004,Contributions to other bodies 918004,02/11/2023,4198153-RES-10-2023-356.,"7,815.00",REDACTED - PAYMENT TO INDIVIDUAL
Children and Young Peoples Services,Head of Childrens Social Care,Third Party Payments,486020,Service level agreements E486,02/11/2023,4198241-INV958,"1,587.00",PUREST SUPPORT LTD.
Children and Young Peoples Services,Head of Childrens Social Care,Third Party Payments,486020,Service level agreements E486,02/11/2023,4198241-INV988,"1,476.00",PUREST SUPPORT LTD.
Regeneration Economy and Growth,Business Durham,Supplies and Services,338099,Services,02/11/2023,4198242-750A,500.00,PWG CONNECTIONS LTD.
Children and Young Peoples Services,Head of Childrens Social Care,Supplies and Services,338045,Services,03/11/2023,4198453-5631,885.00,REDACTED - PAYMENT TO INDIVIDUAL
Neighbourhoods and Climate Change,Environmental Services,Supplies and Services,384700,Miscellaneous Expenses,03/11/2023,4198460-NEI-EXP-11-2023-002,"3,156.30",NEWTON HALL ALLOTMENTS ASSOCIATION.
Children and Young Peoples Services,Head of Education and Skills,Transport,230010,Contract Hire,03/11/2023,4198304-0606,"3,616.22",ABC & OUSTON CABS.
Children and Young Peoples Services,Head of Education and Skills,Transport,230010,Contract Hire,03/11/2023,4198304-0607,"3,956.02",ABC & OUSTON CABS.
Children and Young Peoples Services,Head of Early Help Inclusion & Vulnerable Children.,Premises,106080,Centrally Controlled Rep and Maint,03/11/2023,4198305-0000014295,595.00,ACCORDIAL LTD.
Regeneration Economy and Growth,Corporate Property and Land,Premises,108099,Service Repairs and Maintenance,03/11/2023,4198314-0000039183,700.00,AQUAJET DRAIN CLEANING LTD.
Neighbourhoods and Climate Change,Highways,Supplies and Services,304358,Equipment and Materials,03/11/2023,4198315-0000039179,"1,982.50",AQUAJET DRAIN CLEANING LTD.
Neighbourhoods and Climate Change,Highways,Supplies and Services,304358,Equipment and Materials,03/11/2023,4198315-0000039234,"2,925.00",AQUAJET DRAIN CLEANING LTD.
Neighbourhoods and Climate Change,Highways,Supplies and Services,304358,Equipment and Materials,03/11/2023,4198315-0000039263,"2,925.00",AQUAJET DRAIN CLEANING LTD.
Regeneration Economy and Growth,Corporate Property and Land,Third Party Payments,430100,Rendered by Private Contractors,03/11/2023,4198319-2191-2023,"1,107.00",AWR ROOFING & ALUMIN RAINWATER SYSTEMS LTD.
Neighbourhoods and Climate Change,Environmental Services,Supplies and Services,384199,Miscellaneous Expenses,03/11/2023,4198320-INV160121,600.12,AZTEC CHEMICALS LTD.
Regeneration Economy and Growth,Culture Sport and Tourism,Supplies and Services,384302,Miscellaneous Expenses,03/11/2023,4198322-INV-0020,500.00,BACCANALIA FOR CULTURE CIC.
Regeneration Economy and Growth,Culture Sport and Tourism,Supplies and Services,312013,Newspapers books and periodicals E312,03/11/2023,4198325-20591,"5,830.00",BIBLIOGRAPHIC DATA SERVICES LTD (BDS).
Adult and Health Services,Public Health CC0450,Third Party Payments,460803,Contract Payments,03/11/2023,4198326-1450,"2,690.00",BLUEGRASS RESEARCH LTD.
Children and Young Peoples Services,Head of Early Help Inclusion & Vulnerable Children.,Supplies and Services,384199,Miscellaneous Expenses,03/11/2023,4198331-21660257,"3,124.67",BROOK STREET UK LTD T/A BS SOCIAL CARE.
Adult and Health Services,Head of Adults,Supplies and Services,338364,Services,03/11/2023,4198334-92573,"1,682.49",CARE ABILITY HEALTHCARE LTD.
Neighbourhoods and Climate Change,Environmental Services,Supplies and Services,304259,Equipment and Materials,03/11/2023,4198335-438212,620.00,CARRS BILLINGTON AGRICULTURE.
Regeneration Economy and Growth,Corporate Property and Land,Third Party Payments,430100,Rendered by Private Contractors,03/11/2023,4198337-11905,900.00,CATHEDRAL LOCK & SAFE SERVICES LTD.
Regeneration Economy and Growth,Culture Sport and Tourism,Premises,106082,Centrally Controlled Rep and Maint,03/11/2023,4198337-11918,834.06,CATHEDRAL LOCK & SAFE SERVICES LTD.
Children and Young Peoples Services,Head of Education and Skills,Premises,106082,Centrally Controlled Rep and Maint,03/11/2023,4198337-11969,"1,669.37",CATHEDRAL LOCK & SAFE SERVICES LTD.
Children and Young Peoples Services,Head of Education and Skills,Premises,106082,Centrally Controlled Rep and Maint,03/11/2023,4198337-11970,"3,021.82",CATHEDRAL LOCK & SAFE SERVICES LTD.
Children and Young Peoples Services,Head of Early Help Inclusion & Vulnerable Children.,Premises,106082,Centrally Controlled Rep and Maint,03/11/2023,4198337-11972,"1,194.93",CATHEDRAL LOCK & SAFE SERVICES LTD.
Children and Young Peoples Services,Head of Education and Skills,Premises,106082,Centrally Controlled Rep and Maint,03/11/2023,4198337-11994,"1,522.50",CATHEDRAL LOCK & SAFE SERVICES LTD.
Children and Young Peoples Services,Head of Childrens Social Care,Supplies and Services,338066,Services,03/11/2023,4198340-INV-2631,"1,430.00",CHILD & FAMILY SOLUTIONS LTD.
Resources BK0010,Legal & Democratic Services,Supplies and Services,352001,Conference Expenses,03/11/2023,4198348-83,840.00,COUNTY COUNCILS NETWORK.
Children and Young Peoples Services,Head of Early Help Inclusion & Vulnerable Children.,Supplies and Services,324500,Provisions E324,03/11/2023,4198352-25473,"21,788.71",CREATIVE MANAGEMENT SERVICES LTD.
Regeneration Economy and Growth,Corporate Property and Land,Fees,901002,Consultants fees 901002,03/11/2023,4198353-8/10,"1,014.30",CSN CONSULTING LLP.*
Adult and Health Services,Public Health CC0450,Third Party Payments,460803,Contract Payments,03/11/2023,4198355-8072,"11,750.00",CYBER MEDIA SOLUTIONS LTD.
Adult and Health Services,Head of Adults,Third Party Payments,478151,Purchase of Care,03/11/2023,4198357-INV-1683,"2,906.75",DEACONSTAR LTD.
Adult and Health Services,Head of Adults,Third Party Payments,478151,Purchase of Care,03/11/2023,4198357-INV-1684,"3,810.24",DEACONSTAR LTD.
Resources BK0010,Digital Services,Vehicles Equipment Furniture and Fittings,912701,Computer equipment,03/11/2023,4198360-7402954681,"9,440.00",DELL COMPUTER CORPORATION LTD.
Regeneration Economy and Growth,Corporate Property and Land,Supplies and Services,304221,Equipment and Materials,03/11/2023,4198371-059-326570,"1,236.30",EDMUNDSON ELECTRICAL LTD.
Regeneration Economy and Growth,Corporate Property and Land,Supplies and Services,304221,Equipment and Materials,03/11/2023,4198371-059-326603,761.29,EDMUNDSON ELECTRICAL LTD.
Regeneration Economy and Growth,Corporate Property and Land,Supplies and Services,304221,Equipment and Materials,03/11/2023,4198371-059-326609,"3,390.00",EDMUNDSON ELECTRICAL LTD.
Resources - C A C,Resources - C A C- Level C,Third Party Payments,440999,Other third party payments E440,03/11/2023,4198374-4100839112,"100,000.00",FAMILY FUND TRADING LTD T/A FAMILY FUND BUSINESS SERVICES.
Regeneration Economy and Growth,Corporate Property and Land,Supplies and Services,304221,Equipment and Materials,03/11/2023,4198390-4777219,"10,729.06",HEADLAM (FLOORCOVERING DISTRIBUTORS) LTD.
Regeneration Economy and Growth,Business Durham,Premises,106082,Centrally Controlled Rep and Maint,03/11/2023,4198392-7081048273,836.33,HONEYWELL NOVAR SYSTEMS LTD.
Regeneration Economy and Growth,Business Durham,Premises,106082,Centrally Controlled Rep and Maint,03/11/2023,4198392-7081054661,"4,770.82",HONEYWELL NOVAR SYSTEMS LTD.
Neighbourhoods and Climate Change,Environmental Services,Premises,106082,Centrally Controlled Rep and Maint,03/11/2023,4198392-7081055310,710.20,HONEYWELL NOVAR SYSTEMS LTD.
Regeneration Economy and Growth,Corporate Property and Land,Supplies and Services,304221,Equipment and Materials,03/11/2023,4198395-A38/0173221,"3,781.30",HOWDENS JOINERY LTD.
Regeneration Economy and Growth,Transport and Contracted Services,Third Party Payments,430100,Rendered by Private Contractors,03/11/2023,4198400-7980,"1,026.66",INLEAF LTD.
Resources BK0010,Digital Services,Stock A926,926900,Stock in hand-Inventory system,03/11/2023,4198401-2100734308,"1,041.51",INSIGHT DIRECT (UK) LTD.
Neighbourhoods and Climate Change,Highways,Stock A926,926900,Stock in hand-Inventory system,03/11/2023,4198402-905345,"2,788.80",INSTARMAC GROUP PLC.
Neighbourhoods and Climate Change,Highways,Stock A926,926900,Stock in hand-Inventory system,03/11/2023,4198402-909214,"2,788.80",INSTARMAC GROUP PLC.
Children and Young Peoples Services,Head of Education and Skills,Supplies and Services,342051,Computers and Communications,03/11/2023,4198403-INV575836,"3,583.04",INSTRUCTURE GLOBAL LTD.
Regeneration Economy and Growth,Corporate Property and Land,Supplies and Services,304358,Equipment and Materials,03/11/2023,4198412-32659,"1,365.00",JOHN R BUTTERFIELD LTD.
Neighbourhoods and Climate Change,Highways,Supplies and Services,304358,Equipment and Materials,03/11/2023,4198412-32704,"3,117.50",JOHN R BUTTERFIELD LTD.
Neighbourhoods and Climate Change,Highways,Supplies and Services,304358,Equipment and Materials,03/11/2023,4198412-32710,"1,568.80",JOHN R BUTTERFIELD LTD.
Neighbourhoods and Climate Change,Highways,Stock A926,926900,Stock in hand-Inventory system,03/11/2023,4198416-0113/00052949,"1,741.00",JT DOVE LTD.
Neighbourhoods and Climate Change,Highways,Stock A926,926900,Stock in hand-Inventory system,03/11/2023,4198416-0113/00052952,"1,262.40",JT DOVE LTD.
Neighbourhoods and Climate Change,Highways,Supplies and Services,304358,Equipment and Materials,03/11/2023,4198420-4724,"1,163.50",KEVIN SNOWDON GROUNDWORKS LTD.
Neighbourhoods and Climate Change,Highways,Supplies and Services,304358,Equipment and Materials,03/11/2023,4198420-4732,943.50,KEVIN SNOWDON GROUNDWORKS LTD.
Neighbourhoods and Climate Change,Highways,Supplies and Services,304358,Equipment and Materials,03/11/2023,4198420-4733,943.50,KEVIN SNOWDON GROUNDWORKS LTD.
Neighbourhoods and Climate Change,Highways,Supplies and Services,304358,Equipment and Materials,03/11/2023,4198420-4734,"1,145.50",KEVIN SNOWDON GROUNDWORKS LTD.
Neighbourhoods and Climate Change,Highways,Supplies and Services,304358,Equipment and Materials,03/11/2023,4198420-4735,925.00,KEVIN SNOWDON GROUNDWORKS LTD.
Neighbourhoods and Climate Change,Environmental Services,Premises,108135,Service Repairs and Maintenance,03/11/2023,4198427-126168,531.40,LANDSCAPE SUPPLY COMPANY.
Children and Young Peoples Services,Head of Education and Skills,Construction work A908,908105,Construction work,03/11/2023,4198436-189716,"4,200.00",LUCION ENVIRONMENTAL LLP LTD.
Children and Young Peoples Services,Head of Education and Skills,Construction work A908,908105,Construction work,03/11/2023,4198436-189718,"3,360.00",LUCION ENVIRONMENTAL LLP LTD.
Regeneration Economy and Growth,Corporate Property and Land,Premises,108099,Service Repairs and Maintenance,03/11/2023,4198436-190608,"2,520.00",LUCION ENVIRONMENTAL LLP LTD.
Adult and Health Services,Commissioning inc Supporting People,Supplies and Services,338099,Services,03/11/2023,4198445-1209,"18,281.25",MOBILISE CARE LTD.
Children and Young Peoples Services,Head of Childrens Social Care,Supplies and Services,338043,Services,03/11/2023,4198446-F1452,"4,113.09",MORTONS LAW LTD.
Children and Young Peoples Services,Head of Education and Skills,Supplies and Services,384956,Miscellaneous Expenses,03/11/2023,4198448-644111,611.30,MPLC MOTION PICTURE LICENSING COMPANY LTD.
Neighbourhoods and Climate Change,Highways,Supplies and Services,304358,Equipment and Materials,03/11/2023,4198457-NC/234/BW,"1,100.00",NEDCO CONTRACTS (NE) LTD.
Resources BK0010,HR & Employee Services,Supplies and Services,384150,Miscellaneous Expenses,03/11/2023,4198459-3010053781,"5,250.00",NEWCASTLE UPON TYNE HOSPITALS NHS FOUNDATION TRUST.
Regeneration Economy and Growth,Culture Sport and Tourism,Supplies and Services,304259,Equipment and Materials,03/11/2023,4198461-27283139,"3,511.21",NISBETS PLC.
Regeneration Economy and Growth,Corporate Property and Land,Supplies and Services,304221,Equipment and Materials,03/11/2023,4198473-DT218063,"1,996.50",PARK ELECTRICAL DISTRIBUTORS LTD.
Regeneration Economy and Growth,Corporate Property and Land,Supplies and Services,304221,Equipment and Materials,03/11/2023,4198473-XL308676,600.00,PARK ELECTRICAL DISTRIBUTORS LTD.
Neighbourhoods and Climate Change,Highways,Stock A926,926900,Stock in hand-Inventory system,03/11/2023,4198473-XL308701,833.00,PARK ELECTRICAL DISTRIBUTORS LTD.
Regeneration Economy and Growth,Corporate Property and Land,Premises,108099,Service Repairs and Maintenance,03/11/2023,4198476-105457,675.00,PETERLEE FIRE CO LTD.
Regeneration Economy and Growth,Business Durham,Premises,106082,Centrally Controlled Rep and Maint,03/11/2023,4198482-17326,975.00,PREMIER CELL FIT T/A LIVEWIRE GATES & DOORS.
Children and Young Peoples Services,Head of Education and Skills,Transport,230008,Contract Hire,03/11/2023,4198492-SI-22182-E063,"3,390.96",RAPID MINIBUSES.
Adult and Health Services,Head of Adults,Transport,230005,Contract Hire,03/11/2023,4198492-SI-22183-EAS003,"3,270.69",RAPID MINIBUSES.
Adult and Health Services,Head of Adults,Transport,230005,Contract Hire,03/11/2023,4198492-SI-22184-EAS213,"1,680.00",RAPID MINIBUSES.
Adult and Health Services,Head of Adults,Transport,230005,Contract Hire,03/11/2023,4198492-SI-22185-EAS093,"1,582.68",RAPID MINIBUSES.
Resources - C A C,Resources - C A C- Level C,Supplies and Services,338099,Services,03/11/2023,4198503-SRM23-INV066,"3,980.00",SECURITY RISK MANAGEMENT LTD.
Regeneration Economy and Growth,Culture Sport and Tourism,Premises,106080,Centrally Controlled Rep and Maint,03/11/2023,4198508-1957450,"4,160.00",SHENTON GLOBAL LTD T/A SHENTON GROUP.
Children and Young Peoples Services,Head of Education and Skills,Supplies and Services,338027,Services,03/11/2023,4198515-11102023,830.00,SPECIALISED TRANSPORT ADVISORY NETWORK.
Regeneration Economy and Growth,Culture Sport and Tourism,Supplies and Services,338047,Services,03/11/2023,4198516-00399620,"3,080.05",STAGE ELECTRICS PARTNERSHIP LTD.
Regeneration Economy and Growth,Corporate Property and Land,Third Party Payments,430100,Rendered by Private Contractors,03/11/2023,4198518-19586,"3,363.50",STEADFAST SECURITY SOLUTIONS LTD.
Resources BK0010,Digital Services,Supplies and Services,342033,Computers and Communications,03/11/2023,4198520-146863,"2,489.88",SWITCHSHOP LTD.
Regeneration Economy and Growth,Corporate Property and Land,Supplies and Services,304221,Equipment and Materials,03/11/2023,4198523-1083088,"3,314.39",T CROSSLING & CO LTD.
Regeneration Economy and Growth,Corporate Property and Land,Supplies and Services,304221,Equipment and Materials,03/11/2023,4198524-3799,"1,095.00",T MANNERS & SONS LTD.
Adult and Health Services,Commissioning inc Supporting People,Third Party Payments,479101,Purchase of Care,03/11/2023,4198527-4810023251,"20,829.50",TEES ESK & WEAR VALLEYS NHS FOUNDATION TRUST.
Adult and Health Services,Commissioning inc Supporting People,Third Party Payments,479101,Purchase of Care,03/11/2023,4198527-4810023252,"21,871.00",TEES ESK & WEAR VALLEYS NHS FOUNDATION TRUST.
Neighbourhoods and Climate Change,Environmental Services,Supplies and Services,384199,Miscellaneous Expenses,03/11/2023,4198536-0960,"2,300.00",THE SKILL MILL LTD.
Regeneration Economy and Growth,Culture Sport and Tourism,Supplies and Services,328041,Clothing uniforms and laundry E328,03/11/2023,4198538-NSIN00102280,"1,024.64",THOMAS OWEN & SONS (NEWCASTLE) LTD.
Regeneration Economy and Growth,Corporate Property and Land,Supplies and Services,304221,Equipment and Materials,03/11/2023,4198541-40345,"2,539.00",TOTAL PUMP SOLUTIONS LTD.
Regeneration Economy and Growth,Corporate Property and Land,Supplies and Services,304221,Equipment and Materials,03/11/2023,4198545-11181307,628.11,TRADECHOICE DISTRIBUTION LTD.
Resources BK0010,Legal & Democratic Services,Supplies and Services,338042,Services,03/11/2023,4198547-305488/INVTB24,"1,700.00",TRINITY CHAMBERS.
Regeneration Economy and Growth,Corporate Property and Land,Premises,108099,Service Repairs and Maintenance,03/11/2023,4198548-DLB26933,540.00,TYCO FIRE & INTEGRATED SOLUTIONS (UK) LTD.
Neighbourhoods and Climate Change,Environmental Services,Premises,106080,Centrally Controlled Rep and Maint,03/11/2023,4198548-DLB27103,"1,319.70",TYCO FIRE & INTEGRATED SOLUTIONS (UK) LTD.
Regeneration Economy and Growth,Corporate Property and Land,Premises,108099,Service Repairs and Maintenance,03/11/2023,4198548-DLB27104,540.00,TYCO FIRE & INTEGRATED SOLUTIONS (UK) LTD.
Children and Young Peoples Services,Head of Early Help Inclusion & Vulnerable Children.,Supplies and Services,344033,Telephones,03/11/2023,4198549-209851,572.70,UNIFY BUSINESS SOLUTIONS LTD.
Regeneration Economy and Growth,Corporate Property and Land,Premises,108099,Service Repairs and Maintenance,03/11/2023,4198558-22386,610.00,WATERMAN ENVIRONMENTAL SERVICES.
Regeneration Economy and Growth,Corporate Property and Land,Premises,108099,Service Repairs and Maintenance,03/11/2023,4198558-22387,"1,654.00",WATERMAN ENVIRONMENTAL SERVICES.
Neighbourhoods and Climate Change,Highways,Supplies and Services,304221,Equipment and Materials,03/11/2023,4198563-145544445,"1,294.32",ZG LIGHTING (UK) LTD.
Children and Young Peoples Services,Head of Education and Skills,Supplies and Services,384199,Miscellaneous Expenses,03/11/2023,4198302-15399,706.50,A1 TROPHIES & ENGRAVING.
Children and Young Peoples Services,Head of Education and Skills,Transport,230008,Contract Hire,03/11/2023,4198375-INV-0188,"3,636.00",TEESDALE PASSENGER TRANSPORT LTD T/A FIGGY BUS & FIGGY`S TAXIS.
Neighbourhoods and Climate Change,Partnerships & Community Engagement Div.,Supplies and Services,384086,Miscellaneous Expenses,03/11/2023,4198535-VOUCHER23NB-EDRC010,"1,000.00",THE PARISH OF THE UPPER SKERNE.
Regeneration Economy and Growth,Culture Sport and Tourism,Supplies and Services,384199,Miscellaneous Expenses,03/11/2023,4198310-00181,"5,600.00",REDACTED - PAYMENT TO INDIVIDUAL
Neighbourhoods and Climate Change,Environmental Services,Supplies and Services,384700,Miscellaneous Expenses,03/11/2023,4198311-RES-11-2023-049,"2,955.00",REDACTED - PAYMENT TO INDIVIDUAL
Children and Young Peoples Services,Head of Childrens Social Care,Supplies and Services,338045,Services,03/11/2023,4198359-496,"2,505.00",REDACTED - PAYMENT TO INDIVIDUAL
Adult and Health Services,Head of Adults,Supplies and Services,338066,Services,03/11/2023,4198364-23-10-08,534.00,REDACTED - PAYMENT TO INDIVIDUAL
Children and Young Peoples Services,Head of Childrens Social Care,Supplies and Services,338066,Services,03/11/2023,4198454-134503A,900.00,REDACTED - PAYMENT TO INDIVIDUAL
Children and Young Peoples Services,Head of Education and Skills,Transport,230010,Contract Hire,03/11/2023,4198475-B055/SEPT/23,"3,612.00",REDACTED - PAYMENT TO INDIVIDUAL
Regeneration Economy and Growth,Culture Sport and Tourism,Supplies and Services,338047,Services,03/11/2023,4198478-2061,"4,390.10",REDACTED - PAYMENT TO INDIVIDUAL
Children and Young Peoples Services,Head of Education and Skills,Transport,230006,Contract Hire,03/11/2023,4198387-202309,"1,718.00",REDACTED - PAYMENT TO INDIVIDUAL
Children and Young Peoples Services,Head of Childrens Social Care,Supplies and Services,338044,Services,03/11/2023,4198440-20/10/23,"1,221.00",REDACTED - PAYMENT TO INDIVIDUAL
Children and Young Peoples Services,Head of Early Help Inclusion & Vulnerable Children.,Supplies and Services,384302,Miscellaneous Expenses,03/11/2023,4198474-292,505.00,REDACTED - PAYMENT TO INDIVIDUAL
Regeneration Economy and Growth,Culture Sport and Tourism,Fees,901002,Consultants fees 901002,06/11/2023,4198713-RD1247,850.00,HAIGH RAIL LTD.
Regeneration Economy and Growth,Culture Sport and Tourism,Supplies and Services,324117,Provisions E324,06/11/2023,4198759-INV-13866,513.80,LONTON COFFEE COMPANY LTD.
Children and Young Peoples Services,Head of Education and Skills,Transport,230008,Contract Hire,06/11/2023,4198564-107103,"2,393.10",24X7LTD.
Neighbourhoods and Climate Change,Environmental Services,Supplies and Services,338066,Services,06/11/2023,4198565-678,"1,790.00",4NATURE LTD.
Children and Young Peoples Services,Head of Education and Skills,Transport,230008,Contract Hire,06/11/2023,4198566-0923-SJ,"1,512.00",AABAT TAXIS.
Children and Young Peoples Services,Head of Education and Skills,Transport,230010,Contract Hire,06/11/2023,4198567-0605,"4,613.60",ABC & OUSTON CABS.
Children and Young Peoples Services,Head of Childrens Social Care,Supplies and Services,304516,Equipment and Materials,06/11/2023,4198587-128108,"1,597.00",BACK CARE SOLUTIONS LTD.
Resources BK0010,Corporate Finance & Commercial Services,Supplies and Services,338066,Services,06/11/2023,4198602-SIN047008,"58,261.13",BLOOM PROCUREMENT SERVICES LTD (FORMERLY NEPRO LTD).
Children and Young Peoples Services,Head of Education and Skills,Transport,230034,Contract Hire,06/11/2023,4198604-6074SEP23,"3,420.00",BON VOYAGE TRANSPORT LTD.
Neighbourhoods and Climate Change,Highways,Supplies and Services,304221,Equipment and Materials,06/11/2023,4198607-0000310968,898.00,BROXAP LTD.
Regeneration Economy and Growth,Corporate Property and Land,Supplies and Services,304221,Equipment and Materials,06/11/2023,4198614-140016745,935.15,CARLISLE CONSTRUCTION MATERIALS LTD.
Neighbourhoods and Climate Change,Environmental Services,Supplies and Services,304999,Equipment and Materials,06/11/2023,4198616-438244,520.00,CARRS BILLINGTON AGRICULTURE.
Children and Young Peoples Services,Head of Early Help Inclusion & Vulnerable Children.,Premises,108001,Service Repairs and Maintenance,06/11/2023,4198625-DGN/377412,"2,520.00",CITY ELECTRICAL FACTORS LTD.
Regeneration Economy and Growth,Corporate Property and Land,Supplies and Services,304221,Equipment and Materials,06/11/2023,4198626-2852ABX045,795.01,CITY PLUMBING SUPPLIES HOLDINGS LTD.
Regeneration Economy and Growth,Corporate Property and Land,Supplies and Services,304221,Equipment and Materials,06/11/2023,4198626-2852ABX046,"1,290.87",CITY PLUMBING SUPPLIES HOLDINGS LTD.
Resources BK0010,Pensions CK0700,Supplies and Services,342051,Computers and Communications,06/11/2023,4198627-C/PE287887,"8,250.00",CIVICA UK LTD.
Resources BK0010,Pensions CK0700,Supplies and Services,342051,Computers and Communications,06/11/2023,4198627-C/PE287888,"5,170.50",CIVICA UK LTD.
Resources BK0010,Pensions CK0700,Supplies and Services,342051,Computers and Communications,06/11/2023,4198627-C/PE287889,"2,190.59",CIVICA UK LTD.
Children and Young Peoples Services,Head of Education and Skills,Transport,230008,Contract Hire,06/11/2023,4198644-116580,"3,751.92",CROFT BUSINESS SERVICES LTD T/A CROFT TRAVEL.
Neighbourhoods and Climate Change,Highways,Third Party Payments,430127,Rendered by Private Contractors,06/11/2023,4198647-INV-0281,"1,647.92",D & L HOPPS.
Children and Young Peoples Services,Head of Education and Skills,Transport,230008,Contract Hire,06/11/2023,4198648-610,"2,090.00",DA TRAVEL.
Regeneration Economy and Growth,Planning & Housing,Supplies and Services,384999,Miscellaneous Expenses,06/11/2023,4198655-050,"1,500.00",DENTON MANAGEMENT LTD.
Regeneration Economy and Growth,Corporate Property and Land,Third Party Payments,430100,Rendered by Private Contractors,06/11/2023,4198656-INV/156264,"1,022.00",DFP SERVICES LTD.
Regeneration Economy and Growth,Planning & Housing,Supplies and Services,308013,Furniture,06/11/2023,4198665-00149,960.00,DUCKS CARPET CLEARANCE WAREHOUSE.
Regeneration Economy and Growth,Corporate Property and Land,Supplies and Services,304221,Equipment and Materials,06/11/2023,4198670-059-323552,627.76,EDMUNDSON ELECTRICAL LTD.
Regeneration Economy and Growth,Corporate Property and Land,Supplies and Services,304221,Equipment and Materials,06/11/2023,4198670-059-326775,982.10,EDMUNDSON ELECTRICAL LTD.
Regeneration Economy and Growth,Corporate Property and Land,Supplies and Services,304221,Equipment and Materials,06/11/2023,4198670-059-326778,927.24,EDMUNDSON ELECTRICAL LTD.
Chief Executives Office,Corporate Policy Planning & Performance,Supplies and Services,372009,Subscriptions E372,06/11/2023,4198683-UK-SIN041803,"10,525.00",ESRI (UK) LTD.
Resources BK0010,Digital Services,Supplies and Services,342051,Computers and Communications,06/11/2023,4198685-HEX67000785155,"5,039.86",EXPERIAN LTD.
Neighbourhoods and Climate Change,Partnerships & Community Engagement Div.,Supplies and Services,308011,Furniture,06/11/2023,4198695-17351,933.34,FRANKS THE FLOORING STORE.
Children and Young Peoples Services,Head of Childrens Social Care,Supplies and Services,384500,Miscellaneous Expenses,06/11/2023,4198698-6EE,"1,140.00",FSK THERAPY (MINDS MATTER).
Children and Young Peoples Services,Head of Childrens Social Care,Supplies and Services,384500,Miscellaneous Expenses,06/11/2023,4198698-7EE,"1,400.00",FSK THERAPY (MINDS MATTER).
Regeneration Economy and Growth,Culture Sport and Tourism,Supplies and Services,304259,Equipment and Materials,06/11/2023,4198699-503046,"3,540.00",FT LEISURE LTD.
Children and Young Peoples Services,Head of Education and Skills,Transport,230008,Contract Hire,06/11/2023,4198700-103642,"2,682.00",G & P JOHNSON LTD T/A NIGHTINGALE COACHES.
Neighbourhoods and Climate Change,Highways,Supplies and Services,304252,Equipment and Materials,06/11/2023,4198702-007139513,"1,022.96",GAP GROUP LTD.
Regeneration Economy and Growth,Culture Sport and Tourism,Premises,145023,Cleaning and Domestic Supplies,06/11/2023,4198708-06/242943,645.18,GREENHAM TRADING LTD.
Neighbourhoods and Climate Change,Highways,Stock A926,926900,Stock in hand-Inventory system,06/11/2023,4198708-06/242993,"1,197.35",GREENHAM TRADING LTD.
Neighbourhoods and Climate Change,Highways,Stock A926,926900,Stock in hand-Inventory system,06/11/2023,4198708-06/243277,702.59,GREENHAM TRADING LTD.
Adult and Health Services,Public Health CC0450,Third Party Payments,460803,Contract Payments,06/11/2023,4198718-2510051910,"929,264.13",HARROGATE & DISTRICT NHS FOUNDATION TRUST.
Adult and Health Services,Public Health CC0450,Third Party Payments,460803,Contract Payments,06/11/2023,4198718-2510051911,"4,548.77",HARROGATE & DISTRICT NHS FOUNDATION TRUST.
Adult and Health Services,Public Health CC0450,Supplies and Services,384899,Miscellaneous Expenses,06/11/2023,4198718-2510051912,"4,289.17",HARROGATE & DISTRICT NHS FOUNDATION TRUST.
Adult and Health Services,Public Health CC0450,Third Party Payments,460803,Contract Payments,06/11/2023,4198718-2510051913,"37,289.61",HARROGATE & DISTRICT NHS FOUNDATION TRUST.
Adult and Health Services,Public Health CC0450,Third Party Payments,460803,Contract Payments,06/11/2023,4198718-2510051914,"19,867.00",HARROGATE & DISTRICT NHS FOUNDATION TRUST.
Resources BK0010,Legal & Democratic Services,Supplies and Services,342033,Computers and Communications,06/11/2023,4198727-2100737609,594.95,INSIGHT DIRECT (UK) LTD.
Resources BK0010,Digital Services,Vehicles Equipment Furniture and Fittings,912701,Computer equipment,06/11/2023,4198727-2100737610,"1,351.41",INSIGHT DIRECT (UK) LTD.
Regeneration Economy and Growth,Corporate Property and Land,Supplies and Services,304221,Equipment and Materials,06/11/2023,4198742-0303/01021073,"1,890.00",JT DOVE LTD.
Regeneration Economy and Growth,Corporate Property and Land,Supplies and Services,304221,Equipment and Materials,06/11/2023,4198742-0303/01021993,"1,890.00",JT DOVE LTD.
Neighbourhoods and Climate Change,Highways,Stock A926,926900,Stock in hand-Inventory system,06/11/2023,4198742-0303/01043818,"1,925.00",JT DOVE LTD.
Neighbourhoods and Climate Change,Highways,Supplies and Services,304221,Equipment and Materials,06/11/2023,4198742-0303/01046433,"2,291.68",JT DOVE LTD.
Neighbourhoods and Climate Change,Highways,Supplies and Services,304221,Equipment and Materials,06/11/2023,4198742-0303/01046434,921.51,JT DOVE LTD.
Neighbourhoods and Climate Change,Environmental Services,Supplies and Services,384199,Miscellaneous Expenses,06/11/2023,4198744-1749,"52,510.00",JW BAINBRIDGE CONTRACTORS LTD.
Children and Young Peoples Services,Head of Education and Skills,Transport,230008,Contract Hire,06/11/2023,4198770-INV09/202328,576.00,MARK & JOHN CHISHOLM T/A (CHEVRON).
Neighbourhoods and Climate Change,Highways,Supplies and Services,304221,Equipment and Materials,06/11/2023,4198771-Z001729399,"7,008.52",MARSHALLS MONO LTD.
Children and Young Peoples Services,Head of Education and Skills,Third Party Payments,410037,Rendered by Other Local Authorities,06/11/2023,4198777-5406432,540.00,MIDDLESBROUGH BOROUGH COUNCIL.
Adult and Health Services,Commissioning inc Supporting People,Third Party Payments,440999,Other third party payments E440,06/11/2023,4198796-60855,"3,678.01",NATIONAL YOUTH ADVOCACY SERVICE.
Regeneration Economy and Growth,Culture Sport and Tourism,Supplies and Services,332029,Printing Stationery and Gen Off Exps,06/11/2023,4198800-SI-5898,"6,699.00",NEWLANDMEDIA LTD.
Regeneration Economy and Growth,Planning & Housing,Supplies and Services,336005,Advertising E336,06/11/2023,4198801-43754388,693.33,NEWSQUEST (YORKSHIRE & NORTH EAST) LTD.
Adult and Health Services,Public Health CC0450,Supplies and Services,384899,Miscellaneous Expenses,06/11/2023,4198803-7441000739,"10,000.00",NHS NORTH EAST & NORTH CUMBRIA ICB.
Regeneration Economy and Growth,Corporate Property and Land,Supplies and Services,384199,Miscellaneous Expenses,06/11/2023,4198814-3664,"1,575.00",PARAMOUNT CEILINGS & PARTITIONS LTD.
Regeneration Economy and Growth,Corporate Property and Land,Supplies and Services,304221,Equipment and Materials,06/11/2023,4198816-XL308742,960.00,PARK ELECTRICAL DISTRIBUTORS LTD.
Neighbourhoods and Climate Change,Highways,Stock A926,926900,Stock in hand-Inventory system,06/11/2023,4198816-XL308743,940.00,PARK ELECTRICAL DISTRIBUTORS LTD.
Adult and Health Services,Head of Adults,Third Party Payments,479102,Purchase of Care,06/11/2023,4198830-INV-0250,"3,112.00",POSITIVE CARE & SUPPORT LTD.
Adult and Health Services,Head of Adults,Third Party Payments,479102,Purchase of Care,06/11/2023,4198830-INV-0251,"7,561.08",POSITIVE CARE & SUPPORT LTD.
Chief Executives Office,Communications Management,Supplies and Services,332029,Printing Stationery and Gen Off Exps,06/11/2023,4198831-722273,658.00,POTTS PRINTERS LTD.
Neighbourhoods and Climate Change,Highways,Stock A926,926900,Stock in hand-Inventory system,06/11/2023,4198839-60007806,"1,040.00",RED INDUSTRIES (BROWNHILLS) LTD.
Regeneration Economy and Growth,Corporate Property and Land,Third Party Payments,430100,Rendered by Private Contractors,06/11/2023,4198842-78006,"4,835.00",RJ UTILITY SERVICES LTD.
Regeneration Economy and Growth,Corporate Property and Land,Third Party Payments,430100,Rendered by Private Contractors,06/11/2023,4198842-78022,"4,955.00",RJ UTILITY SERVICES LTD.
Neighbourhoods and Climate Change,Highways,Third Party Payments,430100,Rendered by Private Contractors,06/11/2023,4198856-24712,"66,010.81",SEYMOUR (CIVIL ENGINEERING CONTRACTORS) LTD.
Children and Young Peoples Services,Head of Education and Skills,Third Party Payments,440999,Other third party payments E440,06/11/2023,4198861-4100820662,"1,265.00",SMARTT NORTH EAST LTD.
Neighbourhoods and Climate Change,Highways,Supplies and Services,304221,Equipment and Materials,06/11/2023,4198870-43651,"1,837.14",STONEGRAVE AGGREGATES LTD.
Regeneration Economy and Growth,Culture Sport and Tourism,Supplies and Services,304337,Equipment and Materials,06/11/2023,4198874-SWINV093167,639.45,SWIM ENGLAND TRADING LTD.*
Resources BK0010,Digital Services,Supplies and Services,342033,Computers and Communications,06/11/2023,4198876-146895,"3,462.00",SWITCHSHOP LTD.
Regeneration Economy and Growth,Corporate Property and Land,Supplies and Services,304221,Equipment and Materials,06/11/2023,4198877-1083708,872.22,T CROSSLING & CO LTD.
Regeneration Economy and Growth,Corporate Property and Land,Supplies and Services,304221,Equipment and Materials,06/11/2023,4198877-1084631,874.40,T CROSSLING & CO LTD.
Regeneration Economy and Growth,Culture Sport and Tourism,Supplies and Services,328041,Clothing uniforms and laundry E328,06/11/2023,4198884-NSIN00102415,"1,761.20",THOMAS OWEN & SONS (NEWCASTLE) LTD.
Regeneration Economy and Growth,Corporate Property and Land,Supplies and Services,304221,Equipment and Materials,06/11/2023,4198889-40363,"3,915.00",TOTAL PUMP SOLUTIONS LTD.
Neighbourhoods and Climate Change,Highways,Stock A926,926900,Stock in hand-Inventory system,06/11/2023,4198890-115140,"1,328.64",TOTAL RENTAL SOLUTIONS LTD.
Neighbourhoods and Climate Change,Highways,Stock A926,926900,Stock in hand-Inventory system,06/11/2023,4198890-115141,"1,796.00",TOTAL RENTAL SOLUTIONS LTD.
Neighbourhoods and Climate Change,Highways,Stock A926,926900,Stock in hand-Inventory system,06/11/2023,4198890-115144,666.40,TOTAL RENTAL SOLUTIONS LTD.
Regeneration Economy and Growth,Corporate Property and Land,Supplies and Services,304221,Equipment and Materials,06/11/2023,4198894-11179977,"1,109.68",TRADECHOICE DISTRIBUTION LTD.
Resources BK0010,Legal & Democratic Services,Supplies and Services,338042,Services,06/11/2023,4198897-302122/INVTS826,"1,250.00",TRINITY CHAMBERS.
Resources BK0010,Legal & Democratic Services,Supplies and Services,338042,Services,06/11/2023,4198897-303407/INVMA279,"4,840.00",TRINITY CHAMBERS.
Resources BK0010,Legal & Democratic Services,Supplies and Services,338042,Services,06/11/2023,4198897-303886/INVEM87,"2,310.00",TRINITY CHAMBERS.
Resources BK0010,Legal & Democratic Services,Supplies and Services,338042,Services,06/11/2023,4198897-304774/INVHPR214,585.00,TRINITY CHAMBERS.
Resources BK0010,Legal & Democratic Services,Supplies and Services,338042,Services,06/11/2023,4198897-305541/INVKK42,"5,190.00",TRINITY CHAMBERS.
Resources BK0010,Legal & Democratic Services,Supplies and Services,338042,Services,06/11/2023,4198897-306128/INVKIO314,720.00,TRINITY CHAMBERS.
Resources BK0010,Legal & Democratic Services,Supplies and Services,338042,Services,06/11/2023,4198897-306177/INVGM553,665.00,TRINITY CHAMBERS.
Resources BK0010,Legal & Democratic Services,Supplies and Services,338042,Services,06/11/2023,4198897-306784/INVTOP174,720.00,TRINITY CHAMBERS.
Resources BK0010,Legal & Democratic Services,Supplies and Services,338042,Services,06/11/2023,4198897-308201/INVTOP175,"1,440.00",TRINITY CHAMBERS.
Resources BK0010,Legal & Democratic Services,Supplies and Services,338042,Services,06/11/2023,4198897-309224/INVHM439,"2,320.00",TRINITY CHAMBERS.
Resources BK0010,Legal & Democratic Services,Supplies and Services,338042,Services,06/11/2023,4198897-310336/INVKF506,720.00,TRINITY CHAMBERS.
Resources BK0010,Legal & Democratic Services,Supplies and Services,338042,Services,06/11/2023,4198897-310402/INVKW751,785.00,TRINITY CHAMBERS.
Neighbourhoods and Climate Change,Environmental Services,Transport,230710,Contract Hire,06/11/2023,4198898-ML/0045842/01,"4,364.82",TRIPLE POINT LEASE PARTNERS.
Neighbourhoods and Climate Change,Environmental Services,Supplies and Services,304259,Equipment and Materials,06/11/2023,4198902-48170,"2,112.00",UK CONTAINER MAINTENANCE LTD.
Regeneration Economy and Growth,Corporate Property and Land,Supplies and Services,304221,Equipment and Materials,06/11/2023,4198903-04039774,"1,011.73",UK ELECTRIC LTD.*
Neighbourhoods and Climate Change,Environmental Services,Supplies and Services,384700,Miscellaneous Expenses,06/11/2023,4198906-RES-11-2023-070,"11,447.50",VALENTINE VALE ALPACAS.
Neighbourhoods and Climate Change,Highways,Supplies and Services,304221,Equipment and Materials,06/11/2023,4198914-29302,765.20,WARD TIMBER LTD.
Regeneration Economy and Growth,Culture Sport and Tourism,Supplies and Services,338047,Services,06/11/2023,4198915-23174942,589.13,WARNER BROS ENTERTAINMENT UK LTD.
Neighbourhoods and Climate Change,Highways,Fees,901002,Consultants fees 901002,06/11/2023,4198916-319,"27,745.25",WEAR RIVERS TRUST.
Regeneration Economy and Growth,Planning & Housing,Supplies and Services,304259,Equipment and Materials,06/11/2023,4198920-0000243380,"2,870.00",WINNCARE (UNITED KINGDOM) LTD.
Neighbourhoods and Climate Change,Environmental Services,Transport,215023,Running Costs of Vehicles,06/11/2023,4198925-1024818,570.00,YOUR NRG LTD.
Neighbourhoods and Climate Change,Environmental Services,Transport,215005,Running Costs of Vehicles,06/11/2023,4198925-1038192,"34,321.52",YOUR NRG LTD.
Neighbourhoods and Climate Change,Environmental Services,Transport,215023,Running Costs of Vehicles,06/11/2023,4198925-1039856,510.00,YOUR NRG LTD.
Regeneration Economy and Growth,Culture Sport and Tourism,Supplies and Services,338047,Services,06/11/2023,4198681-GJGUU,"1,015.00",ENCORE TECHNOLOGIES LTD.
Neighbourhoods and Climate Change,Environmental Services,Supplies and Services,338027,Services,06/11/2023,4198926-4100858344,"4,950.00",ZERO CARBON COMMUNITIES LTD.
Children and Young Peoples Services,Head of Early Help Inclusion & Vulnerable Children.,Supplies and Services,304259,Equipment and Materials,06/11/2023,4198723-558762,"1,415.12",HOSPITAL METALCRAFT LTD.
Adult and Health Services,Head of Adults,Transport,230005,Contract Hire,06/11/2023,4198578-01443,"1,575.00",REDACTED - PAYMENT TO INDIVIDUAL
Children and Young Peoples Services,Head of Education and Skills,Transport,230008,Contract Hire,06/11/2023,4198578-01466,"1,062.00",REDACTED - PAYMENT TO INDIVIDUAL
Children and Young Peoples Services,Head of Education and Skills,Transport,230008,Contract Hire,06/11/2023,4198578-01468,"3,072.00",REDACTED - PAYMENT TO INDIVIDUAL
Regeneration Economy and Growth,Business Durham,Supplies and Services,338066,Services,06/11/2023,4198608-1087,"2,235.00",REDACTED - PAYMENT TO INDIVIDUAL
Regeneration Economy and Growth,Culture Sport and Tourism,Supplies and Services,338047,Services,06/11/2023,4198641-CINDERELLA2023/24,"2,200.00",REDACTED - PAYMENT TO INDIVIDUAL
Children and Young Peoples Services,Head of Education and Skills,Transport,230008,Contract Hire,06/11/2023,4198657-09-2023-S052,"3,510.00",REDACTED - PAYMENT TO INDIVIDUAL
Children and Young Peoples Services,Head of Education and Skills,Transport,230008,Contract Hire,06/11/2023,4198785-W010-SEP23,"3,600.00",REDACTED - PAYMENT TO INDIVIDUAL
Children and Young Peoples Services,Head of Childrens Social Care,Supplies and Services,338045,Services,06/11/2023,4198871-207177,750.00,REDACTED - PAYMENT TO INDIVIDUAL
Regeneration Economy and Growth,Culture Sport and Tourism,Supplies and Services,324117,Provisions E324,07/11/2023,4199662-INV-16729,657.00,OLIVIA`S KITCHEN LTD.
Children and Young Peoples Services,Head of Education and Skills,Transport,230007,Contract Hire,07/11/2023,4199496-102301,"2,800.00",24/7 TAXI SERVICES (PETERLEE) LTD.
Children and Young Peoples Services,Head of Education and Skills,Transport,230034,Contract Hire,07/11/2023,4199496-102303,"2,261.00",24/7 TAXI SERVICES (PETERLEE) LTD.
Children and Young Peoples Services,Head of Education and Skills,Transport,230007,Contract Hire,07/11/2023,4199496-102305,"3,000.00",24/7 TAXI SERVICES (PETERLEE) LTD.
Children and Young Peoples Services,Head of Education and Skills,Transport,230007,Contract Hire,07/11/2023,4199496-102306,"2,936.40",24/7 TAXI SERVICES (PETERLEE) LTD.
Children and Young Peoples Services,Head of Education and Skills,Transport,230007,Contract Hire,07/11/2023,4199496-102307,"2,936.40",24/7 TAXI SERVICES (PETERLEE) LTD.
Children and Young Peoples Services,Head of Education and Skills,Transport,230010,Contract Hire,07/11/2023,4199496-102309,"3,241.10",24/7 TAXI SERVICES (PETERLEE) LTD.
Adult and Health Services,Head of Adults,Transport,230005,Contract Hire,07/11/2023,4199496-102310,"1,485.00",24/7 TAXI SERVICES (PETERLEE) LTD.
Adult and Health Services,Head of Adults,Transport,230005,Contract Hire,07/11/2023,4199496-102311,"1,220.16",24/7 TAXI SERVICES (PETERLEE) LTD.
Children and Young Peoples Services,Head of Education and Skills,Transport,230034,Contract Hire,07/11/2023,4199496-102312,"3,021.00",24/7 TAXI SERVICES (PETERLEE) LTD.
Children and Young Peoples Services,Head of Education and Skills,Transport,230008,Contract Hire,07/11/2023,4199496-102313,"2,898.40",24/7 TAXI SERVICES (PETERLEE) LTD.
Children and Young Peoples Services,Head of Education and Skills,Transport,230008,Contract Hire,07/11/2023,4199496-102315,"3,866.80",24/7 TAXI SERVICES (PETERLEE) LTD.
Children and Young Peoples Services,Head of Education and Skills,Transport,230008,Contract Hire,07/11/2023,4199496-102316,"4,279.60",24/7 TAXI SERVICES (PETERLEE) LTD.
Children and Young Peoples Services,Head of Education and Skills,Transport,230006,Contract Hire,07/11/2023,4199496-102318,"1,501.00",24/7 TAXI SERVICES (PETERLEE) LTD.
Children and Young Peoples Services,Head of Education and Skills,Transport,230008,Contract Hire,07/11/2023,4199496-102319,"1,501.00",24/7 TAXI SERVICES (PETERLEE) LTD.
Children and Young Peoples Services,Head of Education and Skills,Transport,230008,Contract Hire,07/11/2023,4199496-102320,"3,580.00",24/7 TAXI SERVICES (PETERLEE) LTD.
Children and Young Peoples Services,Head of Education and Skills,Transport,230006,Contract Hire,07/11/2023,4199496-102321,"2,864.00",24/7 TAXI SERVICES (PETERLEE) LTD.
Children and Young Peoples Services,Head of Education and Skills,Transport,230006,Contract Hire,07/11/2023,4199496-102322,"1,406.04",24/7 TAXI SERVICES (PETERLEE) LTD.
Children and Young Peoples Services,Head of Education and Skills,Transport,230006,Contract Hire,07/11/2023,4199496-102323,"2,340.00",24/7 TAXI SERVICES (PETERLEE) LTD.
Children and Young Peoples Services,Head of Education and Skills,Transport,230006,Contract Hire,07/11/2023,4199496-102324,"3,275.72",24/7 TAXI SERVICES (PETERLEE) LTD.
Children and Young Peoples Services,Head of Education and Skills,Transport,230006,Contract Hire,07/11/2023,4199496-102325,"2,499.36",24/7 TAXI SERVICES (PETERLEE) LTD.
Children and Young Peoples Services,Head of Education and Skills,Transport,230008,Contract Hire,07/11/2023,4199496-102326,"4,780.00",24/7 TAXI SERVICES (PETERLEE) LTD.
Children and Young Peoples Services,Head of Education and Skills,Transport,230007,Contract Hire,07/11/2023,4199496-102327,"3,737.20",24/7 TAXI SERVICES (PETERLEE) LTD.
Children and Young Peoples Services,Head of Education and Skills,Transport,230034,Contract Hire,07/11/2023,4199496-92304-5251A,"3,000.00",24/7 TAXI SERVICES (PETERLEE) LTD.
Children and Young Peoples Services,Head of Education and Skills,Transport,230008,Contract Hire,07/11/2023,4199497-OCTOBER01-2023,"4,750.00",A & P TAXIS.
Children and Young Peoples Services,Head of Education and Skills,Transport,230006,Contract Hire,07/11/2023,4199497-OCTOBER02-2023,"1,440.00",A & P TAXIS.
Children and Young Peoples Services,Head of Education and Skills,Transport,230035,Contract Hire,07/11/2023,4199497-OCTOBER03-2023,"1,880.80",A & P TAXIS.
Children and Young Peoples Services,Head of Education and Skills,Transport,230007,Contract Hire,07/11/2023,4199497-OCTOBER04-2023,"2,000.00",A & P TAXIS.
Children and Young Peoples Services,Head of Education and Skills,Transport,230006,Contract Hire,07/11/2023,4199497-OCTOBER05-2023,"4,206.08",A & P TAXIS.
Children and Young Peoples Services,Head of Education and Skills,Transport,230034,Contract Hire,07/11/2023,4199503-1887OCT23,"1,184.20",ANGIE`S TAXIS.
Children and Young Peoples Services,Head of Education and Skills,Transport,230009,Contract Hire,07/11/2023,4199503-7390OCT2023,684.00,ANGIE`S TAXIS.
Regeneration Economy and Growth,Culture Sport and Tourism,Supplies and Services,312013,Newspapers books and periodicals E312,07/11/2023,4199510-6954024,687.26,ASKEWS & HOLTS LIBRARY SERVICES LTD.
Regeneration Economy and Growth,Culture Sport and Tourism,Supplies and Services,312013,Newspapers books and periodicals E312,07/11/2023,4199510-6955097,606.05,ASKEWS & HOLTS LIBRARY SERVICES LTD.
Regeneration Economy and Growth,Culture Sport and Tourism,Supplies and Services,312013,Newspapers books and periodicals E312,07/11/2023,4199510-6957416,834.79,ASKEWS & HOLTS LIBRARY SERVICES LTD.
Children and Young Peoples Services,Head of Education and Skills,Transport,230007,Contract Hire,07/11/2023,4199511-995,"3,740.00",AT TAXIS LTD.
Children and Young Peoples Services,Head of Education and Skills,Transport,230008,Contract Hire,07/11/2023,4199511-996,"3,300.00",AT TAXIS LTD.
Children and Young Peoples Services,Head of Education and Skills,Transport,230006,Contract Hire,07/11/2023,4199511-999,"2,364.00",AT TAXIS LTD.
Children and Young Peoples Services,Head of Education and Skills,Transport,230008,Contract Hire,07/11/2023,4199512-DCC5OCT23,"5,920.00",ATLAS TAXIS BISHOP AUCKLAND.
Children and Young Peoples Services,Head of Education and Skills,Transport,230008,Contract Hire,07/11/2023,4199513-DCC10OCT23,"4,562.00",ATLAS TAXIS MANAGEMENT LTD.
Children and Young Peoples Services,Head of Education and Skills,Transport,230008,Contract Hire,07/11/2023,4199513-DCC11OCT23,"3,700.00",ATLAS TAXIS MANAGEMENT LTD.
Children and Young Peoples Services,Head of Education and Skills,Transport,230006,Contract Hire,07/11/2023,4199513-DCC12OCT28,"3,987.36",ATLAS TAXIS MANAGEMENT LTD.
Children and Young Peoples Services,Head of Education and Skills,Transport,230008,Contract Hire,07/11/2023,4199513-DCC13OCT23,"3,696.20",ATLAS TAXIS MANAGEMENT LTD.
Children and Young Peoples Services,Head of Education and Skills,Transport,230009,Contract Hire,07/11/2023,4199513-DCC14OCT23,"3,500.00",ATLAS TAXIS MANAGEMENT LTD.
Children and Young Peoples Services,Head of Education and Skills,Transport,230008,Contract Hire,07/11/2023,4199513-DCC1OCT23,"4,589.60",ATLAS TAXIS MANAGEMENT LTD.
Children and Young Peoples Services,Head of Education and Skills,Transport,230008,Contract Hire,07/11/2023,4199513-DCC2OCT23,"4,729.20",ATLAS TAXIS MANAGEMENT LTD.
Children and Young Peoples Services,Head of Education and Skills,Transport,230008,Contract Hire,07/11/2023,4199513-DCC4OCT23,"4,800.00",ATLAS TAXIS MANAGEMENT LTD.
Children and Young Peoples Services,Head of Education and Skills,Transport,230007,Contract Hire,07/11/2023,4199513-DCC6OCT23,"5,180.00",ATLAS TAXIS MANAGEMENT LTD.
Children and Young Peoples Services,Head of Education and Skills,Transport,230008,Contract Hire,07/11/2023,4199513-DCC8OCT23,"4,180.00",ATLAS TAXIS MANAGEMENT LTD.
Children and Young Peoples Services,Head of Education and Skills,Transport,230009,Contract Hire,07/11/2023,4199513-DCC9OCT23,"3,915.00",ATLAS TAXIS MANAGEMENT LTD.
Children and Young Peoples Services,Head of Education and Skills,Transport,230008,Contract Hire,07/11/2023,4199514-224,"3,300.00",AUCKLAND TRAVEL.
Children and Young Peoples Services,Head of Education and Skills,Transport,230008,Contract Hire,07/11/2023,4199514-225,"3,479.85",AUCKLAND TRAVEL.
Children and Young Peoples Services,Head of Education and Skills,Transport,230003,Contract Hire,07/11/2023,4199514-226,"3,280.00",AUCKLAND TRAVEL.
Children and Young Peoples Services,Head of Education and Skills,Transport,230008,Contract Hire,07/11/2023,4199514-227,"4,280.00",AUCKLAND TRAVEL.
Children and Young Peoples Services,Head of Education and Skills,Transport,230008,Contract Hire,07/11/2023,4199514-228,"4,500.00",AUCKLAND TRAVEL.
Children and Young Peoples Services,Head of Education and Skills,Transport,230006,Contract Hire,07/11/2023,4199514-229,"2,800.00",AUCKLAND TRAVEL.
Children and Young Peoples Services,Head of Education and Skills,Transport,230008,Contract Hire,07/11/2023,4199514-230,"2,760.00",AUCKLAND TRAVEL.
Children and Young Peoples Services,Head of Education and Skills,Transport,230008,Contract Hire,07/11/2023,4199514-231,"3,985.20",AUCKLAND TRAVEL.
Children and Young Peoples Services,Head of Education and Skills,Transport,230006,Contract Hire,07/11/2023,4199515-271023,"2,470.00",AVALON TAXIS.
Children and Young Peoples Services,Head of Education and Skills,Transport,230034,Contract Hire,07/11/2023,4199515-2710231,"3,014.26",AVALON TAXIS.
Children and Young Peoples Services,Head of Education and Skills,Transport,230007,Contract Hire,07/11/2023,4199519-4517,"2,676.00",BENNETTS TAXIS.
Children and Young Peoples Services,Head of Education and Skills,Transport,230034,Contract Hire,07/11/2023,4199520-4492OCT23,"1,673.20",BENS TAXIS.
Children and Young Peoples Services,Head of Education and Skills,Transport,230007,Contract Hire,07/11/2023,4199520-SH-PITT1023,"1,146.84",BENS TAXIS.
Regeneration Economy and Growth,Culture Sport and Tourism,Supplies and Services,324117,Provisions E324,07/11/2023,4199522-24060570,562.27,BIDFOOD.
Neighbourhoods and Climate Change,Highways,Supplies and Services,304221,Equipment and Materials,07/11/2023,4199523-207R03037,"1,870.66",BIFFA WASTE SERVICES LTD.
Neighbourhoods and Climate Change,Environmental Services,Supplies and Services,304359,Equipment and Materials,07/11/2023,4199525-BMPR/1331/SKIPS,691.00,BISHOP MIDDLEHAM PLANT & RECYCLING LTD.
Regeneration Economy and Growth,Corporate Property and Land,Supplies and Services,304359,Equipment and Materials,07/11/2023,4199525-BMPR/1337/SKIPS,630.00,BISHOP MIDDLEHAM PLANT & RECYCLING LTD.
Children and Young Peoples Services,Head of Education and Skills,Transport,230006,Contract Hire,07/11/2023,4199526-B-OCT23,"1,440.00",BOBS TAXIS.
Neighbourhoods and Climate Change,Highways,Supplies and Services,304221,Equipment and Materials,07/11/2023,4199527-21500559,615.01,BREEDON TRADING LTD.
Children and Young Peoples Services,Head of Education and Skills,Transport,230008,Contract Hire,07/11/2023,4199528-BZ00483,"2,062.83",BREZ`S TAXIS.
Children and Young Peoples Services,Head of Education and Skills,Transport,230008,Contract Hire,07/11/2023,4199528-BZ00484,"1,155.01",BREZ`S TAXIS.
Adult and Health Services,Head of Adults,Transport,230005,Contract Hire,07/11/2023,4199528-BZ00485,695.00,BREZ`S TAXIS.
Children and Young Peoples Services,Head of Education and Skills,Transport,230035,Contract Hire,07/11/2023,4199535-3452OCT23,"1,900.00",CHANNER`S CABS.
Children and Young Peoples Services,Head of Education and Skills,Transport,230006,Contract Hire,07/11/2023,4199535-92,"1,120.00",CHANNER`S CABS.
Children and Young Peoples Services,Head of Education and Skills,Transport,230007,Contract Hire,07/11/2023,4199536-33890CT2023,"4,929.20",CHAPMAN TRAVEL.
Children and Young Peoples Services,Head of Education and Skills,Transport,230009,Contract Hire,07/11/2023,4199536-73990CT2023,"1,600.00",CHAPMAN TRAVEL.
Children and Young Peoples Services,Head of Education and Skills,Transport,230008,Contract Hire,07/11/2023,4199544-A085RA-1023,"2,880.00",CJ`S EXECUTIVE TRAVEL LTD.
Children and Young Peoples Services,Head of Education and Skills,Transport,230008,Contract Hire,07/11/2023,4199544-E017-LL1023,"3,200.00",CJ`S EXECUTIVE TRAVEL LTD.
Children and Young Peoples Services,Head of Education and Skills,Transport,230008,Contract Hire,07/11/2023,4199544-E031-LR1023,"4,380.00",CJ`S EXECUTIVE TRAVEL LTD.
Children and Young Peoples Services,Head of Education and Skills,Transport,230008,Contract Hire,07/11/2023,4199544-E032-CE1023,"2,549.23",CJ`S EXECUTIVE TRAVEL LTD.
Children and Young Peoples Services,Head of Education and Skills,Transport,230008,Contract Hire,07/11/2023,4199544-N047-SH1023,"5,315.64",CJ`S EXECUTIVE TRAVEL LTD.
Children and Young Peoples Services,Head of Education and Skills,Transport,230008,Contract Hire,07/11/2023,4199544-N049-JM1023,"4,095.12",CJ`S EXECUTIVE TRAVEL LTD.
Children and Young Peoples Services,Head of Education and Skills,Transport,230008,Contract Hire,07/11/2023,4199544-N055-MS1023,"3,201.12",CJ`S EXECUTIVE TRAVEL LTD.
Children and Young Peoples Services,Head of Education and Skills,Transport,230008,Contract Hire,07/11/2023,4199547-47-OCT23,"3,300.00",CONNORS MINI BUSES.*
Children and Young Peoples Services,Head of Education and Skills,Transport,230008,Contract Hire,07/11/2023,4199547-48,"2,101.20",CONNORS MINI BUSES.*
Children and Young Peoples Services,Head of Education and Skills,Transport,230008,Contract Hire,07/11/2023,4199547-49,"2,095.60",CONNORS MINI BUSES.*
Children and Young Peoples Services,Head of Education and Skills,Transport,230008,Contract Hire,07/11/2023,4199548-2023-09,"2,800.00",CONSETT CONTRACTS LTD.
Children and Young Peoples Services,Head of Education and Skills,Transport,230007,Contract Hire,07/11/2023,4199548-2023-13,"3,000.00",CONSETT CONTRACTS LTD.
Children and Young Peoples Services,Head of Education and Skills,Transport,230008,Contract Hire,07/11/2023,4199548-2023-17,"4,319.86",CONSETT CONTRACTS LTD.
Children and Young Peoples Services,Head of Education and Skills,Transport,230008,Contract Hire,07/11/2023,4199549-INV002-N328OCT23,"4,590.60",CONSETT EXECUTIVE CABS.
Children and Young Peoples Services,Head of Education and Skills,Transport,230006,Contract Hire,07/11/2023,4199549-INV013-OCT23,"2,430.91",CONSETT EXECUTIVE CABS.
Resources - C A C,Resources - C A C- Level C,Supplies and Services,384199,Miscellaneous Expenses,07/11/2023,4199551-RES-10-2023-667REMAINDER,"216,000.00",COUNTY DURHAM COMMUNITY FOUNDATION.
Children and Young Peoples Services,Head of Education and Skills,Transport,230006,Contract Hire,07/11/2023,4199553-116685,"2,495.70",CROFT BUSINESS SERVICES LTD T/A CROFT TRAVEL.
Children and Young Peoples Services,Head of Education and Skills,Transport,230008,Contract Hire,07/11/2023,4199553-116687,"3,502.98",CROFT BUSINESS SERVICES LTD T/A CROFT TRAVEL.
Children and Young Peoples Services,Head of Education and Skills,Transport,230008,Contract Hire,07/11/2023,4199553-116695,"3,963.20",CROFT BUSINESS SERVICES LTD T/A CROFT TRAVEL.
Children and Young Peoples Services,Head of Education and Skills,Transport,230008,Contract Hire,07/11/2023,4199553-116700,"4,168.80",CROFT BUSINESS SERVICES LTD T/A CROFT TRAVEL.
Children and Young Peoples Services,Head of Education and Skills,Transport,230008,Contract Hire,07/11/2023,4199553-116701,"3,847.20",CROFT BUSINESS SERVICES LTD T/A CROFT TRAVEL.
Adult and Health Services,Head of Adults,Transport,230005,Contract Hire,07/11/2023,4199553-116733,739.44,CROFT BUSINESS SERVICES LTD T/A CROFT TRAVEL.
Children and Young Peoples Services,Head of Education and Skills,Transport,230010,Contract Hire,07/11/2023,4199556-TBALOCT2301,"3,084.27",DALELINK PRIVATE HIRE.
Children and Young Peoples Services,Head of Education and Skills,Transport,230004,Contract Hire,07/11/2023,4199556-TLBOCT2301,640.00,DALELINK PRIVATE HIRE.
Children and Young Peoples Services,Head of Education and Skills,Transport,230007,Contract Hire,07/11/2023,4199557-489,"4,031.40",DANNY`S TRAVEL.
Regeneration Economy and Growth,Culture Sport and Tourism,Supplies and Services,312013,Newspapers books and periodicals E312,07/11/2023,4199565-21102023,802.93,DURHAM CITY NEWSTORE.
Children and Young Peoples Services,Head of Education and Skills,Transport,230008,Contract Hire,07/11/2023,4199567-1697,"5,284.40",EAST DURHAM TAXIS.
Children and Young Peoples Services,Head of Education and Skills,Transport,230008,Contract Hire,07/11/2023,4199567-1698,"3,269.88",EAST DURHAM TAXIS.
Children and Young Peoples Services,Head of Education and Skills,Transport,230008,Contract Hire,07/11/2023,4199567-1699,"2,000.00",EAST DURHAM TAXIS.
Children and Young Peoples Services,Head of Education and Skills,Transport,230009,Contract Hire,07/11/2023,4199567-1701,"3,240.00",EAST DURHAM TAXIS.
Children and Young Peoples Services,Head of Education and Skills,Transport,230008,Contract Hire,07/11/2023,4199567-1702,"4,640.00",EAST DURHAM TAXIS.
Children and Young Peoples Services,Head of Education and Skills,Transport,230008,Contract Hire,07/11/2023,4199567-1704,"4,240.00",EAST DURHAM TAXIS.
Children and Young Peoples Services,Head of Education and Skills,Transport,230008,Contract Hire,07/11/2023,4199567-1705,"4,240.00",EAST DURHAM TAXIS.
Children and Young Peoples Services,Head of Education and Skills,Transport,230008,Contract Hire,07/11/2023,4199567-1708,"2,690.78",EAST DURHAM TAXIS.
Children and Young Peoples Services,Head of Education and Skills,Transport,230008,Contract Hire,07/11/2023,4199567-1709,"3,206.92",EAST DURHAM TAXIS.
Children and Young Peoples Services,Head of Education and Skills,Transport,230008,Contract Hire,07/11/2023,4199567-1710,"2,840.00",EAST DURHAM TAXIS.
Children and Young Peoples Services,Head of Education and Skills,Transport,230008,Contract Hire,07/11/2023,4199567-1711,"3,370.20",EAST DURHAM TAXIS.
Children and Young Peoples Services,Head of Education and Skills,Transport,230006,Contract Hire,07/11/2023,4199567-1712,"6,496.00",EAST DURHAM TAXIS.
Children and Young Peoples Services,Head of Education and Skills,Transport,230008,Contract Hire,07/11/2023,4199567-1713,"3,699.68",EAST DURHAM TAXIS.
Adult and Health Services,Head of Adults,Transport,230005,Contract Hire,07/11/2023,4199567-1714,"2,609.20",EAST DURHAM TAXIS.
Children and Young Peoples Services,Head of Education and Skills,Transport,230008,Contract Hire,07/11/2023,4199567-1715,"3,740.00",EAST DURHAM TAXIS.
Children and Young Peoples Services,Head of Education and Skills,Transport,230009,Contract Hire,07/11/2023,4199567-1716,"2,940.00",EAST DURHAM TAXIS.
Children and Young Peoples Services,Head of Education and Skills,Transport,230006,Contract Hire,07/11/2023,4199567-1717,"4,501.64",EAST DURHAM TAXIS.
Children and Young Peoples Services,Head of Education and Skills,Transport,230008,Contract Hire,07/11/2023,4199567-1718,"4,960.00",EAST DURHAM TAXIS.
Children and Young Peoples Services,Head of Education and Skills,Transport,230008,Contract Hire,07/11/2023,4199567-1720,"2,327.12",EAST DURHAM TAXIS.
Adult and Health Services,Head of Adults,Transport,230005,Contract Hire,07/11/2023,4199567-1721,"1,600.84",EAST DURHAM TAXIS.
Children and Young Peoples Services,Head of Education and Skills,Transport,230008,Contract Hire,07/11/2023,4199567-1722,"3,724.00",EAST DURHAM TAXIS.
Children and Young Peoples Services,Head of Education and Skills,Transport,230008,Contract Hire,07/11/2023,4199567-E070,"4,640.00",EAST DURHAM TAXIS.
Regeneration Economy and Growth,Corporate Property and Land,Supplies and Services,304221,Equipment and Materials,07/11/2023,4199568-059-326318,"15,847.56",EDMUNDSON ELECTRICAL LTD.
Adult and Health Services,Head of Adults,Supplies and Services,360099,Insurances,07/11/2023,4199572-INV-1492,"2,304.75",ESCROW LONDON LIMITED.
Children and Young Peoples Services,Head of Education and Skills,Transport,230003,Contract Hire,07/11/2023,4199583-25110,"5,480.00",GARNETTS LTD (COACHES).
Children and Young Peoples Services,Head of Education and Skills,Transport,230007,Contract Hire,07/11/2023,4199583-25115,"14,845.40",GARNETTS LTD (COACHES).
Children and Young Peoples Services,Head of Education and Skills,Transport,230008,Contract Hire,07/11/2023,4199583-25124,"4,853.00",GARNETTS LTD (COACHES).
Children and Young Peoples Services,Head of Education and Skills,Transport,230007,Contract Hire,07/11/2023,4199583-25139,"5,605.00",GARNETTS LTD (COACHES).
Children and Young Peoples Services,Head of Education and Skills,Transport,230007,Contract Hire,07/11/2023,4199583-25139-1,"4,560.00",GARNETTS LTD (COACHES).
Children and Young Peoples Services,Head of Education and Skills,Transport,230007,Contract Hire,07/11/2023,4199583-25139-2,"7,562.00",GARNETTS LTD (COACHES).
Children and Young Peoples Services,Head of Education and Skills,Transport,230034,Contract Hire,07/11/2023,4199584-002,"2,100.00",GARY JACKSON PRIVATE HIRE.
Children and Young Peoples Services,Head of Education and Skills,Transport,230008,Contract Hire,07/11/2023,4199587-001-OCT23,"2,943.00",GMC TAXIS NORTH EAST.
Children and Young Peoples Services,Head of Education and Skills,Transport,230008,Contract Hire,07/11/2023,4199588-107,"3,075.00",GP TAXIS.
Regeneration Economy and Growth,Corporate Property and Land,Supplies and Services,304221,Equipment and Materials,07/11/2023,4199593-4776975,"1,435.81",HEADLAM (FLOORCOVERING DISTRIBUTORS) LTD.
Children and Young Peoples Services,Head of Education and Skills,Transport,230008,Contract Hire,07/11/2023,4199594-1180,"2,004.50",I & R EXECUTIVE TRAVEL.
Adult and Health Services,Head of Adults,Transport,230005,Contract Hire,07/11/2023,4199594-1181,"2,716.00",I & R EXECUTIVE TRAVEL.
Children and Young Peoples Services,Head of Education and Skills,Supplies and Services,375001,Private Finance Initiative,07/11/2023,4199596-ISD0423,"717,635.60",INSPIREDSPACES DURHAM (PROJECTCO1) LTD.
Children and Young Peoples Services,Head of Education and Skills,Transport,230007,Contract Hire,07/11/2023,4199599-6607,"1,200.00",J YOUNG T/A VIP TAXIS.
Children and Young Peoples Services,Head of Education and Skills,Transport,230006,Contract Hire,07/11/2023,4199599-6610,"1,708.04",J YOUNG T/A VIP TAXIS.
Children and Young Peoples Services,Head of Education and Skills,Transport,230008,Contract Hire,07/11/2023,4199600-1000,"2,473.20",JACKSON`S TAXI.
Children and Young Peoples Services,Head of Education and Skills,Transport,230008,Contract Hire,07/11/2023,4199600-1003,"2,939.00",JACKSON`S TAXI.
Children and Young Peoples Services,Head of Education and Skills,Transport,230008,Contract Hire,07/11/2023,4199600-1005,"2,721.80",JACKSON`S TAXI.
Adult and Health Services,Head of Adults,Transport,230005,Contract Hire,07/11/2023,4199600-1006,"1,101.30",JACKSON`S TAXI.
Children and Young Peoples Services,Head of Education and Skills,Transport,230007,Contract Hire,07/11/2023,4199602-232420,"2,691.20",JD`S PRIVATE HIRE DURHAM.
Children and Young Peoples Services,Head of Education and Skills,Transport,230034,Contract Hire,07/11/2023,4199602-232421,"1,507.20",JD`S PRIVATE HIRE DURHAM.
Children and Young Peoples Services,Head of Education and Skills,Transport,230009,Contract Hire,07/11/2023,4199602-232422,"1,874.60",JD`S PRIVATE HIRE DURHAM.
Children and Young Peoples Services,Head of Education and Skills,Transport,230004,Contract Hire,07/11/2023,4199602-232424,"2,073.60",JD`S PRIVATE HIRE DURHAM.
Children and Young Peoples Services,Head of Education and Skills,Transport,230008,Contract Hire,07/11/2023,4199602-232425,"2,521.00",JD`S PRIVATE HIRE DURHAM.
Children and Young Peoples Services,Head of Education and Skills,Transport,230008,Contract Hire,07/11/2023,4199602-232426,"3,114.40",JD`S PRIVATE HIRE DURHAM.
Children and Young Peoples Services,Head of Education and Skills,Transport,230008,Contract Hire,07/11/2023,4199602-232427,"3,060.00",JD`S PRIVATE HIRE DURHAM.
Children and Young Peoples Services,Head of Education and Skills,Transport,230008,Contract Hire,07/11/2023,4199602-232428,"2,760.00",JD`S PRIVATE HIRE DURHAM.
Children and Young Peoples Services,Head of Education and Skills,Transport,230012,Contract Hire,07/11/2023,4199602-232429,"2,090.40",JD`S PRIVATE HIRE DURHAM.
Children and Young Peoples Services,Head of Education and Skills,Transport,230008,Contract Hire,07/11/2023,4199602-232431,"2,523.80",JD`S PRIVATE HIRE DURHAM.
Children and Young Peoples Services,Head of Education and Skills,Transport,230009,Contract Hire,07/11/2023,4199602-232433,"2,508.20",JD`S PRIVATE HIRE DURHAM.
Children and Young Peoples Services,Head of Education and Skills,Transport,230010,Contract Hire,07/11/2023,4199602-232434,"2,394.00",JD`S PRIVATE HIRE DURHAM.
Children and Young Peoples Services,Head of Education and Skills,Transport,230012,Contract Hire,07/11/2023,4199602-232435,"2,231.60",JD`S PRIVATE HIRE DURHAM.
Children and Young Peoples Services,Head of Education and Skills,Transport,230008,Contract Hire,07/11/2023,4199602-232436,"2,832.00",JD`S PRIVATE HIRE DURHAM.
Children and Young Peoples Services,Head of Education and Skills,Transport,230008,Contract Hire,07/11/2023,4199602-232437,"3,967.52",JD`S PRIVATE HIRE DURHAM.
Children and Young Peoples Services,Head of Education and Skills,Transport,230008,Contract Hire,07/11/2023,4199602-232438,"3,454.80",JD`S PRIVATE HIRE DURHAM.
Children and Young Peoples Services,Head of Education and Skills,Transport,230008,Contract Hire,07/11/2023,4199608-M00963,"3,794.40",JOVIAL PRIVATE HIRE.
Children and Young Peoples Services,Head of Education and Skills,Transport,230008,Contract Hire,07/11/2023,4199608-M01624,"1,493.20",JOVIAL PRIVATE HIRE.
Children and Young Peoples Services,Head of Education and Skills,Transport,230008,Contract Hire,07/11/2023,4199608-N030025,"3,110.40",JOVIAL PRIVATE HIRE.
Regeneration Economy and Growth,Business Durham,Construction work A908,908105,Construction work,07/11/2023,4199613-10324055,"2,428,368.92",KIER CONSTRUCTION LTD - SCOTLAND
Children and Young Peoples Services,Head of Education and Skills,Transport,230006,Contract Hire,07/11/2023,4199617-F110OCT23,"2,640.00",LETS TRAVEL.
Children and Young Peoples Services,Head of Education and Skills,Transport,230007,Contract Hire,07/11/2023,4199619-5529,"1,559.20",LOCAL TRANSPORT LTD.
Children and Young Peoples Services,Head of Education and Skills,Transport,230008,Contract Hire,07/11/2023,4199619-5530,"1,664.02",LOCAL TRANSPORT LTD.
Children and Young Peoples Services,Head of Education and Skills,Transport,230008,Contract Hire,07/11/2023,4199619-5531,"1,835.61",LOCAL TRANSPORT LTD.
Children and Young Peoples Services,Head of Childrens Social Care,Third Party Payments,440046,Other third party payments E440,07/11/2023,4199624-7521,"10,032.76",MAJOR RECRUITMENT LTD.*
Children and Young Peoples Services,Head of Childrens Social Care,Third Party Payments,440046,Other third party payments E440,07/11/2023,4199624-7522,"10,054.39",MAJOR RECRUITMENT LTD.*
Children and Young Peoples Services,Head of Childrens Social Care,Third Party Payments,440046,Other third party payments E440,07/11/2023,4199624-7523,"10,491.65",MAJOR RECRUITMENT LTD.*
Children and Young Peoples Services,Head of Childrens Social Care,Third Party Payments,440047,Other third party payments E440,07/11/2023,4199624-7524,"1,007.25",MAJOR RECRUITMENT LTD.*
Children and Young Peoples Services,Head of Childrens Social Care,Third Party Payments,440046,Other third party payments E440,07/11/2023,4199624-7525,"10,243.70",MAJOR RECRUITMENT LTD.*
Children and Young Peoples Services,Head of Childrens Social Care,Third Party Payments,440047,Other third party payments E440,07/11/2023,4199624-7527,"1,955.39",MAJOR RECRUITMENT LTD.*
Children and Young Peoples Services,Head of Childrens Social Care,Third Party Payments,440046,Other third party payments E440,07/11/2023,4199624-7528,"10,210.72",MAJOR RECRUITMENT LTD.*
Children and Young Peoples Services,Head of Childrens Social Care,Third Party Payments,440046,Other third party payments E440,07/11/2023,4199624-7529,"9,910.65",MAJOR RECRUITMENT LTD.*
Children and Young Peoples Services,Head of Childrens Social Care,Third Party Payments,440046,Other third party payments E440,07/11/2023,4199624-7530,"6,718.94",MAJOR RECRUITMENT LTD.*
Children and Young Peoples Services,Head of Childrens Social Care,Third Party Payments,440046,Other third party payments E440,07/11/2023,4199624-8307,"10,602.01",MAJOR RECRUITMENT LTD.*
Children and Young Peoples Services,Head of Childrens Social Care,Third Party Payments,440046,Other third party payments E440,07/11/2023,4199624-8309,"10,210.95",MAJOR RECRUITMENT LTD.*
Children and Young Peoples Services,Head of Childrens Social Care,Third Party Payments,440046,Other third party payments E440,07/11/2023,4199624-8312,"9,904.87",MAJOR RECRUITMENT LTD.*
Children and Young Peoples Services,Head of Childrens Social Care,Third Party Payments,440046,Other third party payments E440,07/11/2023,4199624-8315,"9,975.50",MAJOR RECRUITMENT LTD.*
Children and Young Peoples Services,Head of Childrens Social Care,Third Party Payments,440046,Other third party payments E440,07/11/2023,4199624-8317,"8,020.09",MAJOR RECRUITMENT LTD.*
Children and Young Peoples Services,Head of Childrens Social Care,Third Party Payments,440046,Other third party payments E440,07/11/2023,4199624-8318,"10,025.73",MAJOR RECRUITMENT LTD.*
Children and Young Peoples Services,Head of Childrens Social Care,Third Party Payments,440046,Other third party payments E440,07/11/2023,4199624-8319,"10,045.67",MAJOR RECRUITMENT LTD.*
Regeneration Economy and Growth,Culture Sport and Tourism,Supplies and Services,304337,Equipment and Materials,07/11/2023,4199626-4236145325,980.64,MARES SPA.
Regeneration Economy and Growth,Culture Sport and Tourism,Supplies and Services,304337,Equipment and Materials,07/11/2023,4199626-4236145326,"3,066.88",MARES SPA.
Children and Young Peoples Services,Head of Education and Skills,Transport,230007,Contract Hire,07/11/2023,4199630-INV10/2023-01,"1,347.20",MARK & JOHN CHISHOLM T/A (CHEVRON).
Children and Young Peoples Services,Head of Education and Skills,Transport,230007,Contract Hire,07/11/2023,4199630-INV10/2023-02,"1,303.20",MARK & JOHN CHISHOLM T/A (CHEVRON).
Children and Young Peoples Services,Head of Education and Skills,Transport,230007,Contract Hire,07/11/2023,4199630-INV10/2023-03,"2,458.40",MARK & JOHN CHISHOLM T/A (CHEVRON).
Children and Young Peoples Services,Head of Education and Skills,Transport,230007,Contract Hire,07/11/2023,4199630-INV10/2023-04,"1,561.60",MARK & JOHN CHISHOLM T/A (CHEVRON).
Children and Young Peoples Services,Head of Education and Skills,Transport,230007,Contract Hire,07/11/2023,4199630-INV10/2023-05,"1,620.00",MARK & JOHN CHISHOLM T/A (CHEVRON).
Children and Young Peoples Services,Head of Education and Skills,Transport,230007,Contract Hire,07/11/2023,4199630-INV10/2023-06,"1,839.68",MARK & JOHN CHISHOLM T/A (CHEVRON).
Children and Young Peoples Services,Head of Education and Skills,Transport,230008,Contract Hire,07/11/2023,4199630-INV10/2023-07,"2,005.00",MARK & JOHN CHISHOLM T/A (CHEVRON).
Children and Young Peoples Services,Head of Education and Skills,Transport,230008,Contract Hire,07/11/2023,4199630-INV10/2023-09,"3,939.92",MARK & JOHN CHISHOLM T/A (CHEVRON).
Children and Young Peoples Services,Head of Education and Skills,Transport,230010,Contract Hire,07/11/2023,4199630-INV10/2023-10,"2,415.66",MARK & JOHN CHISHOLM T/A (CHEVRON).
Children and Young Peoples Services,Head of Education and Skills,Transport,230010,Contract Hire,07/11/2023,4199630-INV10/2023-11,"3,039.02",MARK & JOHN CHISHOLM T/A (CHEVRON).
Children and Young Peoples Services,Head of Education and Skills,Transport,230010,Contract Hire,07/11/2023,4199630-INV10/2023-13,"3,318.69",MARK & JOHN CHISHOLM T/A (CHEVRON).
Children and Young Peoples Services,Head of Education and Skills,Transport,230008,Contract Hire,07/11/2023,4199630-INV10/2023-14,"2,755.76",MARK & JOHN CHISHOLM T/A (CHEVRON).
Children and Young Peoples Services,Head of Education and Skills,Transport,230008,Contract Hire,07/11/2023,4199630-INV10/2023-15,"3,261.92",MARK & JOHN CHISHOLM T/A (CHEVRON).
Children and Young Peoples Services,Head of Education and Skills,Transport,230008,Contract Hire,07/11/2023,4199630-INV10/2023-16,"3,215.25",MARK & JOHN CHISHOLM T/A (CHEVRON).
Children and Young Peoples Services,Head of Education and Skills,Transport,230008,Contract Hire,07/11/2023,4199630-INV10/2023-17,"4,405.00",MARK & JOHN CHISHOLM T/A (CHEVRON).
Children and Young Peoples Services,Head of Education and Skills,Transport,230008,Contract Hire,07/11/2023,4199630-INV10/2023-18,"3,416.80",MARK & JOHN CHISHOLM T/A (CHEVRON).
Children and Young Peoples Services,Head of Education and Skills,Transport,230008,Contract Hire,07/11/2023,4199630-INV10/2023-19,"4,410.00",MARK & JOHN CHISHOLM T/A (CHEVRON).
Children and Young Peoples Services,Head of Education and Skills,Transport,230010,Contract Hire,07/11/2023,4199630-INV10/2023-20,"2,465.16",MARK & JOHN CHISHOLM T/A (CHEVRON).
Children and Young Peoples Services,Head of Education and Skills,Transport,230008,Contract Hire,07/11/2023,4199630-INV10/2023-22,"4,720.00",MARK & JOHN CHISHOLM T/A (CHEVRON).
Children and Young Peoples Services,Head of Education and Skills,Transport,230008,Contract Hire,07/11/2023,4199630-INV10/2023-23,"3,920.00",MARK & JOHN CHISHOLM T/A (CHEVRON).
Children and Young Peoples Services,Head of Education and Skills,Transport,230008,Contract Hire,07/11/2023,4199630-INV10/2023-24,"4,520.00",MARK & JOHN CHISHOLM T/A (CHEVRON).
Children and Young Peoples Services,Head of Education and Skills,Transport,230008,Contract Hire,07/11/2023,4199630-INV10/2023-25,"4,438.40",MARK & JOHN CHISHOLM T/A (CHEVRON).
Children and Young Peoples Services,Head of Education and Skills,Transport,230008,Contract Hire,07/11/2023,4199630-INV10/2023-26,"3,480.00",MARK & JOHN CHISHOLM T/A (CHEVRON).
Children and Young Peoples Services,Head of Education and Skills,Transport,230007,Contract Hire,07/11/2023,4199630-INV10/2023-27,"5,438.15",MARK & JOHN CHISHOLM T/A (CHEVRON).
Children and Young Peoples Services,Head of Education and Skills,Transport,230006,Contract Hire,07/11/2023,4199630-INV10/2023-28,"1,566.00",MARK & JOHN CHISHOLM T/A (CHEVRON).
Children and Young Peoples Services,Head of Education and Skills,Transport,230008,Contract Hire,07/11/2023,4199630-INV10/2023-29,"3,254.70",MARK & JOHN CHISHOLM T/A (CHEVRON).
Children and Young Peoples Services,Head of Education and Skills,Transport,230006,Contract Hire,07/11/2023,4199630-INV10/2023-35,"2,447.76",MARK & JOHN CHISHOLM T/A (CHEVRON).
Children and Young Peoples Services,Head of Education and Skills,Transport,230008,Contract Hire,07/11/2023,4199630-INV102023-08,"3,000.00",MARK & JOHN CHISHOLM T/A (CHEVRON).
Children and Young Peoples Services,Head of Education and Skills,Transport,230034,Contract Hire,07/11/2023,4199655-OCTOBER2023,"3,000.00",ND TAXIS.
Neighbourhoods and Climate Change,Partnerships & Community Engagement Div.,Supplies and Services,384999,Miscellaneous Expenses,07/11/2023,4199658-194,"3,016.79",NORTH EAST LAW CENTRE.
Neighbourhoods and Climate Change,Highways,Third Party Payments,430100,Rendered by Private Contractors,07/11/2023,4199660-DI20411957,958.23,NORTHERN POWERGRID (NORTHEAST) LTD.
Regeneration Economy and Growth,Culture Sport and Tourism,Supplies and Services,338047,Services,07/11/2023,4199661-284,"11,925.99",NORWELL LAPLEY PRODUCTIONS LTD.
Children and Young Peoples Services,Head of Childrens Social Care,Third Party Payments,440999,Other third party payments E440,07/11/2023,4199664-139,"3,491.51",PACT NE.
Children and Young Peoples Services,Head of Education and Skills,Transport,230008,Contract Hire,07/11/2023,4199669-837,"2,431.62",PETERLEE EXECUTIVE CARS LTD.
Children and Young Peoples Services,Head of Education and Skills,Transport,230007,Contract Hire,07/11/2023,4199669-838,"2,833.00",PETERLEE EXECUTIVE CARS LTD.
Children and Young Peoples Services,Head of Education and Skills,Transport,230008,Contract Hire,07/11/2023,4199669-839,"1,900.00",PETERLEE EXECUTIVE CARS LTD.
Children and Young Peoples Services,Head of Education and Skills,Transport,230008,Contract Hire,07/11/2023,4199669-840,570.00,PETERLEE EXECUTIVE CARS LTD.
Children and Young Peoples Services,Head of Education and Skills,Transport,230008,Contract Hire,07/11/2023,4199669-841,"1,440.00",PETERLEE EXECUTIVE CARS LTD.
Children and Young Peoples Services,Head of Education and Skills,Transport,230008,Contract Hire,07/11/2023,4199669-842,"2,850.00",PETERLEE EXECUTIVE CARS LTD.
Children and Young Peoples Services,Head of Education and Skills,Transport,230034,Contract Hire,07/11/2023,4199671-5294OCT23,"1,908.80",PETER`S TAXIS.
Children and Young Peoples Services,Head of Education and Skills,Transport,230009,Contract Hire,07/11/2023,4199671-7345-1023,"2,047.14",PETER`S TAXIS.
Children and Young Peoples Services,Head of Education and Skills,Transport,230006,Contract Hire,07/11/2023,4199671-F116OCT23,"1,122.47",PETER`S TAXIS.
Children and Young Peoples Services,Head of Education and Skills,Transport,230007,Contract Hire,07/11/2023,4199672-INV0053,"4,290.80",PHIL BELL EXECUTIVE TRAVEL.
Adult and Health Services,Public Health CC0450,Third Party Payments,460803,Contract Payments,07/11/2023,4199675-18559/18,"5,462.92",PIONEERING CARE PARTNERSHIP.
Children and Young Peoples Services,Head of Education and Skills,Transport,230008,Contract Hire,07/11/2023,4199676-1403,"3,042.80",PODA TAXIS LTD.
Children and Young Peoples Services,Head of Education and Skills,Transport,230008,Contract Hire,07/11/2023,4199680-SI-22182,"3,390.96",RAPID MINIBUSES.
Children and Young Peoples Services,Head of Education and Skills,Transport,230006,Contract Hire,07/11/2023,4199684-SI-131,"2,090.00",ROBBIE`S PRIVATE HIRE.
Children and Young Peoples Services,Head of Education and Skills,Transport,230006,Contract Hire,07/11/2023,4199684-SI-132,"3,515.00",ROBBIE`S PRIVATE HIRE.
Children and Young Peoples Services,Head of Education and Skills,Transport,230007,Contract Hire,07/11/2023,4199685-2119,"3,950.00",ROBERTS TOURS.
Children and Young Peoples Services,Head of Education and Skills,Transport,230007,Contract Hire,07/11/2023,4199685-2120,"5,200.00",ROBERTS TOURS.
Children and Young Peoples Services,Head of Education and Skills,Transport,230007,Contract Hire,07/11/2023,4199685-2121,"11,000.00",ROBERTS TOURS.
Resources BK0010,Transactional & Customer Services,Supplies and Services,340001,Postages E340,07/11/2023,4199686-9068669155,"18,729.98",ROYAL MAIL GROUP PLC.
Neighbourhoods and Climate Change,Highways,Supplies and Services,304358,Equipment and Materials,07/11/2023,4199688-3852,"1,273.50",S & R LANDSCAPES.
Regeneration Economy and Growth,Corporate Property and Land,Supplies and Services,338027,Services,07/11/2023,4199695-2023-416,710.00,SOLMEK LTD.
Children and Young Peoples Services,Head of Education and Skills,Transport,230008,Contract Hire,07/11/2023,4199696-GLJSA00511,"2,800.00",SPENNYMOOR TAXIS.
Children and Young Peoples Services,Head of Education and Skills,Transport,230008,Contract Hire,07/11/2023,4199696-LS00508,"2,400.00",SPENNYMOOR TAXIS.
Children and Young Peoples Services,Head of Education and Skills,Transport,230008,Contract Hire,07/11/2023,4199696-PJMCL005010,"4,070.80",SPENNYMOOR TAXIS.
Children and Young Peoples Services,Head of Education and Skills,Transport,230007,Contract Hire,07/11/2023,4199696-WPA00512,"2,800.00",SPENNYMOOR TAXIS.
Children and Young Peoples Services,Head of Education and Skills,Transport,230010,Contract Hire,07/11/2023,4199705-10/2023/001,760.00,TARNS TAXIS LTD.
Children and Young Peoples Services,Head of Education and Skills,Transport,230008,Contract Hire,07/11/2023,4199705-10/2023/002,"2,540.08",TARNS TAXIS LTD.
Children and Young Peoples Services,Head of Education and Skills,Transport,230008,Contract Hire,07/11/2023,4199707-DCC/2023/10,"3,701.00",TAYLOR`S TAXIS.
Children and Young Peoples Services,Head of Education and Skills,Transport,230007,Contract Hire,07/11/2023,4199707-DCC/2023/11,"3,160.00",TAYLOR`S TAXIS.
Children and Young Peoples Services,Head of Education and Skills,Transport,230008,Contract Hire,07/11/2023,4199707-DCC/2023/12,"3,382.20",TAYLOR`S TAXIS.
Children and Young Peoples Services,Head of Education and Skills,Transport,230008,Contract Hire,07/11/2023,4199707-DCC/2023/13,"3,777.20",TAYLOR`S TAXIS.
Children and Young Peoples Services,Head of Education and Skills,Transport,230008,Contract Hire,07/11/2023,4199707-DCC/2023/14,"2,960.00",TAYLOR`S TAXIS.
Children and Young Peoples Services,Head of Education and Skills,Transport,230007,Contract Hire,07/11/2023,4199707-DCC/2023/15,"1,616.24",TAYLOR`S TAXIS.
Adult and Health Services,Head of Adults,Transport,230005,Contract Hire,07/11/2023,4199707-DCC/2023/16,"1,496.00",TAYLOR`S TAXIS.
Regeneration Economy and Growth,Corporate Property and Land,Supplies and Services,304221,Equipment and Materials,07/11/2023,4199713-11158900,"1,471.20",TRADECHOICE DISTRIBUTION LTD.
Regeneration Economy and Growth,Corporate Property and Land,Supplies and Services,304221,Equipment and Materials,07/11/2023,4199713-11160119,918.47,TRADECHOICE DISTRIBUTION LTD.
Regeneration Economy and Growth,Culture Sport and Tourism,Supplies and Services,338047,Services,07/11/2023,4199714-207537,524.28,TRAFALGAR RELEASING LTD.
Children and Young Peoples Services,Head of Education and Skills,Transport,230008,Contract Hire,07/11/2023,4199715-24,"3,035.25",TRIDENT TAXIS.
Children and Young Peoples Services,Head of Education and Skills,Transport,230008,Contract Hire,07/11/2023,4199715-M002-1023,"2,807.02",TRIDENT TAXIS.
Neighbourhoods and Climate Change,Highways,Supplies and Services,304221,Equipment and Materials,07/11/2023,4199716-249612,"1,601.95",TYNEDALE ROADSTONE LTD.
Neighbourhoods and Climate Change,Highways,Supplies and Services,304221,Equipment and Materials,07/11/2023,4199716-250573,981.10,TYNEDALE ROADSTONE LTD.
Neighbourhoods and Climate Change,Highways,Supplies and Services,304221,Equipment and Materials,07/11/2023,4199716-252346,"1,192.80",TYNEDALE ROADSTONE LTD.
Neighbourhoods and Climate Change,Highways,Supplies and Services,304221,Equipment and Materials,07/11/2023,4199716-252347,929.10,TYNEDALE ROADSTONE LTD.
Neighbourhoods and Climate Change,Highways,Supplies and Services,304221,Equipment and Materials,07/11/2023,4199716-252349,"1,601.06",TYNEDALE ROADSTONE LTD.
Neighbourhoods and Climate Change,Highways,Supplies and Services,304221,Equipment and Materials,07/11/2023,4199716-252352,912.05,TYNEDALE ROADSTONE LTD.
Neighbourhoods and Climate Change,Highways,Supplies and Services,304221,Equipment and Materials,07/11/2023,4199716-252354,"1,580.20",TYNEDALE ROADSTONE LTD.
Neighbourhoods and Climate Change,Highways,Supplies and Services,304221,Equipment and Materials,07/11/2023,4199716-252356,629.95,TYNEDALE ROADSTONE LTD.
Neighbourhoods and Climate Change,Highways,Supplies and Services,304221,Equipment and Materials,07/11/2023,4199716-252358,"1,593.61",TYNEDALE ROADSTONE LTD.
Neighbourhoods and Climate Change,Highways,Supplies and Services,304221,Equipment and Materials,07/11/2023,4199716-252360,"1,203.23",TYNEDALE ROADSTONE LTD.
Neighbourhoods and Climate Change,Highways,Supplies and Services,304221,Equipment and Materials,07/11/2023,4199716-252362,"1,601.06",TYNEDALE ROADSTONE LTD.
Neighbourhoods and Climate Change,Highways,Supplies and Services,304221,Equipment and Materials,07/11/2023,4199716-252363,878.41,TYNEDALE ROADSTONE LTD.
Neighbourhoods and Climate Change,Highways,Supplies and Services,304221,Equipment and Materials,07/11/2023,4199716-252609,866.49,TYNEDALE ROADSTONE LTD.
Neighbourhoods and Climate Change,Highways,Supplies and Services,304221,Equipment and Materials,07/11/2023,4199716-252611,"1,174.92",TYNEDALE ROADSTONE LTD.
Neighbourhoods and Climate Change,Highways,Supplies and Services,304221,Equipment and Materials,07/11/2023,4199716-252613,"1,601.06",TYNEDALE ROADSTONE LTD.
Neighbourhoods and Climate Change,Highways,Supplies and Services,304221,Equipment and Materials,07/11/2023,4199716-252614,"1,135.50",TYNEDALE ROADSTONE LTD.
Neighbourhoods and Climate Change,Highways,Supplies and Services,304221,Equipment and Materials,07/11/2023,4199716-252616,"1,595.10",TYNEDALE ROADSTONE LTD.
Neighbourhoods and Climate Change,Highways,Supplies and Services,304221,Equipment and Materials,07/11/2023,4199716-252617,"1,171.94",TYNEDALE ROADSTONE LTD.
Neighbourhoods and Climate Change,Highways,Supplies and Services,304221,Equipment and Materials,07/11/2023,4199716-252619,"1,599.57",TYNEDALE ROADSTONE LTD.
Children and Young Peoples Services,Head of Early Help Inclusion & Vulnerable Children.,Supplies and Services,338078,Services,07/11/2023,4199718-INV-61033,"5,050.08",VISTECH SERVICES LTD.
Neighbourhoods and Climate Change,Environmental Services,Supplies and Services,338078,Services,07/11/2023,4199718-INV-61038,"1,758.20",VISTECH SERVICES LTD.
Neighbourhoods and Climate Change,Environmental Services,Supplies and Services,338078,Services,07/11/2023,4199718-INV-61041,"1,944.45",VISTECH SERVICES LTD.
Regeneration Economy and Growth,Culture Sport and Tourism,Supplies and Services,384199,Miscellaneous Expenses,07/11/2023,4199718-INV-61050,837.93,VISTECH SERVICES LTD.
Neighbourhoods and Climate Change,Environmental Services,Supplies and Services,338078,Services,07/11/2023,4199718-INV-61053,"1,028.10",VISTECH SERVICES LTD.
Neighbourhoods and Climate Change,Environmental Services,Supplies and Services,338078,Services,07/11/2023,4199718-INV-61085,"2,682.00",VISTECH SERVICES LTD.
Children and Young Peoples Services,Head of Education and Skills,Transport,230008,Contract Hire,07/11/2023,4199724-1369,"3,740.00",WAYNE`S TAXIS.
Children and Young Peoples Services,Head of Education and Skills,Transport,230007,Contract Hire,07/11/2023,4199725-7806,"3,261.60",WEARDALE PRIVATE HIRE.
Children and Young Peoples Services,Head of Education and Skills,Transport,230008,Contract Hire,07/11/2023,4199725-7814,"4,829.80",WEARDALE PRIVATE HIRE.
Children and Young Peoples Services,Head of Education and Skills,Transport,230008,Contract Hire,07/11/2023,4199725-7815,"3,360.00",WEARDALE PRIVATE HIRE.
Children and Young Peoples Services,Head of Education and Skills,Transport,230008,Contract Hire,07/11/2023,4199726-15390 65,"2,356.60",WENDYS` TAXIS.
Children and Young Peoples Services,Head of Education and Skills,Transport,230008,Contract Hire,07/11/2023,4199726-15395 65,"1,800.00",WENDYS` TAXIS.
Children and Young Peoples Services,Head of Education and Skills,Transport,230003,Contract Hire,07/11/2023,4199727-WSL2676,"6,400.00",WHITE STAR TRAVEL LTD.
Neighbourhoods and Climate Change,Environmental Services,Transport,215023,Running Costs of Vehicles,07/11/2023,4199729-1029838,510.00,YOUR NRG LTD.
Neighbourhoods and Climate Change,Highways,Stock A926,926900,Stock in hand-Inventory system,07/11/2023,4199729-1037177,623.95,YOUR NRG LTD.
Neighbourhoods and Climate Change,Environmental Services,Transport,215005,Running Costs of Vehicles,07/11/2023,4199729-1039482,"17,190.60",YOUR NRG LTD.
Resources BK0010,Procurement Sales & Business Services,Supplies and Services,304516,Equipment and Materials,07/11/2023,4199533-INV-01295,"1,800.00",CARESCRIBE LTD.
Children and Young Peoples Services,Head of Education and Skills,Supplies and Services,352001,Conference Expenses,07/11/2023,4199569-12563,"1,800.00",EDSECO LTD T/A THE EDUCATION PEOPLE.
Children and Young Peoples Services,Head of Education and Skills,Transport,230007,Contract Hire,07/11/2023,4199576-INV-0205,"1,560.00",TEESDALE PASSENGER TRANSPORT LTD T/A FIGGY BUS & FIGGY`S TAXIS.
Children and Young Peoples Services,Head of Education and Skills,Transport,230008,Contract Hire,07/11/2023,4199576-INV-0208,"4,040.00",TEESDALE PASSENGER TRANSPORT LTD T/A FIGGY BUS & FIGGY`S TAXIS.
Children and Young Peoples Services,Head of Education and Skills,Transport,230007,Contract Hire,07/11/2023,4199576-INV-0209,"1,980.00",TEESDALE PASSENGER TRANSPORT LTD T/A FIGGY BUS & FIGGY`S TAXIS.
Children and Young Peoples Services,Head of Education and Skills,Transport,230004,Contract Hire,07/11/2023,4199576-INV-0213,600.00,TEESDALE PASSENGER TRANSPORT LTD T/A FIGGY BUS & FIGGY`S TAXIS.
Children and Young Peoples Services,Head of Education and Skills,Transport,230007,Contract Hire,07/11/2023,4199576-INV-0214,"2,000.00",TEESDALE PASSENGER TRANSPORT LTD T/A FIGGY BUS & FIGGY`S TAXIS.
Children and Young Peoples Services,Head of Education and Skills,Transport,230006,Contract Hire,07/11/2023,4199499-138,"2,376.59",REDACTED - PAYMENT TO INDIVIDUAL
Children and Young Peoples Services,Head of Education and Skills,Transport,230008,Contract Hire,07/11/2023,4199500-87,"3,390.00",REDACTED - PAYMENT TO INDIVIDUAL
Children and Young Peoples Services,Head of Education and Skills,Transport,230009,Contract Hire,07/11/2023,4199501-11OCT23-7384,"1,800.95",REDACTED - PAYMENT TO INDIVIDUAL
Adult and Health Services,Head of Adults,Transport,230005,Contract Hire,07/11/2023,4199501-1DW138,680.00,REDACTED - PAYMENT TO INDIVIDUAL
Children and Young Peoples Services,Head of Education and Skills,Transport,230008,Contract Hire,07/11/2023,4199502-0155,"1,815.60",REDACTED - PAYMENT TO INDIVIDUAL
Children and Young Peoples Services,Head of Education and Skills,Transport,230008,Contract Hire,07/11/2023,4199505-01604,"4,132.20",REDACTED - PAYMENT TO INDIVIDUAL
Children and Young Peoples Services,Head of Education and Skills,Transport,230012,Contract Hire,07/11/2023,4199505-01605,"3,484.00",REDACTED - PAYMENT TO INDIVIDUAL
Children and Young Peoples Services,Head of Education and Skills,Transport,230008,Contract Hire,07/11/2023,4199505-01606,"3,237.00",REDACTED - PAYMENT TO INDIVIDUAL
Children and Young Peoples Services,Head of Education and Skills,Transport,230008,Contract Hire,07/11/2023,4199505-01608,"2,760.00",REDACTED - PAYMENT TO INDIVIDUAL
Children and Young Peoples Services,Head of Education and Skills,Transport,230006,Contract Hire,07/11/2023,4199505-01610,"2,760.00",REDACTED - PAYMENT TO INDIVIDUAL
Children and Young Peoples Services,Head of Education and Skills,Transport,230007,Contract Hire,07/11/2023,4199505-01611,"1,520.00",REDACTED - PAYMENT TO INDIVIDUAL
Children and Young Peoples Services,Head of Education and Skills,Transport,230008,Contract Hire,07/11/2023,4199505-01614,"3,538.00",REDACTED - PAYMENT TO INDIVIDUAL
Children and Young Peoples Services,Head of Education and Skills,Transport,230008,Contract Hire,07/11/2023,4199505-01617,"2,317.20",REDACTED - PAYMENT TO INDIVIDUAL
Children and Young Peoples Services,Head of Education and Skills,Transport,230008,Contract Hire,07/11/2023,4199505-01618,"2,670.00",REDACTED - PAYMENT TO INDIVIDUAL
Children and Young Peoples Services,Head of Education and Skills,Transport,230008,Contract Hire,07/11/2023,4199505-01619,"2,560.00",REDACTED - PAYMENT TO INDIVIDUAL
Children and Young Peoples Services,Head of Education and Skills,Transport,230006,Contract Hire,07/11/2023,4199505-01621,"3,860.00",REDACTED - PAYMENT TO INDIVIDUAL
Children and Young Peoples Services,Head of Education and Skills,Transport,230008,Contract Hire,07/11/2023,4199505-01622,"2,960.00",REDACTED - PAYMENT TO INDIVIDUAL
Children and Young Peoples Services,Head of Education and Skills,Transport,230008,Contract Hire,07/11/2023,4199505-01623,"3,627.40",REDACTED - PAYMENT TO INDIVIDUAL
Children and Young Peoples Services,Head of Education and Skills,Transport,230006,Contract Hire,07/11/2023,4199505-01625,"2,551.44",REDACTED - PAYMENT TO INDIVIDUAL
Children and Young Peoples Services,Head of Education and Skills,Transport,230008,Contract Hire,07/11/2023,4199505-01626,"2,960.00",REDACTED - PAYMENT TO INDIVIDUAL
Children and Young Peoples Services,Head of Education and Skills,Transport,230006,Contract Hire,07/11/2023,4199505-01629,"2,256.00",REDACTED - PAYMENT TO INDIVIDUAL
Children and Young Peoples Services,Head of Education and Skills,Transport,230006,Contract Hire,07/11/2023,4199505-01632,"2,400.00",REDACTED - PAYMENT TO INDIVIDUAL
Children and Young Peoples Services,Head of Education and Skills,Transport,230006,Contract Hire,07/11/2023,4199529-2-OCT23,"2,466.13",REDACTED - PAYMENT TO INDIVIDUAL
Adult and Health Services,Head of Adults,Transport,230005,Contract Hire,07/11/2023,4199538-EAS199-OCT23,"1,199.00",REDACTED - PAYMENT TO INDIVIDUAL
Regeneration Economy and Growth,Culture Sport and Tourism,Supplies and Services,338047,Services,07/11/2023,4199552-1414KM277,"4,344.00",REDACTED - PAYMENT TO INDIVIDUAL
Children and Young Peoples Services,Head of Education and Skills,Transport,230006,Contract Hire,07/11/2023,4199555-0113077,"2,154.54",REDACTED - PAYMENT TO INDIVIDUAL
Children and Young Peoples Services,Head of Education and Skills,Transport,230008,Contract Hire,07/11/2023,4199558-2-OCT23,"2,619.00",REDACTED - PAYMENT TO INDIVIDUAL
Children and Young Peoples Services,Head of Childrens Social Care,Supplies and Services,338045,Services,07/11/2023,4199560-498,761.70,REDACTED - PAYMENT TO INDIVIDUAL
Children and Young Peoples Services,Head of Education and Skills,Transport,230006,Contract Hire,07/11/2023,4199582-11-OCT23,"3,418.11",REDACTED - PAYMENT TO INDIVIDUAL
Children and Young Peoples Services,Head of Education and Skills,Transport,230006,Contract Hire,07/11/2023,4199582-12-OCT23,"3,544.98",REDACTED - PAYMENT TO INDIVIDUAL
Adult and Health Services,Head of Adults,Transport,230005,Contract Hire,07/11/2023,4199592-25-OCT23,603.60,REDACTED - PAYMENT TO INDIVIDUAL
Children and Young Peoples Services,Head of Education and Skills,Transport,230008,Contract Hire,07/11/2023,4199611-HX001,545.00,REDACTED - PAYMENT TO INDIVIDUAL
Children and Young Peoples Services,Head of Education and Skills,Transport,230007,Contract Hire,07/11/2023,4199611-LP002,"1,960.00",REDACTED - PAYMENT TO INDIVIDUAL
Children and Young Peoples Services,Head of Education and Skills,Transport,230034,Contract Hire,07/11/2023,4199611-SD002,"2,165.60",REDACTED - PAYMENT TO INDIVIDUAL
Children and Young Peoples Services,Head of Education and Skills,Transport,230007,Contract Hire,07/11/2023,4199612-011023,"1,352.40",REDACTED - PAYMENT TO INDIVIDUAL
Children and Young Peoples Services,Head of Education and Skills,Transport,230010,Contract Hire,07/11/2023,4199614-002-OCT23,"1,380.00",REDACTED - PAYMENT TO INDIVIDUAL
Children and Young Peoples Services,Head of Education and Skills,Transport,230008,Contract Hire,07/11/2023,4199618-0126,"4,123.00",REDACTED - PAYMENT TO INDIVIDUAL
Children and Young Peoples Services,Head of Education and Skills,Transport,230008,Contract Hire,07/11/2023,4199618-0127,"4,500.00",REDACTED - PAYMENT TO INDIVIDUAL
Children and Young Peoples Services,Head of Education and Skills,Transport,230008,Contract Hire,07/11/2023,4199625-23-OCT23,"2,445.60",REDACTED - PAYMENT TO INDIVIDUAL
Children and Young Peoples Services,Head of Education and Skills,Transport,230035,Contract Hire,07/11/2023,4199637-292,"2,527.00",REDACTED - PAYMENT TO INDIVIDUAL
Children and Young Peoples Services,Head of Education and Skills,Transport,230034,Contract Hire,07/11/2023,4199640-261,"4,010.00",REDACTED - PAYMENT TO INDIVIDUAL
Children and Young Peoples Services,Head of Education and Skills,Transport,230009,Contract Hire,07/11/2023,4199641-FRAM1 10-23,"1,494.36",REDACTED - PAYMENT TO INDIVIDUAL
Children and Young Peoples Services,Head of Education and Skills,Transport,230006,Contract Hire,07/11/2023,4199641-OCT23-M123,"2,776.00",REDACTED - PAYMENT TO INDIVIDUAL
Children and Young Peoples Services,Head of Education and Skills,Transport,230008,Contract Hire,07/11/2023,4199641-THPK1 10-23,"2,908.64",REDACTED - PAYMENT TO INDIVIDUAL
Children and Young Peoples Services,Head of Education and Skills,Transport,230008,Contract Hire,07/11/2023,4199642-E110OCT10,"1,881.00",REDACTED - PAYMENT TO INDIVIDUAL
Children and Young Peoples Services,Head of Education and Skills,Transport,230008,Contract Hire,07/11/2023,4199643-W014-102023,"3,002.00",REDACTED - PAYMENT TO INDIVIDUAL
Children and Young Peoples Services,Head of Education and Skills,Transport,230008,Contract Hire,07/11/2023,4199644-34-W083,"4,000.00",REDACTED - PAYMENT TO INDIVIDUAL
Children and Young Peoples Services,Head of Education and Skills,Transport,230008,Contract Hire,07/11/2023,4199646-AK/10/23,"2,470.00",REDACTED - PAYMENT TO INDIVIDUAL
Children and Young Peoples Services,Head of Education and Skills,Transport,230008,Contract Hire,07/11/2023,4199647-A026-OCT23,"3,187.40",REDACTED - PAYMENT TO INDIVIDUAL
Children and Young Peoples Services,Head of Education and Skills,Transport,230008,Contract Hire,07/11/2023,4199647-A219-OCT23,"3,119.20",REDACTED - PAYMENT TO INDIVIDUAL
Children and Young Peoples Services,Head of Education and Skills,Transport,230008,Contract Hire,07/11/2023,4199647-W093,"5,118.40",REDACTED - PAYMENT TO INDIVIDUAL
Children and Young Peoples Services,Head of Education and Skills,Transport,230007,Contract Hire,07/11/2023,4199648-4275OCT23,"8,000.00",REDACTED - PAYMENT TO INDIVIDUAL
Children and Young Peoples Services,Head of Education and Skills,Transport,230007,Contract Hire,07/11/2023,4199648-4519OCT23,"5,700.00",REDACTED - PAYMENT TO INDIVIDUAL
Children and Young Peoples Services,Head of Education and Skills,Transport,230008,Contract Hire,07/11/2023,4199648-N038OCT23,"4,556.60",REDACTED - PAYMENT TO INDIVIDUAL
Children and Young Peoples Services,Head of Education and Skills,Transport,230006,Contract Hire,07/11/2023,4199648-N342OCT23,"2,400.00",REDACTED - PAYMENT TO INDIVIDUAL
Children and Young Peoples Services,Head of Education and Skills,Transport,230008,Contract Hire,07/11/2023,4199648-W055OCT23,"5,800.00",REDACTED - PAYMENT TO INDIVIDUAL
Children and Young Peoples Services,Head of Education and Skills,Transport,230007,Contract Hire,07/11/2023,4199649-151/2023,"2,946.80",REDACTED - PAYMENT TO INDIVIDUAL
Children and Young Peoples Services,Head of Education and Skills,Transport,230006,Contract Hire,07/11/2023,4199650-F121OCT23,"2,367.97",REDACTED - PAYMENT TO INDIVIDUAL
Children and Young Peoples Services,Head of Education and Skills,Transport,230010,Contract Hire,07/11/2023,4199652-2-23/24,"3,630.00",REDACTED - PAYMENT TO INDIVIDUAL
Children and Young Peoples Services,Head of Education and Skills,Transport,230034,Contract Hire,07/11/2023,4199653-215570,"1,600.00",REDACTED - PAYMENT TO INDIVIDUAL
Children and Young Peoples Services,Head of Education and Skills,Transport,230006,Contract Hire,07/11/2023,4199653-215572,"1,080.00",REDACTED - PAYMENT TO INDIVIDUAL
Children and Young Peoples Services,Head of Education and Skills,Transport,230006,Contract Hire,07/11/2023,4199653-215574,"2,040.88",REDACTED - PAYMENT TO INDIVIDUAL
Children and Young Peoples Services,Head of Education and Skills,Transport,230008,Contract Hire,07/11/2023,4199656-102,"2,200.00",REDACTED - PAYMENT TO INDIVIDUAL
Children and Young Peoples Services,Head of Education and Skills,Transport,230008,Contract Hire,07/11/2023,4199668-0CT23-E072,"3,002.00",REDACTED - PAYMENT TO INDIVIDUAL
Children and Young Peoples Services,Head of Education and Skills,Transport,230008,Contract Hire,07/11/2023,4199668-E104,"2,487.30",REDACTED - PAYMENT TO INDIVIDUAL
Children and Young Peoples Services,Head of Education and Skills,Transport,230008,Contract Hire,07/11/2023,4199668-OCT23-E106,"3,971.00",REDACTED - PAYMENT TO INDIVIDUAL
Children and Young Peoples Services,Head of Education and Skills,Transport,230006,Contract Hire,07/11/2023,4199668-OCT23-F180,"1,188.00",REDACTED - PAYMENT TO INDIVIDUAL
Children and Young Peoples Services,Head of Education and Skills,Transport,230006,Contract Hire,07/11/2023,4199668-OCT23-F234,"3,960.00",REDACTED - PAYMENT TO INDIVIDUAL
Children and Young Peoples Services,Head of Education and Skills,Transport,230008,Contract Hire,07/11/2023,4199668-OCT23-M066,"2,376.20",REDACTED - PAYMENT TO INDIVIDUAL
Children and Young Peoples Services,Head of Education and Skills,Transport,230006,Contract Hire,07/11/2023,4199673-F638OCT23,"1,433.00",REDACTED - PAYMENT TO INDIVIDUAL
Children and Young Peoples Services,Head of Education and Skills,Transport,230007,Contract Hire,07/11/2023,4199698-1394-OCT23,"5,900.00",REDACTED - PAYMENT TO INDIVIDUAL
Children and Young Peoples Services,Head of Education and Skills,Transport,230006,Contract Hire,07/11/2023,4199699-F132OTC23,"1,601.61",REDACTED - PAYMENT TO INDIVIDUAL
Children and Young Peoples Services,Head of Education and Skills,Transport,230006,Contract Hire,07/11/2023,4199710-F106-1023,"2,477.23",REDACTED - PAYMENT TO INDIVIDUAL
Children and Young Peoples Services,Head of Education and Skills,Transport,230008,Contract Hire,07/11/2023,4199711-INV0053,"1,950.00",REDACTED - PAYMENT TO INDIVIDUAL
Children and Young Peoples Services,Head of Education and Skills,Transport,230007,Contract Hire,07/11/2023,4199712-2518OCT23,"2,700.00",REDACTED - PAYMENT TO INDIVIDUAL
Children and Young Peoples Services,Head of Education and Skills,Transport,230034,Contract Hire,07/11/2023,4199559-DTS6005/10/23,"1,860.00",REDACTED - PAYMENT TO INDIVIDUAL
Children and Young Peoples Services,Head of Education and Skills,Transport,230006,Contract Hire,07/11/2023,4199700-E195-1023,"2,280.00",REDACTED - PAYMENT TO INDIVIDUAL
Regeneration Economy and Growth,Culture Sport and Tourism,Supplies and Services,338047,Services,08/11/2023,4199868-G695,"4,768.45",REDACTED - PAYMENT TO INDIVIDUAL
Children and Young Peoples Services,Head of Childrens Social Care,Supplies and Services,338045,Services,08/11/2023,4199901-INVAFE73,750.00,REDACTED - PAYMENT TO INDIVIDUAL
Children and Young Peoples Services,Head of Childrens Social Care,Supplies and Services,338045,Services,08/11/2023,4199902-117998,"4,250.00",REDACTED - PAYMENT TO INDIVIDUAL
Regeneration Economy and Growth,Culture Sport and Tourism,Supplies and Services,304259,Equipment and Materials,08/11/2023,4199874-136425,788.00,LE MARK GROUP LTD.
Regeneration Economy and Growth,Culture Sport and Tourism,Supplies and Services,338047,Services,08/11/2023,4199874-136609,"1,444.30",LE MARK GROUP LTD.
Regeneration Economy and Growth,Culture Sport and Tourism,Supplies and Services,384199,Miscellaneous Expenses,08/11/2023,4199900-1324818,875.00,MINHOCO 21 LTD T/A GEORDIE BAKERS.
Regeneration Economy and Growth,Culture Sport and Tourism,Supplies and Services,384199,Miscellaneous Expenses,08/11/2023,4199900-1324819,875.00,MINHOCO 21 LTD T/A GEORDIE BAKERS.
Children and Young Peoples Services,Head of Education and Skills,Transport,230008,Contract Hire,08/11/2023,4199739-024OCTOBER2023,"2,346.40",AIRPORT TRANSFER DURHAM.
Children and Young Peoples Services,Head of Early Help Inclusion & Vulnerable Children.,Supplies and Services,308011,Furniture,08/11/2023,4199741-179727,525.00,ALBANY OFFICE EQUIPMENT (WHOLESALE) LTD.
Children and Young Peoples Services,Head of Early Help Inclusion & Vulnerable Children.,Supplies and Services,308011,Furniture,08/11/2023,4199741-179728,525.00,ALBANY OFFICE EQUIPMENT (WHOLESALE) LTD.
Regeneration Economy and Growth,Corporate Property and Land,Third Party Payments,430100,Rendered by Private Contractors,08/11/2023,4199747-INV-0263,"7,167.17",APEX ROOFING SPECIALISTS LTD.
Regeneration Economy and Growth,Corporate Property and Land,Third Party Payments,430100,Rendered by Private Contractors,08/11/2023,4199747-INV-0285,547.30,APEX ROOFING SPECIALISTS LTD.
Regeneration Economy and Growth,Corporate Property and Land,Cap Exp on Grants & Other Financial Assistance (REFCUS),918004,Contributions to other bodies 918004,08/11/2023,4199753-RES-11-2023-113,"15,000.00",BARTON LEISURE SPORTSMAN LTD.
Resources BK0010,Legal & Democratic Services,Supplies and Services,338043,Services,08/11/2023,4199758-10247390,"5,053.50",BEVAN BRITTAN LLP.
Neighbourhoods and Climate Change,Environmental Services,Supplies and Services,338066,Services,08/11/2023,4199759-SIN047160,"1,254.00",BLOOM PROCUREMENT SERVICES LTD (FORMERLY NEPRO LTD).
Regeneration Economy and Growth,Culture Sport and Tourism,Supplies and Services,342225,Computers and Communications,08/11/2023,4199760-INV-13743,"1,157.78",BRAMBLE HUB LTD.
Resources BK0010,Digital Services,Cap Exp on Grants & Other Financial Assistance (REFCUS),918501,Exp assets not owned by authority,08/11/2023,4199763-0000000216,"118,349.00",BUILDING DIGITAL UK (BDUK).
Neighbourhoods and Climate Change,Highways,Stock A926,926900,Stock in hand-Inventory system,08/11/2023,4199764-SI-1860,"1,000.00",CAEDMON NETS.
Regeneration Economy and Growth,Corporate Property and Land,Third Party Payments,430100,Rendered by Private Contractors,08/11/2023,4199767-11819,"5,331.25",CATHEDRAL LOCK & SAFE SERVICES LTD.
Regeneration Economy and Growth,Corporate Property and Land,Third Party Payments,430100,Rendered by Private Contractors,08/11/2023,4199767-11847,"2,247.50",CATHEDRAL LOCK & SAFE SERVICES LTD.
Regeneration Economy and Growth,Corporate Property and Land,Third Party Payments,430100,Rendered by Private Contractors,08/11/2023,4199767-11867,"2,906.91",CATHEDRAL LOCK & SAFE SERVICES LTD.
Regeneration Economy and Growth,Corporate Property and Land,Third Party Payments,430100,Rendered by Private Contractors,08/11/2023,4199767-11915,"2,610.00",CATHEDRAL LOCK & SAFE SERVICES LTD.
Regeneration Economy and Growth,Corporate Property and Land,Third Party Payments,430100,Rendered by Private Contractors,08/11/2023,4199768-821,"1,616.03",CEILINGS DIRECT LTD.
Regeneration Economy and Growth,Corporate Property and Land,Third Party Payments,430100,Rendered by Private Contractors,08/11/2023,4199768-822,"3,617.20",CEILINGS DIRECT LTD.
Regeneration Economy and Growth,Corporate Property and Land,Third Party Payments,430100,Rendered by Private Contractors,08/11/2023,4199768-823,"2,661.12",CEILINGS DIRECT LTD.
Children and Young Peoples Services,Head of Childrens Social Care,Supplies and Services,338044,Services,08/11/2023,4199780-111137,504.00,COMPLEMENT GENOMICS LTD.
Adult and Health Services,Public Health CC0450,Third Party Payments,460803,Contract Payments,08/11/2023,4199784-3910021783,"6,448.00",COUNTY DURHAM & DARLINGTON NHS FOUNDATION TRUST (CDDFT).
Adult and Health Services,Public Health CC0450,Third Party Payments,460803,Contract Payments,08/11/2023,4199784-3910022608,"384,362.00",COUNTY DURHAM & DARLINGTON NHS FOUNDATION TRUST (CDDFT).
Adult and Health Services,Public Health CC0450,Third Party Payments,460803,Contract Payments,08/11/2023,4199784-3910022611,"6,448.00",COUNTY DURHAM & DARLINGTON NHS FOUNDATION TRUST (CDDFT).
Adult and Health Services,Public Health CC0450,Third Party Payments,460803,Contract Payments,08/11/2023,4199785-3910022609,"180,916.00",COUNTY DURHAM & DARLINGTON NHS FOUNDATION TRUST (CDDFT).
Adult and Health Services,Public Health CC0450,Third Party Payments,460803,Contract Payments,08/11/2023,4199785-3910022610,"30,830.00",COUNTY DURHAM & DARLINGTON NHS FOUNDATION TRUST (CDDFT).
Adult and Health Services,Public Health CC0450,Third Party Payments,460803,Contract Payments,08/11/2023,4199785-3910022612,"11,549.00",COUNTY DURHAM & DARLINGTON NHS FOUNDATION TRUST (CDDFT).
Adult and Health Services,Public Health CC0450,Third Party Payments,460803,Contract Payments,08/11/2023,4199785-3910022613,"33,789.00",COUNTY DURHAM & DARLINGTON NHS FOUNDATION TRUST (CDDFT).
Children and Young Peoples Services,Head of Early Help Inclusion & Vulnerable Children.,Supplies and Services,338099,Services,08/11/2023,4199786-SFLF004,"3,147.00",COUNTY DURHAM FURNITURE HELP SCHEME (CDFHS).
Adult and Health Services,Head of Adults,Supplies and Services,338089,Services,08/11/2023,4199791-MH-2,500.00,DANTRAIN CONSULTANTS.
Resources BK0010,Digital Services,Stock A926,926900,Stock in hand-Inventory system,08/11/2023,4199793-7402955761,"2,610.00",DELL COMPUTER CORPORATION LTD.
Resources BK0010,Digital Services,Stock A926,926900,Stock in hand-Inventory system,08/11/2023,4199793-7402955765,"2,610.00",DELL COMPUTER CORPORATION LTD.
Resources BK0010,Digital Services,Stock A926,926900,Stock in hand-Inventory system,08/11/2023,4199793-7402955766,"2,610.00",DELL COMPUTER CORPORATION LTD.
Resources BK0010,Digital Services,Vehicles Equipment Furniture and Fittings,912701,Computer equipment,08/11/2023,4199793-7402955910,"3,627.96",DELL COMPUTER CORPORATION LTD.
Chief Executives Office,Communications Management,Supplies and Services,332029,Printing Stationery and Gen Off Exps,08/11/2023,4199795-47895,"3,000.00",DESIGN X PRESS LTD.
Neighbourhoods and Climate Change,Environmental Services,Supplies and Services,384199,Miscellaneous Expenses,08/11/2023,4199797-INV-1849,"69,870.00",DINSDALE MOORLAND SPECIALISTS.
Regeneration Economy and Growth,Transport and Contracted Services,Supplies and Services,384899,Miscellaneous Expenses,08/11/2023,4199805-RES-11-2023-127,"25,000.00",DURHAM CITY SHOPMOBILITY.
Neighbourhoods and Climate Change,Environmental Services,Supplies and Services,338066,Services,08/11/2023,4199812-207028,640.00,EMORSGATE SEEDS.
Neighbourhoods and Climate Change,Environmental Services,Supplies and Services,384956,Miscellaneous Expenses,08/11/2023,4199815-111971YT,"4,247.00",ENVIRONMENT AGENCY.
Neighbourhoods and Climate Change,Environmental Services,Supplies and Services,304221,Equipment and Materials,08/11/2023,4199816-6943880,"8,580.00",ESE WORLD LTD.
Neighbourhoods and Climate Change,Environmental Services,Supplies and Services,304221,Equipment and Materials,08/11/2023,4199816-6943881,"17,028.00",ESE WORLD LTD.
Neighbourhoods and Climate Change,Environmental Services,Supplies and Services,304221,Equipment and Materials,08/11/2023,4199816-6943882,"17,028.00",ESE WORLD LTD.
Regeneration Economy and Growth,Culture Sport and Tourism,Supplies and Services,304337,Equipment and Materials,08/11/2023,4199818-INV-23353,"1,212.73",EVENT LIGHTS LTD.
Children and Young Peoples Services,Head of Childrens Social Care,Supplies and Services,338044,Services,08/11/2023,4199822-202381,976.45,FOCUS MENTAL HEALTH LTD.
Children and Young Peoples Services,Head of Education and Skills,Transport,235005,Public Transport,08/11/2023,4199828-6383,"33,533.10",GEM TRAVEL.
Children and Young Peoples Services,Head of Education and Skills,Transport,235005,Public Transport,08/11/2023,4199828-6384,"3,185.32",GEM TRAVEL.
Regeneration Economy and Growth,Corporate Property and Land,Employees,080025,Agency Staff,08/11/2023,4199830-2476261,"164,150.40",GEOMETRIC RESULTS INTERNATIONAL.
Neighbourhoods and Climate Change,Highways,Supplies and Services,304358,Equipment and Materials,08/11/2023,4199831-81985,"1,430.00",GEORGE VARDY HAULAGE.
Neighbourhoods and Climate Change,Highways,Third Party Payments,430100,Rendered by Private Contractors,08/11/2023,4199840-3578,"4,800.00",HIGHWAY CONSTRUCTION SERVICES LTD.
Neighbourhoods and Climate Change,Highways,Third Party Payments,430100,Rendered by Private Contractors,08/11/2023,4199840-3579,"8,880.00",HIGHWAY CONSTRUCTION SERVICES LTD.
Adult and Health Services,Commissioning inc Supporting People,Third Party Payments,479111,Purchase of Care,08/11/2023,4199844-11037206,"3,231.36",HOME GROUP LTD.
Regeneration Economy and Growth,Corporate Property and Land,Supplies and Services,304221,Equipment and Materials,08/11/2023,4199865-0213/01046432,743.49,JT DOVE LTD.
Children and Young Peoples Services,Head of Childrens Social Care,Supplies and Services,338044,Services,08/11/2023,4199876-303630,628.00,LEXTOX.
Neighbourhoods and Climate Change,Environmental Services,Supplies and Services,304221,Equipment and Materials,08/11/2023,4199880-2231350,"2,520.00",LUBBE & SONS.
Regeneration Economy and Growth,Corporate Property and Land,Third Party Payments,430100,Rendered by Private Contractors,08/11/2023,4199882-0000054181,"24,083.38",LYNX PRECAST LTD.
Neighbourhoods and Climate Change,Environmental Services,Supplies and Services,338066,Services,08/11/2023,4199887-003,"6,100.00",MAKE THINGS HAPPEN DESIGN STUDIO LTD.
Neighbourhoods and Climate Change,Highways,Supplies and Services,304221,Equipment and Materials,08/11/2023,4199891-Z001731732,"6,013.00",MARSHALLS MONO LTD.
Neighbourhoods and Climate Change,Highways,Supplies and Services,304221,Equipment and Materials,08/11/2023,4199891-Z001732237,"1,020.53",MARSHALLS MONO LTD.
Neighbourhoods and Climate Change,Highways,Supplies and Services,304221,Equipment and Materials,08/11/2023,4199891-Z001732568,"2,022.38",MARSHALLS MONO LTD.
Adult and Health Services,Commissioning inc Supporting People,Supplies and Services,338370,Services,08/11/2023,4199898-53549,"58,483.92",MEDEQUIP ASSISTIVE TECHNOLOGY LTD.
Regeneration Economy and Growth,Culture Sport and Tourism,Supplies and Services,324001,Provisions E324,08/11/2023,4199906-907339374,"1,537.98",MOLSON COORS BREWING COMPANY (UK) LTD.
Regeneration Economy and Growth,Corporate Property and Land,Third Party Payments,430100,Rendered by Private Contractors,08/11/2023,4199913-1216,876.83,NE & C WINDOWS & DOORS LTD.
Regeneration Economy and Growth,Corporate Property and Land,Supplies and Services,304221,Equipment and Materials,08/11/2023,4199913-46426,"1,115.94",NE & C WINDOWS & DOORS LTD.
Regeneration Economy and Growth,Corporate Property and Land,Third Party Payments,430100,Rendered by Private Contractors,08/11/2023,4199913-46609,"3,440.00",NE & C WINDOWS & DOORS LTD.
Regeneration Economy and Growth,Corporate Property and Land,Third Party Payments,430100,Rendered by Private Contractors,08/11/2023,4199913-46614,"1,183.19",NE & C WINDOWS & DOORS LTD.
Children and Young Peoples Services,Head of Early Help Inclusion & Vulnerable Children.,Supplies and Services,304252,Equipment and Materials,08/11/2023,4199915-3010049273,515.65,NEWCASTLE UPON TYNE HOSPITALS NHS FOUNDATION TRUST.
Adult and Health Services,Central/Other,Third Party Payments,440150,Other third party payments E440,08/11/2023,4199918-BCF/NOVEMBER2023,"1,672,011.00",NHS NORTH EAST & NORTH CUMBRIA ICB.
Neighbourhoods and Climate Change,Environmental Services,Supplies and Services,384199,Miscellaneous Expenses,08/11/2023,4199921-2020,"31,245.00",NORTH EAST ENVIRONMENT NETWORK LTD T/A (OASES).
Adult and Health Services,Public Health CC0450,Third Party Payments,460803,Contract Payments,08/11/2023,4199923-3610056202,"1,054.00",NORTH TEES & HARTLEPOOL NHS FOUNDATION TRUST.
Neighbourhoods and Climate Change,Highways,Third Party Payments,430100,Rendered by Private Contractors,08/11/2023,4199924-DI20415462,"1,336.08",NORTHERN POWERGRID (NORTHEAST) LTD.
Neighbourhoods and Climate Change,Highways,Third Party Payments,430100,Rendered by Private Contractors,08/11/2023,4199926-9234,"9,346.25",NU PHALT CONTRACTING LTD.
Neighbourhoods and Climate Change,Highways,Third Party Payments,430100,Rendered by Private Contractors,08/11/2023,4199926-9235,"5,607.75",NU PHALT CONTRACTING LTD.
Children and Young Peoples Services,Head of Early Help Inclusion & Vulnerable Children.,Supplies and Services,304259,Equipment and Materials,08/11/2023,4199929-26944,"1,330.00",OLIVERS TREE SERVICES LTD.
Regeneration Economy and Growth,Corporate Property and Land,Construction work A908,908105,Construction work,08/11/2023,4199931-A244222,"1,290.76",OPENREACH LLU.
Regeneration Economy and Growth,Corporate Property and Land,Supplies and Services,304221,Equipment and Materials,08/11/2023,4199932-12081-01,"135,167.00",OPUS BUILDING SERVICES LTD.
Neighbourhoods and Climate Change,Highways,Stock A926,926900,Stock in hand-Inventory system,08/11/2023,4199935-XL308913,"5,710.00",PARK ELECTRICAL DISTRIBUTORS LTD.
Regeneration Economy and Growth,Culture Sport and Tourism,Supplies and Services,384199,Miscellaneous Expenses,08/11/2023,4199947-INV11093,833.33,PICTUREHOUSE CINEMAS LTD.
Adult and Health Services,Public Health CC0450,Third Party Payments,460803,Contract Payments,08/11/2023,4199948-18560/18,"7,327.00",PIONEERING CARE PARTNERSHIP.
Regeneration Economy and Growth,Corporate Property and Land,Third Party Payments,430100,Rendered by Private Contractors,08/11/2023,4199961-78065,"4,330.00",RJ UTILITY SERVICES LTD.
Adult and Health Services,Head of Adults,Third Party Payments,478151,Purchase of Care,08/11/2023,4199983-191023-2,"1,221.37",SOVEREIGN CARE (NORTH EAST) LTD.
Adult and Health Services,Head of Adults,Third Party Payments,478151,Purchase of Care,08/11/2023,4199983-71123,"1,221.37",SOVEREIGN CARE (NORTH EAST) LTD.
Regeneration Economy and Growth,Culture Sport and Tourism,Supplies and Services,384199,Miscellaneous Expenses,08/11/2023,4199985-S1008640,"4,438.59",SPEKTRIX LTD.
Regeneration Economy and Growth,Corporate Property and Land,Third Party Payments,430100,Rendered by Private Contractors,08/11/2023,4199986-8804,"58,625.24",ST ASTIER LTD.
Children and Young Peoples Services,Head of Education and Skills,Transport,230008,Contract Hire,08/11/2023,4199989-0038,"2,920.00",STARGATE TAXIS.
Children and Young Peoples Services,Head of Education and Skills,Transport,230006,Contract Hire,08/11/2023,4199989-0039,"3,300.00",STARGATE TAXIS.
Children and Young Peoples Services,Head of Childrens Social Care,Supplies and Services,364359,Grants to Voluntary Organisations,08/11/2023,4199994-BL04577,851.10,STORAL NURSERIES LTD T/A BARNEY LODGE NURSERY SCHOOL.
Children and Young Peoples Services,Head of Childrens Social Care,Supplies and Services,364359,Grants to Voluntary Organisations,08/11/2023,4199994-BL04578,"1,202.32",STORAL NURSERIES LTD T/A BARNEY LODGE NURSERY SCHOOL.
Children and Young Peoples Services,Head of Childrens Social Care,Supplies and Services,364359,Grants to Voluntary Organisations,08/11/2023,4199994-BL04579,"1,466.25",STORAL NURSERIES LTD T/A BARNEY LODGE NURSERY SCHOOL.
Resources BK0010,Digital Services,Supplies and Services,304303,Equipment and Materials,08/11/2023,4199996-146916,"1,977.00",SWITCHSHOP LTD.
Neighbourhoods and Climate Change,Highways,Supplies and Services,304221,Equipment and Materials,08/11/2023,4199997-9047606635,"1,014.64",TARMAC TRADING LTD.
Neighbourhoods and Climate Change,Highways,Supplies and Services,304221,Equipment and Materials,08/11/2023,4199997-9047606636,514.57,TARMAC TRADING LTD.
Neighbourhoods and Climate Change,Highways,Supplies and Services,304221,Equipment and Materials,08/11/2023,4199997-9047606637,517.16,TARMAC TRADING LTD.
Regeneration Economy and Growth,Culture Sport and Tourism,Supplies and Services,304259,Equipment and Materials,08/11/2023,4199999-2372012486,"1,392.30",TECHNOGYM UK LTD.
Neighbourhoods and Climate Change,Partnerships & Community Engagement Div.,Cap Exp on Grants & Other Financial Assistance (REFCUS),918004,Contributions to other bodies 918004,08/11/2023,4200003-VOUCHER23NB-EDUR028,"15,873.00",THE HAZELWELL CENTRE.
Regeneration Economy and Growth,Culture Sport and Tourism,Supplies and Services,328041,Clothing uniforms and laundry E328,08/11/2023,4200010-NSIN00102285,"2,297.64",THOMAS OWEN & SONS (NEWCASTLE) LTD.
Resources BK0010,Legal & Democratic Services,Supplies and Services,338042,Services,08/11/2023,4200014-300158/INVLM210,720.00,TRINITY CHAMBERS.
Resources BK0010,Legal & Democratic Services,Supplies and Services,338042,Services,08/11/2023,4200014-309884/INVHM437,665.00,TRINITY CHAMBERS.
Resources BK0010,Legal & Democratic Services,Supplies and Services,338042,Services,08/11/2023,4200014-310177/INVGR667,720.00,TRINITY CHAMBERS.
Neighbourhoods and Climate Change,Highways,Supplies and Services,304221,Equipment and Materials,08/11/2023,4200017-252364,"2,089.15",TYNEDALE ROADSTONE LTD.
Neighbourhoods and Climate Change,Highways,Supplies and Services,304221,Equipment and Materials,08/11/2023,4200017-252794,879.90,TYNEDALE ROADSTONE LTD.
Neighbourhoods and Climate Change,Highways,Supplies and Services,304221,Equipment and Materials,08/11/2023,4200017-252796,"1,626.10",TYNEDALE ROADSTONE LTD.
Neighbourhoods and Climate Change,Environmental Services,Supplies and Services,342215,Computers and Communications,08/11/2023,4200020-56688,"4,200.70",UK TELEMATICS LTD.
Regeneration Economy and Growth,Corporate Property and Land,Supplies and Services,304221,Equipment and Materials,08/11/2023,4200024-6890521158,"9,910.50",VIESSMANN LTD.
Neighbourhoods and Climate Change,Highways,Supplies and Services,338027,Services,08/11/2023,4200026-DRINV/00005586,"112,679.28",VOLKERSTEVIN INFRASTRUCTURE LTD.
Neighbourhoods and Climate Change,Highways,Supplies and Services,304221,Equipment and Materials,08/11/2023,4200029-29330,864.00,WARD TIMBER LTD.
Children and Young Peoples Services,Head of Education and Skills,Transport,230005,Contract Hire,08/11/2023,4200030-19356,"2,994.00",WEARDALE MOTOR SERVICES LTD.
Regeneration Economy and Growth,Transport and Contracted Services,Third Party Payments,430106,Rendered by Private Contractors,08/11/2023,4200030-19386,"130,348.05",WEARDALE MOTOR SERVICES LTD.
Regeneration Economy and Growth,Corporate Property and Land,Supplies and Services,304221,Equipment and Materials,08/11/2023,4200032-2958783,698.54,WESSEX LIFT CO LTD.
Neighbourhoods and Climate Change,Environmental Services,Supplies and Services,304221,Equipment and Materials,08/11/2023,4200033-131023,728.40,WINDLESTONE NURSERY LTD.
Regeneration Economy and Growth,Planning & Housing,Supplies and Services,304259,Equipment and Materials,08/11/2023,4200035-0000243417,"1,167.76",WINNCARE (UNITED KINGDOM) LTD.
Neighbourhoods and Climate Change,Environmental Services,Transport,215023,Running Costs of Vehicles,08/11/2023,4200040-1024015,570.00,YOUR NRG LTD.
Neighbourhoods and Climate Change,Environmental Services,Transport,215023,Running Costs of Vehicles,08/11/2023,4200040-1024017,513.00,YOUR NRG LTD.
Neighbourhoods and Climate Change,Environmental Services,Transport,215023,Running Costs of Vehicles,08/11/2023,4200040-1035302,510.00,YOUR NRG LTD.
Neighbourhoods and Climate Change,Environmental Services,Transport,215005,Running Costs of Vehicles,08/11/2023,4200040-1036887,"22,547.06",YOUR NRG LTD.
Neighbourhoods and Climate Change,Environmental Services,Transport,215005,Running Costs of Vehicles,08/11/2023,4200040-1036888,"12,664.99",YOUR NRG LTD.
Neighbourhoods and Climate Change,Community Protection,Third Party Payments,430100,Rendered by Private Contractors,08/11/2023,4200041-2273,600.00,YOU`RE SECURE NORTHEAST.
Neighbourhoods and Climate Change,Environmental Services,Construction work A908,908105,Construction work,08/11/2023,4199775-161023,"59,926.00",CLARK & KENT CONTRACTORS.
Neighbourhoods and Climate Change,Partnerships & Community Engagement Div.,Cap Exp on Grants & Other Financial Assistance (REFCUS),918004,Contributions to other bodies 918004,08/11/2023,4199982-VOUCHER23AB-STAN003,"5,900.00",SOUTH MOOR ALLOTMENT ASSOCIATION.
Neighbourhoods and Climate Change,Partnerships & Community Engagement Div.,Cap Exp on Grants & Other Financial Assistance (REFCUS),918004,Contributions to other bodies 918004,08/11/2023,4199838-VOUCHER23AB-MDUR004,"9,500.00",HEDLEYHOPE PARISH COUNCIL.
Children and Young Peoples Services,Head of Education and Skills,Transport,230006,Contract Hire,08/11/2023,4199790-104,"2,423.38",REDACTED - PAYMENT TO INDIVIDUAL
Children and Young Peoples Services,Childrens Services Operational Support,Supplies and Services,338089,Services,08/11/2023,4199939-0000DCC1023,500.00,REDACTED - PAYMENT TO INDIVIDUAL
Children and Young Peoples Services,Head of Education and Skills,Transport,230006,Contract Hire,09/11/2023,4200210-DCL-001,"1,050.00",REDACTED - PAYMENT TO INDIVIDUAL
Children and Young Peoples Services,Head of Education and Skills,Transport,230009,Contract Hire,09/11/2023,4200210-DCL-002,986.50,REDACTED - PAYMENT TO INDIVIDUAL
Children and Young Peoples Services,Head of Education and Skills,Transport,230006,Contract Hire,09/11/2023,4200210-DCL-003,"1,047.55",REDACTED - PAYMENT TO INDIVIDUAL
Neighbourhoods and Climate Change,Partnerships & Community Engagement Div.,Supplies and Services,384086,Miscellaneous Expenses,09/11/2023,4200221-VOUCHERATKJ02-23,500.00,NEWTON AYCLIFFE METHODIST CHURCH.
Regeneration Economy and Growth,Culture Sport and Tourism,Supplies and Services,384199,Miscellaneous Expenses,09/11/2023,4200232-INV-0317,"5,645.00",OPEN FORMAT LTD.
Children and Young Peoples Services,Head of Education and Skills,Transport,230008,Contract Hire,09/11/2023,4200044-102308,"2,822.60",24/7 TAXI SERVICES (PETERLEE) LTD.
Children and Young Peoples Services,Head of Education and Skills,Transport,230008,Contract Hire,09/11/2023,4200046-1023-SB,"2,720.00",AABAT TAXIS.
Children and Young Peoples Services,Head of Education and Skills,Transport,230008,Contract Hire,09/11/2023,4200046-1023-SC,"3,348.00",AABAT TAXIS.
Children and Young Peoples Services,Head of Education and Skills,Transport,230009,Contract Hire,09/11/2023,4200046-1023-SD,"3,622.00",AABAT TAXIS.
Children and Young Peoples Services,Head of Education and Skills,Transport,230007,Contract Hire,09/11/2023,4200046-1023-SE,"1,695.80",AABAT TAXIS.
Children and Young Peoples Services,Head of Education and Skills,Transport,230008,Contract Hire,09/11/2023,4200046-1023-SF,795.00,AABAT TAXIS.
Children and Young Peoples Services,Head of Education and Skills,Transport,230008,Contract Hire,09/11/2023,4200046-1023-SF2,"1,318.20",AABAT TAXIS.
Children and Young Peoples Services,Head of Education and Skills,Transport,230006,Contract Hire,09/11/2023,4200046-1023-SG,"1,904.00",AABAT TAXIS.
Adult and Health Services,Head of Adults,Transport,230005,Contract Hire,09/11/2023,4200046-1023-SH,"2,600.00",AABAT TAXIS.
Adult and Health Services,Head of Adults,Transport,230005,Contract Hire,09/11/2023,4200046-1023-SK,"2,792.02",AABAT TAXIS.
Children and Young Peoples Services,Head of Education and Skills,Transport,230007,Contract Hire,09/11/2023,4200046-1023-SM,"2,421.74",AABAT TAXIS.
Adult and Health Services,Head of Adults,Construction work A908,908105,Construction work,09/11/2023,4200049-53415397,"6,199.95",ADT FIRE & SECURITY PLC.
Children and Young Peoples Services,Childrens Services Operational Support,Supplies and Services,304259,Equipment and Materials,09/11/2023,4200053-6139,"1,525.00",AIM PROJECT.
Children and Young Peoples Services,Childrens Services Operational Support,Supplies and Services,338089,Services,09/11/2023,4200053-6183,"1,994.91",AIM PROJECT.
Children and Young Peoples Services,Childrens Services Operational Support,Supplies and Services,338089,Services,09/11/2023,4200053-6184,"1,994.91",AIM PROJECT.
Regeneration Economy and Growth,Transport and Contracted Services,Third Party Payments,430106,Rendered by Private Contractors,09/11/2023,4200059-121045,"11,286.38",ARRIVA NORTHUMBRIA LTD.
Children and Young Peoples Services,Head of Education and Skills,Transport,230006,Contract Hire,09/11/2023,4200060-992,"2,457.00",AT TAXIS LTD.
Children and Young Peoples Services,Head of Education and Skills,Transport,230006,Contract Hire,09/11/2023,4200060-998,"3,780.00",AT TAXIS LTD.
Adult and Health Services,Head of Adults,Transport,230005,Contract Hire,09/11/2023,4200062-DCC16OCT23,"1,440.00",ATLAS TAXIS MANAGEMENT LTD.
Children and Young Peoples Services,Head of Education and Skills,Transport,230008,Contract Hire,09/11/2023,4200062-DCC19OCT23,"1,791.00",ATLAS TAXIS MANAGEMENT LTD.
Neighbourhoods and Climate Change,Environmental Services,Third Party Payments,460305,Contract Payments,09/11/2023,4200063-129107,625.00,AUTOCRAFT EQUIPMENT LTD.
Adult and Health Services,Head of Adults,Transport,230005,Contract Hire,09/11/2023,4200064-SED141OCT2023,730.40,B&C YELLOWCAB TAXI`S.
Neighbourhoods and Climate Change,Highways,Supplies and Services,338066,Services,09/11/2023,4200065-400177762,"23,951.58",BAM NUTTALL LTD.
Children and Young Peoples Services,Head of Education and Skills,Transport,230008,Contract Hire,09/11/2023,4200066-1066,"2,991.40",BEELINE MINI BUSES.
Children and Young Peoples Services,Head of Education and Skills,Transport,230008,Contract Hire,09/11/2023,4200066-1067,"2,209.00",BEELINE MINI BUSES.
Children and Young Peoples Services,Head of Education and Skills,Transport,230008,Contract Hire,09/11/2023,4200066-1068,"1,453.60",BEELINE MINI BUSES.
Children and Young Peoples Services,Head of Education and Skills,Transport,230006,Contract Hire,09/11/2023,4200068-BRABEAHOUG1023,"1,793.55",BENS TAXIS.
Children and Young Peoples Services,Head of Education and Skills,Transport,230008,Contract Hire,09/11/2023,4200071-2-ROO3-OCT23,"2,732.00",BH TRAVEL.
Adult and Health Services,Head of Adults,Supplies and Services,304516,Equipment and Materials,09/11/2023,4200073-INV-770,531.50,BILL SCOTT TAXIS LTD.
Adult and Health Services,Head of Adults,Transport,230005,Contract Hire,09/11/2023,4200074-0809,847.00,BIRDS TAXIS LTD.
Adult and Health Services,Head of Adults,Transport,230005,Contract Hire,09/11/2023,4200074-0810,588.00,BIRDS TAXIS LTD.
Adult and Health Services,Head of Adults,Transport,230005,Contract Hire,09/11/2023,4200074-0812,"1,512.00",BIRDS TAXIS LTD.
Adult and Health Services,Head of Adults,Transport,230005,Contract Hire,09/11/2023,4200074-0813,"1,006.72",BIRDS TAXIS LTD.
Adult and Health Services,Head of Adults,Transport,230005,Contract Hire,09/11/2023,4200074-0814,875.44,BIRDS TAXIS LTD.
Adult and Health Services,Head of Adults,Transport,230005,Contract Hire,09/11/2023,4200074-0815,"1,142.90",BIRDS TAXIS LTD.
Adult and Health Services,Head of Adults,Transport,230005,Contract Hire,09/11/2023,4200074-0816,"1,716.00",BIRDS TAXIS LTD.
Children and Young Peoples Services,Head of Education and Skills,Transport,230007,Contract Hire,09/11/2023,4200074-0817,901.60,BIRDS TAXIS LTD.
Children and Young Peoples Services,Head of Education and Skills,Transport,230008,Contract Hire,09/11/2023,4200074-0818,"3,100.20",BIRDS TAXIS LTD.
Children and Young Peoples Services,Head of Education and Skills,Transport,230034,Contract Hire,09/11/2023,4200075-4007-OCT23-29,"2,146.00",BL TAXIS.
Children and Young Peoples Services,Head of Education and Skills,Transport,230008,Contract Hire,09/11/2023,4200076-N029-SEP23,"3,200.36",BON VOYAGE TAXIS LTD.
Children and Young Peoples Services,Head of Education and Skills,Construction work A908,908105,Construction work,09/11/2023,4200078-17102023,515.00,BRIAN YOUNGER T/A B & E YOUNGER FLOORING.
Children and Young Peoples Services,Head of Education and Skills,Transport,230007,Contract Hire,09/11/2023,4200081-350802,"1,180.00",C & R TAXIS.
Children and Young Peoples Services,Head of Education and Skills,Transport,230008,Contract Hire,09/11/2023,4200081-S00902,"3,408.00",C & R TAXIS.
Children and Young Peoples Services,Head of Education and Skills,Transport,230008,Contract Hire,09/11/2023,4200081-W00202,"3,001.60",C & R TAXIS.
Children and Young Peoples Services,Head of Education and Skills,Transport,230008,Contract Hire,09/11/2023,4200081-W04302,"3,240.00",C & R TAXIS.
Neighbourhoods and Climate Change,Environmental Services,Supplies and Services,338066,Services,09/11/2023,4200083-06-073,"1,356.80",CACTUS TREE GUARDS LTD.
Regeneration Economy and Growth,Corporate Property and Land,Third Party Payments,430100,Rendered by Private Contractors,09/11/2023,4200087-817,"5,265.96",CEILINGS DIRECT LTD.
Regeneration Economy and Growth,Corporate Property and Land,Third Party Payments,430100,Rendered by Private Contractors,09/11/2023,4200087-818,"2,776.92",CEILINGS DIRECT LTD.
Neighbourhoods and Climate Change,Environmental Services,Supplies and Services,384899,Miscellaneous Expenses,09/11/2023,4200097-RES-10-2023-538,"194,565.00",COAL AUTHORITY.
Children and Young Peoples Services,Head of Education and Skills,Transport,230007,Contract Hire,09/11/2023,4200098-C/11949,"7,593.40",COCHRANES T/A KELVIN TRAVEL.
Children and Young Peoples Services,Head of Education and Skills,Transport,230007,Contract Hire,09/11/2023,4200098-C/11950,"4,223.40",COCHRANES T/A KELVIN TRAVEL.
Children and Young Peoples Services,Head of Education and Skills,Transport,230007,Contract Hire,09/11/2023,4200098-C/11951,"4,721.50",COCHRANES T/A KELVIN TRAVEL.
Children and Young Peoples Services,Head of Education and Skills,Transport,230007,Contract Hire,09/11/2023,4200098-C/11952,"5,320.00",COCHRANES T/A KELVIN TRAVEL.
Children and Young Peoples Services,Head of Education and Skills,Transport,230003,Contract Hire,09/11/2023,4200098-C/11954,"2,184.16",COCHRANES T/A KELVIN TRAVEL.
Children and Young Peoples Services,Head of Education and Skills,Transport,230003,Contract Hire,09/11/2023,4200098-C/11955,"3,848.00",COCHRANES T/A KELVIN TRAVEL.
Children and Young Peoples Services,Head of Education and Skills,Transport,230003,Contract Hire,09/11/2023,4200098-C/11956,"2,525.44",COCHRANES T/A KELVIN TRAVEL.
Regeneration Economy and Growth,Culture Sport and Tourism,Supplies and Services,338047,Services,09/11/2023,4200099-10847,"2,649.17",COMEDY STORE MANAGEMENT T/A THE COMEDY STORE LTD.
Regeneration Economy and Growth,Corporate Property and Land,Supplies and Services,304221,Equipment and Materials,09/11/2023,4200100-5038,"1,524.17",COMPLETE DETECTION SYSTEMS LTD (CDS).
Adult and Health Services,Public Health CC0450,Third Party Payments,460803,Contract Payments,09/11/2023,4200104-3910022635,"302,684.00",COUNTY DURHAM & DARLINGTON NHS FOUNDATION TRUST (CDDFT).
Children and Young Peoples Services,Head of Education and Skills,Transport,230008,Contract Hire,09/11/2023,4200107-116582,"3,579.84",CROFT BUSINESS SERVICES LTD T/A CROFT TRAVEL.
Children and Young Peoples Services,Head of Education and Skills,Transport,230008,Contract Hire,09/11/2023,4200114-3862,"2,479.00",DAVES MINIBUSES.
Children and Young Peoples Services,Head of Education and Skills,Transport,230008,Contract Hire,09/11/2023,4200114-3863,"1,899.20",DAVES MINIBUSES.
Children and Young Peoples Services,Head of Education and Skills,Transport,230008,Contract Hire,09/11/2023,4200114-3864,"2,400.00",DAVES MINIBUSES.
Children and Young Peoples Services,Head of Education and Skills,Transport,230008,Contract Hire,09/11/2023,4200114-3865,"2,180.00",DAVES MINIBUSES.
Children and Young Peoples Services,Head of Education and Skills,Transport,230008,Contract Hire,09/11/2023,4200114-3866,"2,619.60",DAVES MINIBUSES.
Resources BK0010,Digital Services,Stock A926,926900,Stock in hand-Inventory system,09/11/2023,4200117-7402956098,"1,208.60",DELL COMPUTER CORPORATION LTD.
Dedicated Schools Grant BG0015,DSG High Needs Block,Supplies and Services,384302,Miscellaneous Expenses,09/11/2023,4200118-RES-10-2023-525,"102,375.00",DELTA - NORTH CONSETT LTD.
Regeneration Economy and Growth,Planning & Housing,Supplies and Services,308011,Furniture,09/11/2023,4200126-00167,710.00,DUCKS CARPET CLEARANCE WAREHOUSE.
Neighbourhoods and Climate Change,Environmental Services,Supplies and Services,384700,Miscellaneous Expenses,09/11/2023,4200128-RES-11-2023-126,"16,779.90",EDEN RIVERS TRUST.
Regeneration Economy and Growth,Corporate Property and Land,Supplies and Services,304221,Equipment and Materials,09/11/2023,4200129-059-326873,889.58,EDMUNDSON ELECTRICAL LTD.
Regeneration Economy and Growth,Corporate Property and Land,Supplies and Services,304221,Equipment and Materials,09/11/2023,4200129-059-326945,563.13,EDMUNDSON ELECTRICAL LTD.
Children and Young Peoples Services,Head of Education and Skills,Transport,230008,Contract Hire,09/11/2023,4200139-103691,"3,388.47",G & P JOHNSON LTD T/A NIGHTINGALE COACHES.
Adult and Health Services,Head of Adults,Transport,230005,Contract Hire,09/11/2023,4200139-103692,"2,682.00",G & P JOHNSON LTD T/A NIGHTINGALE COACHES.
Children and Young Peoples Services,Head of Education and Skills,Transport,230008,Contract Hire,09/11/2023,4200139-103693,"1,662.20",G & P JOHNSON LTD T/A NIGHTINGALE COACHES.
Children and Young Peoples Services,Head of Education and Skills,Transport,230007,Contract Hire,09/11/2023,4200139-103694,"1,840.00",G & P JOHNSON LTD T/A NIGHTINGALE COACHES.
Adult and Health Services,Head of Adults,Transport,230005,Contract Hire,09/11/2023,4200139-103695,"2,024.00",G & P JOHNSON LTD T/A NIGHTINGALE COACHES.
Adult and Health Services,Head of Adults,Transport,230005,Contract Hire,09/11/2023,4200139-103696,"1,342.00",G & P JOHNSON LTD T/A NIGHTINGALE COACHES.
Adult and Health Services,Head of Adults,Transport,230005,Contract Hire,09/11/2023,4200139-103697,"2,135.10",G & P JOHNSON LTD T/A NIGHTINGALE COACHES.
Adult and Health Services,Head of Adults,Transport,230005,Contract Hire,09/11/2023,4200139-103698,"2,109.74",G & P JOHNSON LTD T/A NIGHTINGALE COACHES.
Adult and Health Services,Head of Adults,Transport,230005,Contract Hire,09/11/2023,4200139-103699,"2,116.56",G & P JOHNSON LTD T/A NIGHTINGALE COACHES.
Adult and Health Services,Head of Adults,Transport,230005,Contract Hire,09/11/2023,4200139-103700,"1,533.00",G & P JOHNSON LTD T/A NIGHTINGALE COACHES.
Adult and Health Services,Head of Adults,Transport,230005,Contract Hire,09/11/2023,4200139-103701,"2,024.00",G & P JOHNSON LTD T/A NIGHTINGALE COACHES.
Adult and Health Services,Head of Adults,Transport,230005,Contract Hire,09/11/2023,4200139-103702,"1,937.00",G & P JOHNSON LTD T/A NIGHTINGALE COACHES.
Adult and Health Services,Head of Adults,Transport,230005,Contract Hire,09/11/2023,4200139-103703,"1,360.92",G & P JOHNSON LTD T/A NIGHTINGALE COACHES.
Adult and Health Services,Head of Adults,Transport,230005,Contract Hire,09/11/2023,4200139-103704,"3,058.00",G & P JOHNSON LTD T/A NIGHTINGALE COACHES.
Adult and Health Services,Head of Adults,Transport,230005,Contract Hire,09/11/2023,4200139-103705,"2,150.00",G & P JOHNSON LTD T/A NIGHTINGALE COACHES.
Adult and Health Services,Head of Adults,Transport,230005,Contract Hire,09/11/2023,4200139-103706,518.31,G & P JOHNSON LTD T/A NIGHTINGALE COACHES.
Children and Young Peoples Services,Head of Education and Skills,Transport,230008,Contract Hire,09/11/2023,4200139-103708,"2,664.00",G & P JOHNSON LTD T/A NIGHTINGALE COACHES.
Children and Young Peoples Services,Head of Education and Skills,Transport,230008,Contract Hire,09/11/2023,4200139-103709,"3,168.00",G & P JOHNSON LTD T/A NIGHTINGALE COACHES.
Children and Young Peoples Services,Head of Education and Skills,Transport,230008,Contract Hire,09/11/2023,4200139-103710,"2,273.00",G & P JOHNSON LTD T/A NIGHTINGALE COACHES.
Children and Young Peoples Services,Head of Education and Skills,Transport,230008,Contract Hire,09/11/2023,4200139-103711,"1,640.00",G & P JOHNSON LTD T/A NIGHTINGALE COACHES.
Regeneration Economy and Growth,Culture Sport and Tourism,Premises,145023,Cleaning and Domestic Supplies,09/11/2023,4200143-06/243834,672.90,GREENHAM TRADING LTD.
Children and Young Peoples Services,Head of Education and Skills,Supplies and Services,332047,Printing Stationery and Gen Off Exps,09/11/2023,4200145-INV0196242,"1,620.25",GVAV LTD T/A AUDIO VISUAL SOLUTIONS.
Adult and Health Services,Public Health CC0450,Third Party Payments,460803,Contract Payments,09/11/2023,4200154-SI-HK-001590,"14,019.77",HUMANKIND CHARITY.
Adult and Health Services,Public Health CC0450,Third Party Payments,460803,Contract Payments,09/11/2023,4200154-SI-HK-001592,"5,000.00",HUMANKIND CHARITY.
Regeneration Economy and Growth,Business Durham,Supplies and Services,342033,Computers and Communications,09/11/2023,4200161-2100739548,"1,411.11",INSIGHT DIRECT (UK) LTD.
Resources BK0010,Digital Services,Supplies and Services,342033,Computers and Communications,09/11/2023,4200161-2100739551,928.43,INSIGHT DIRECT (UK) LTD.
Resources BK0010,Digital Services,Vehicles Equipment Furniture and Fittings,912701,Computer equipment,09/11/2023,4200161-2100739552,"1,262.70",INSIGHT DIRECT (UK) LTD.
Resources BK0010,Digital Services,Stock A926,926900,Stock in hand-Inventory system,09/11/2023,4200161-2100739553,"3,954.45",INSIGHT DIRECT (UK) LTD.
Children and Young Peoples Services,Head of Education and Skills,Transport,230007,Contract Hire,09/11/2023,4200166-6009-OCT23,"1,680.00",J YOUNG T/A VIP TAXIS.
Neighbourhoods and Climate Change,Highways,Third Party Payments,430100,Rendered by Private Contractors,09/11/2023,4200167-28486,"1,091.20",JACK COUPE & SONS LTD T/A COUPE LINE.
Neighbourhoods and Climate Change,Highways,Stock A926,926900,Stock in hand-Inventory system,09/11/2023,4200170-11616,877.80,JG UNIFORMS.
Children and Young Peoples Services,Head of Education and Skills,Transport,230007,Contract Hire,09/11/2023,4200171-41148/41133,"6,952.37",JIM HUGHES COACHES LTD.
Regeneration Economy and Growth,Corporate Property and Land,Supplies and Services,304221,Equipment and Materials,09/11/2023,4200177-0303/01048711,"3,250.00",JT DOVE LTD.
Neighbourhoods and Climate Change,Environmental Services,Supplies and Services,304999,Equipment and Materials,09/11/2023,4200180-210217,949.76,KOMPAN SCOTLAND LTD.
Children and Young Peoples Services,Head of Education and Skills,Transport,230007,Contract Hire,09/11/2023,4200185-33184,"3,800.00",LEE`S COACHES LTD.
Children and Young Peoples Services,Head of Education and Skills,Transport,230007,Contract Hire,09/11/2023,4200185-33185,"4,453.00",LEE`S COACHES LTD.
Children and Young Peoples Services,Head of Education and Skills,Transport,230007,Contract Hire,09/11/2023,4200185-33186,"5,200.00",LEE`S COACHES LTD.
Children and Young Peoples Services,Head of Education and Skills,Transport,230007,Contract Hire,09/11/2023,4200185-33187,"10,000.00",LEE`S COACHES LTD.
Children and Young Peoples Services,Head of Childrens Social Care,Supplies and Services,338044,Services,09/11/2023,4200186-305233,"1,103.00",LEXTOX.
Children and Young Peoples Services,Head of Education and Skills,Transport,230007,Contract Hire,09/11/2023,4200188-5186,"2,705.60",LINCAB TAXIS.
Children and Young Peoples Services,Head of Education and Skills,Transport,230007,Contract Hire,09/11/2023,4200188-5187,"3,704.40",LINCAB TAXIS.
Children and Young Peoples Services,Head of Education and Skills,Transport,230008,Contract Hire,09/11/2023,4200188-5188,"2,622.40",LINCAB TAXIS.
Children and Young Peoples Services,Head of Education and Skills,Transport,230008,Contract Hire,09/11/2023,4200188-5189,"4,111.20",LINCAB TAXIS.
Regeneration Economy and Growth,Culture Sport and Tourism,Supplies and Services,338047,Services,09/11/2023,4200190-INV-1477,"6,169.44",LITTLE WANDER LTD.
Regeneration Economy and Growth,Business Durham,Supplies and Services,384540,Miscellaneous Expenses,09/11/2023,4200203-INV-0680,720.00,MCDONOUGH MARKETING COMMUNICATIONS LTD T/A MMC.
Children and Young Peoples Services,Head of Childrens Social Care,Supplies and Services,338044,Services,09/11/2023,4200204-41243,"1,190.00",MEDICAL EXPERT WITNESS ALLIANCE LLP (MEWA).
Regeneration Economy and Growth,Corporate Property and Land,Supplies and Services,304221,Equipment and Materials,09/11/2023,4200215-45513,"9,112.73",NE & C WINDOWS & DOORS LTD.
Regeneration Economy and Growth,Transport and Contracted Services,Third Party Payments,430108,Rendered by Private Contractors,09/11/2023,4200217-PROINV50083013,"3,000.00",NEW COLLEGE DURHAM.
Regeneration Economy and Growth,Transport and Contracted Services,Construction work A908,908105,Construction work,09/11/2023,4200219-1800012090674,"36,342.00",NEWCASTLE UPON TYNE CITY COUNCIL.
Neighbourhoods and Climate Change,Highways,Fees,901004,Capital - Detailed Design,09/11/2023,4200220-43787347,824.99,NEWSQUEST (YORKSHIRE & NORTH EAST) LTD.
Adult and Health Services,Public Health CC0450,Supplies and Services,384155,Miscellaneous Expenses,09/11/2023,4200222-1000078822,"60,569.65",NHS BUSINESS SERVICES AUTHORITY (NHSBSA).
Children and Young Peoples Services,Head of Early Help Inclusion & Vulnerable Children.,Third Party Payments,410037,Rendered by Other Local Authorities,09/11/2023,4200228-INV-9242,"1,444.23",NUDGE EDUCATION LTD.
Neighbourhoods and Climate Change,Community Protection,Supplies and Services,384199,Miscellaneous Expenses,09/11/2023,4200234-G0767491,"1,046.73",ORBIS PROTECT LTD.
Children and Young Peoples Services,Head of Education and Skills,Transport,230007,Contract Hire,09/11/2023,4200240-1203-3030,"2,261.00",PBS TRAVEL LTD.
Children and Young Peoples Services,Head of Education and Skills,Transport,230007,Contract Hire,09/11/2023,4200240-1203-3037,"3,705.00",PBS TRAVEL LTD.
Children and Young Peoples Services,Head of Education and Skills,Transport,230007,Contract Hire,09/11/2023,4200240-1203-3334,"1,805.00",PBS TRAVEL LTD.
Children and Young Peoples Services,Head of Education and Skills,Transport,230009,Contract Hire,09/11/2023,4200240-1203-3493,"1,912.04",PBS TRAVEL LTD.
Neighbourhoods and Climate Change,Highways,Third Party Payments,430100,Rendered by Private Contractors,09/11/2023,4200247-179880,"9,846.00",PREMIER TRAFFIC MANAGEMENT LTD.
Neighbourhoods and Climate Change,Highways,Third Party Payments,430100,Rendered by Private Contractors,09/11/2023,4200251-15341,522.36,QUANTUM POWER CONNECTIONS LTD.
Neighbourhoods and Climate Change,Highways,Third Party Payments,430100,Rendered by Private Contractors,09/11/2023,4200251-15342,522.36,QUANTUM POWER CONNECTIONS LTD.
Neighbourhoods and Climate Change,Highways,Third Party Payments,430100,Rendered by Private Contractors,09/11/2023,4200251-15344,522.36,QUANTUM POWER CONNECTIONS LTD.
Neighbourhoods and Climate Change,Highways,Third Party Payments,430100,Rendered by Private Contractors,09/11/2023,4200251-15346,522.36,QUANTUM POWER CONNECTIONS LTD.
